Workbook

Sheet Index
A1: TNUoS Five-Year View 2022/23 to 2026/27 - Tables and Figures
A2: List of tables
A3: ='T1'!A1 -> Table 1 - Summary of Average Generation Tariffs
A4: ='T2'!A1 -> Table 2 - Generation wider tariffs in 2022/23
A5: ='T3'!A1 -> Table 3 - Generation wider tariffs in 2023/24
A6: ='T4'!A1 -> Table 4 - Generation wider tariffs in 2024/25
A7: ='T5'!A1 -> Table 5 - Generation wider tariffs in 2025/26
A8: ='T6'!A1 -> Table 6 - Generation wider tariffs in 2026/27
A9: ='T7 & F1'!A1 -> Table 7 - Comparison of Conventional Carbon (80%) tariffs
A10: ='T8 & F2'!A1 -> Table 8 - Comparison of Conventional Low Carbon 80% tariffs
A11: ='T9 & F3'!A1 -> Table 9 - Comparison of Intermittent (40%) tariffs
A12: ='T10'!A1 -> Table 10 – Local substation tariffs for 2022/23
A13: ='T11'!A1 -> Table 11 – Onshore local circuit tariffs
A14: ='T12'!A1 -> Table 12 - CMP203: Circuits subject to one-off charges
A15: ='T13'!A1 -> Table 13 – Offshore local tariffs for 2022/23
A16: ='T14'!A1 -> Table 14 – HH, NHH and EET Summary
A17: ='T15'!A1 -> Table 15 – Non-locational banded charges
A18: ='T16'!A1 -> Table 16 - Gross Half-Hourly locational demand tariffs by demand zone
A19: ='T17'!A1 -> Table 17 - Embedded Export Tariffs 2022/23 to 2026/27
A20: ='T18'!A1 -> Table 18 – NHH demand tariff changes
A21: ='T19'!A1 -> Table 19 - Generation contracted, modelled and chargeable TEC
A22: ='T20'!A1 -> Table 20 – Interconnectors Contracted TEC
A23: ='T21'!A1 -> Table 21 – Expansion constant and inflation indices
A24: ='T22'!A1 -> Table 22 – Allowed revenues
A25: ='T23'!A1 -> Table 23 - Error margin calculation
A26: ='T24'!A1 -> Table 24 – Generation and demand revenue proportions
A27: ='T25'!A1 -> Table 25 – Demand charging base and system peak
A28: ='T26'!A1 -> Table 26 - Residual Calculation
A29: ='S1-S3'!A1 -> Tables S1-S3 – The impact of new interconnectors (Gridlink) on 2024/25 Tariffs
A30: ='S4-S6'!A1 -> Tables S4-S6 – The impact of new interconnectors (Eurolink) on 2024/25 Tariffs
A31: ='S7'!A1 -> Table S7 - Demand locational Tariffs (HH/NHH) - TDR Scenarios - floored/Unfloored tariffs
A32: ='S8'!A1 -> Table S8 - Demand Residual Banded Charges - TDR Scenarios
A33: ='T27'!A1 -> Table 27 - Summary of in flight CUSC modification proposals
A34: ='T28'!A1 -> Table 28 – Elements of the demand location tariff for 2022/23
A35: ='T29'!A1 -> Table 29 – Elements of the demand location tariff for 2023/24
A36: ='T30'!A1 -> Table 30 – Elements of the demand location tariff for 2024/25
A37: ='T31'!A1 -> Table 31 – Elements of the demand location tariff for 2025/26
A38: ='T32'!A1 -> Table 32 – Elements of the demand location tariff for 2026/27
A39: ='T33'!A1 -> Table 33 - Generic Annual Load Factors
A40: ='T34'!A1 -> Table 34 - Contracted TEC by generation zone
A41: ='T35-T38'!A1 -> Tables 35 - 38 - Revenue breakdown
A42: ='T39'!A1 -> Table 39 - Offshore Transmission Revenues
A43: ='T40'!A1 -> Table 40 - Pre-Existing Asset Charges
A44: Tables not in report
A45: =TA!A1 -> Table A - Contracted generation TEC
A46: =TB!A1 -> Table B - HH, NHH and EET Summary (2022/23 Forecast variation)
A47: =TC!A1 -> Table C - Half-Hourly demand tariffs (2022/23 Forecast variation)
A48: =TD!A1 -> Table D - Embedded Export Tariff (2022/23 Forecast variation)
A49: =TE!A1 -> Table E - Non-half hourly demand tariffs (2022/23 Forecast variation)
A50: =TF!A1 -> Table F - Demand HH locational tariffs (2022/23 Forecast variation)
A51: =TG!A1 -> Table G - Breakdown of EET (2022/23 Forecast Variation)
A52: =TH!A1 -> Table H - Demand Profiles (2022/23 Forecast Variation)
A53: =TI!A1 -> Table I - Week 24 DNO zonal demand forecast

Sheet T1
A1: Table 1 - Summary of Average Generation Tariffs | H1: Return to Index
D3: Five-year View
B4: Generation Tariffs (£/kW) | C4: Final 2021/22 | D4: April 2022/23 | E4: 2023/24 | F4: 2024/25 | G4: 2025/26 | H4: 2026/27
B5: Adjustment | C5: -0.432599829 | D5: -0.4183097332 | E5: -0.3265586329 | F5: -0.7946561034 | G5: -2.512418308 | H5: -3.537637795
B6: Average Generation Tariff* | C6: 11.03585915 | D6: 11.06409964 | E6: 12.40481868 | F6: 14.06447168 | G6: 14.47613767 | H6: 14.73223077
B7: *N.B These generation tariffs include local tariffs

Sheet T2
A1: ="Table 2 - Generation wider tariffs in "&'T14'!C4 -> Table 2 - Generation wider tariffs in 2022/23 | I1: Return to Index
B4: Generation Tariffs | D4: System Peak Tariff | E4: Shared Year Round Tariff | F4: Not Shared Year Round Tariff | G4: Adjustment Tariff | H4: Conventional Carbon | I4: Conventional Low Carbon | J4: Intermittent
H5: 0.8 | I5: 0.8 | J5: 0.4
B6: Zone | C6: Zone Name | D6: (£/kW) | E6: (£/kW) | F6: (£/kW) | G6: (£/kW) | H6: Load Factor (£/kW) | I6: Load Factor (£/kW) | J6: Load Factor (£/kW)
B7: 1 | C7: North Scotland | D7: 3.741782 | E7: 18.296631 | F7: 16.505194 | G7: -0.41831 | H7: 31.164932 | I7: 34.4659708 | J7: 23.4055364
B8: 2 | C8: East Aberdeenshire | D8: 4.691757 | E8: 10.246043 | F8: 16.505194 | G8: -0.41831 | H8: 25.6744366 | I8: 28.9754754 | J8: 20.1853012
B9: 3 | C9: Western Highlands | D9: 3.72065 | E9: 16.673356 | F9: 15.815023 | G9: -0.41831 | H9: 29.2930432 | I9: 32.4560478 | J9: 22.0660554
B10: 4 | C10: Skye and Lochalsh | D10: -0.76305 | E10: 16.673356 | F10: 17.617333 | G10: -0.41831 | H10: 26.2511912 | I10: 29.7746578 | J10: 23.8683654
B11: 5 | C11: Eastern Grampian and Tayside | D11: 4.9022 | E11: 14.864758 | F11: 14.707373 | G11: -0.41831 | H11: 28.1415948 | I11: 31.0830694 | J11: 20.2349662
B12: 6 | C12: Central Grampian | D12: 5.149273 | E12: 13.770176 | F12: 13.832661 | G12: -0.41831 | H12: 26.8132326 | I12: 29.5797648 | J12: 18.9224214
B13: 7 | C13: Argyll | D13: 3.881575 | E13: 11.41359 | F13: 19.573295 | G13: -0.41831 | H13: 28.252773 | I13: 32.167432 | J13: 23.720421
B14: 8 | C14: The Trossachs | D14: 4.95795 | E14: 11.41359 | F14: 11.898891 | G14: -0.41831 | H14: 23.1896248 | I14: 25.569403 | J14: 16.046017
B15: 9 | C15: Stirlingshire and Fife | D15: 3.234419 | E15: 9.786051 | F15: 10.951646 | G15: -0.41831 | H15: 19.4062666 | I15: 21.5965958 | J15: 14.4477564
B16: 10 | C16: South West Scotland | D16: 4.176293 | E16: 10.321155 | F16: 11.229025 | G16: -0.41831 | H16: 20.998127 | I16: 23.243932 | J16: 14.939177
B17: 11 | C17: Lothian and Borders | D17: 3.372113 | E17: 10.321155 | F17: 5.683776 | G17: -0.41831 | H17: 15.7577478 | I17: 16.894503 | J17: 9.393928
B18: 12 | C18: Solway and Cheviot | D18: 2.657155 | E18: 7.021104 | F18: 6.552912 | G18: -0.41831 | H18: 13.0980578 | I18: 14.4086402 | J18: 8.9430436
B19: 13 | C19: North East England | D19: 4.303098 | E19: 5.217606 | F19: 3.846663 | G19: -0.41831 | H19: 11.1362032 | I19: 11.9055358 | J19: 5.5153954
B20: 14 | C20: North Lancashire and The Lakes | D20: 2.169932 | E20: 5.217606 | F20: 1.856779 | G20: -0.41831 | H20: 7.41113 | I20: 7.7824858 | J20: 3.5255114
B21: 15 | C21: South Lancashire, Yorkshire and Humber | D21: 5.148616 | E21: 1.825281 | F21: 0.222027 | G21: -0.41831 | H21: 6.3681524 | I21: 6.4125578 | J21: 0.5338294
B22: 16 | C22: North Midlands and North Wales | D22: 4.115189 | E22: 0.746386 | F22: 0 | G22: -0.41831 | H22: 4.2939878 | I22: 4.2939878 | J22: -0.1197556
B23: 17 | C23: South Lincolnshire and North Norfolk | D23: 2.84843 | E23: 0.550082 | F23: 0 | G23: -0.41831 | H23: 2.8701856 | I23: 2.8701856 | J23: -0.1982772
B24: 18 | C24: Mid Wales and The Midlands | D24: 1.081314 | E24: 1.903261 | F24: 0 | G24: -0.41831 | H24: 2.1856128 | I24: 2.1856128 | J24: 0.3429944
B25: 19 | C25: Anglesey and Snowdon | D25: 5.487186 | E25: 0.910337 | F25: 0 | G25: -0.41831 | H25: 5.7971456 | I25: 5.7971456 | J25: -0.0541752
B26: 20 | C26: Pembrokeshire | D26: 7.086954 | E26: -4.426772 | F26: 0 | G26: -0.41831 | H26: 3.1272264 | I26: 3.1272264 | J26: -2.1890188
B27: 21 | C27: South Wales & Gloucester | D27: 3.059071 | E27: -5.726439 | F27: 0 | G27: -0.41831 | H27: -1.9403902 | I27: -1.9403902 | J27: -2.7088856
B28: 22 | C28: Cotswold | D28: 3.518495 | E28: 3.583833 | F28: -9.008442 | G28: -0.41831 | H28: -1.2395022 | I28: -3.0411906 | J28: -7.9932188
B29: 23 | C29: Central London | D29: -5.636848 | E29: 3.583833 | F29: -7.194942 | G29: -0.41831 | H29: -8.9440452 | I29: -10.3830336 | J29: -6.1797188
B30: 24 | C30: Essex and Kent | D30: -3.66404 | E30: 3.583833 | F30: 0 | G30: -0.41831 | H30: -1.2152836 | I30: -1.2152836 | J30: 1.0152232
B31: 25 | C31: Oxfordshire, Surrey and Sussex | D31: -0.785754 | E31: -1.702331 | F31: 0 | G31: -0.41831 | H31: -2.5659288 | I31: -2.5659288 | J31: -1.0992424
B32: 26 | C32: Somerset and Wessex | D32: -1.999625 | E32: -2.87447 | F32: 0 | G32: -0.41831 | H32: -4.717511 | I32: -4.717511 | J32: -1.568098
B33: 27 | C33: West Devon and Cornwall | D33: -1.850698 | E33: -7.524237 | F33: 0 | G33: -0.41831 | H33: -8.2883976 | I33: -8.2883976 | J33: -3.4280048

Sheet T3
A1: ="Table 3 - Generation wider tariffs in "&'T14'!D4 -> Table 3 - Generation wider tariffs in 2023/24 | I1: Return to Index
B4: Generation Tariffs | D4: System Peak Tariff | E4: Shared Year Round Tariff | F4: Not Shared Year Round Tariff | G4: Adjustment Tariff | H4: Conventional Carbon | I4: Conventional Low Carbon | J4: Intermittent
H5: 0.8 | I5: 0.8 | J5: 0.4
B6: Zone | C6: Zone Name | D6: (£/kW) | E6: (£/kW) | F6: (£/kW) | G6: (£/kW) | H6: Load Factor (£/kW) | I6: Load Factor (£/kW) | J6: Load Factor (£/kW)
B7: 1 | C7: North Scotland | D7: 3.926352 | E7: 19.053551 | F7: 16.817432 | G7: -0.326559 | H7: 32.2965794 | I7: 35.6600658 | J7: 24.1122934
B8: 2 | C8: East Aberdeenshire | D8: 4.409432 | E8: 10.937303 | F8: 16.817432 | G8: -0.326559 | H8: 26.286661 | I8: 29.6501474 | J8: 20.8657942
B9: 3 | C9: Western Highlands | D9: 3.46504 | E9: 16.903088 | F9: 15.814851 | G9: -0.326559 | H9: 29.3128322 | I9: 32.4758024 | J9: 22.2495272
B10: 4 | C10: Skye and Lochalsh | D10: -1.11627 | E10: 16.903088 | F10: 17.659419 | G10: -0.326559 | H10: 26.2071766 | I10: 29.7390604 | J10: 24.0940952
B11: 5 | C11: Eastern Grampian and Tayside | D11: 4.689969 | E11: 15.219081 | F11: 14.714387 | G11: -0.326559 | H11: 28.3101844 | I11: 31.2530618 | J11: 20.4754604
B12: 6 | C12: Central Grampian | D12: 4.290907 | E12: 13.95127 | F12: 13.649207 | G12: -0.326559 | H12: 26.0447296 | I12: 28.774571 | J12: 18.903156
B13: 7 | C13: Argyll | D13: 2.963497 | E13: 11.507858 | F13: 19.2391 | G13: -0.326559 | H13: 27.2345044 | I13: 31.0823244 | J13: 23.5156842
B14: 8 | C14: The Trossachs | D14: 3.927908 | E14: 11.507858 | F14: 11.543902 | G14: -0.326559 | H14: 22.042757 | I14: 24.3515374 | J14: 15.8204862
B15: 9 | C15: Stirlingshire and Fife | D15: 3.157849 | E15: 10.548077 | F15: 10.954935 | G15: -0.326559 | H15: 20.0336996 | I15: 22.2246866 | J15: 14.8476068
B16: 10 | C16: South West Scotland | D16: 2.650203 | E16: 11.146639 | F16: 11.28303 | G16: -0.326559 | H16: 20.2673792 | I16: 22.5239852 | J16: 15.4151266
B17: 11 | C17: Lothian and Borders | D17: 3.43976 | E17: 11.146639 | F17: 5.778372 | G17: -0.326559 | H17: 16.6532098 | I17: 17.8088842 | J17: 9.9104686
B18: 12 | C18: Solway and Cheviot | D18: 2.43545 | E18: 7.55643 | F18: 6.392746 | G18: -0.326559 | H18: 13.2682318 | I18: 14.546781 | J18: 9.088759
B19: 13 | C19: North East England | D19: 3.737022 | E19: 5.941341 | F19: 4.057827 | G19: -0.326559 | H19: 11.4097974 | I19: 12.2213628 | J19: 6.1078044
B20: 14 | C20: North Lancashire and The Lakes | D20: 2.239964 | E20: 5.941341 | F20: 0.909833 | G20: -0.326559 | H20: 7.3943442 | I20: 7.5763108 | J20: 2.9598104
B21: 15 | C21: South Lancashire, Yorkshire and Humber | D21: 4.395014 | E21: 2.408655 | F21: 0.385555 | G21: -0.326559 | H21: 6.303823 | I21: 6.380934 | J21: 1.022458
B22: 16 | C22: North Midlands and North Wales | D22: 3.57968 | E22: 0.702187 | F22: 0 | G22: -0.326559 | H22: 3.8148706 | I22: 3.8148706 | J22: -0.0456842
B23: 17 | C23: South Lincolnshire and North Norfolk | D23: 3.29041 | E23: 2.258326 | F23: 0 | G23: -0.326559 | H23: 4.7705118 | I23: 4.7705118 | J23: 0.5767714
B24: 18 | C24: Mid Wales and The Midlands | D24: -0.17718 | E24: 3.778724 | F24: 0 | G24: -0.326559 | H24: 2.5192402 | I24: 2.5192402 | J24: 1.1849306
B25: 19 | C25: Anglesey and Snowdon | D25: 5.985601 | E25: -0.001671 | F25: 0 | G25: -0.326559 | H25: 5.6577052 | I25: 5.6577052 | J25: -0.3272274
B26: 20 | C26: Pembrokeshire | D26: 6.751019 | E26: -6.544839 | F26: 0 | G26: -0.326559 | H26: 1.1885888 | I26: 1.1885888 | J26: -2.9444946
B27: 21 | C27: South Wales & Gloucester | D27: 2.149792 | E27: -7.626404 | F27: 0 | G27: -0.326559 | H27: -4.2778902 | I27: -4.2778902 | J27: -3.3771206
B28: 22 | C28: Cotswold | D28: 1.65431 | E28: 4.687983 | F28: -11.104644 | G28: -0.326559 | H28: -3.8055778 | I28: -6.0265066 | J28: -9.5560098
B29: 23 | C29: Central London | D29: -3.57382 | E29: 4.687983 | F29: -5.714256 | G29: -0.326559 | H29: -4.7213974 | I29: -5.8642486 | J29: -4.1656218
B30: 24 | C30: Essex and Kent | D30: -3.216885 | E30: 4.687983 | F30: 0 | G30: -0.326559 | H30: 0.2069424 | I30: 0.2069424 | J30: 1.5486342
B31: 25 | C31: Oxfordshire, Surrey and Sussex | D31: -0.549596 | E31: -1.121593 | F31: 0 | G31: -0.326559 | H31: -1.7734294 | I31: -1.7734294 | J31: -0.7751962
B32: 26 | C32: Somerset and Wessex | D32: -2.379481 | E32: -1.771293 | F32: 0 | G32: -0.326559 | H32: -4.1230744 | I32: -4.1230744 | J32: -1.0350762
B33: 27 | C33: West Devon and Cornwall | D33: -3.027382 | E33: -8.877761 | F33: 0 | G33: -0.326559 | H33: -10.4561498 | I33: -10.4561498 | J33: -3.8776634

Sheet T4
A1: ="Table 4 - Generation wider tariffs in "&'T14'!E4 -> Table 4 - Generation wider tariffs in 2024/25 | I1: Return to Index
B4: Generation Tariffs | D4: System Peak Tariff | E4: Shared Year Round Tariff | F4: Not Shared Year Round Tariff | G4: Adjustment Tariff | H4: Conventional Carbon | I4: Conventional Low Carbon | J4: Intermittent
H5: 0.8 | I5: 0.8 | J5: 0.4
B6: Zone | C6: Zone Name | D6: (£/kW) | E6: (£/kW) | F6: (£/kW) | G6: (£/kW) | H6: Load Factor (£/kW) | I6: Load Factor (£/kW) | J6: Load Factor (£/kW)
B7: 1 | C7: North Scotland | D7: 3.228161 | E7: 15.922323 | F7: 18.664738 | G7: -0.794656 | H7: 30.1031538 | I7: 33.8361014 | J7: 24.2390112
B8: 2 | C8: East Aberdeenshire | D8: 4.250525 | E8: 8.142102 | F8: 18.664738 | G8: -0.794656 | H8: 24.901341 | I8: 28.6342886 | J8: 21.1269228
B9: 3 | C9: Western Highlands | D9: 2.997512 | E9: 15.037159 | F9: 18.001873 | G9: -0.794656 | H9: 28.6340816 | I9: 32.2344562 | J9: 23.2220806
B10: 4 | C10: Skye and Lochalsh | D10: -1.680886 | E10: 15.037159 | F10: 19.912713 | G10: -0.794656 | H10: 25.4843556 | I10: 29.4668982 | J10: 25.1329206
B11: 5 | C11: Eastern Grampian and Tayside | D11: 4.387196 | E11: 13.717591 | F11: 16.721655 | G11: -0.794656 | H11: 27.9439368 | I11: 31.2882678 | J11: 21.4140354
B12: 6 | C12: Central Grampian | D12: 4.38806 | E12: 12.19859 | F12: 14.878152 | G12: -0.794656 | H12: 25.2547976 | I12: 28.230428 | J12: 18.962932
B13: 7 | C13: Argyll | D13: 3.619144 | E13: 10.347591 | F13: 19.779364 | G13: -0.794656 | H13: 26.926052 | I13: 30.8819248 | J13: 23.1237444
B14: 8 | C14: The Trossachs | D14: 3.564477 | E14: 10.347591 | F14: 12.592019 | G14: -0.794656 | H14: 21.121509 | I14: 23.6399128 | J14: 15.9363994
B15: 9 | C15: Stirlingshire and Fife | D15: 2.479158 | E15: 9.551003 | F15: 11.873878 | G15: -0.794656 | H15: 18.8244068 | I15: 21.1991824 | J15: 14.8996232
B16: 10 | C16: South West Scotlands | D16: 1.736632 | E16: 9.73131 | F16: 12.021562 | G16: -0.794656 | H16: 18.3442736 | I16: 20.748586 | J16: 15.11943
B17: 11 | C17: Lothian and Borders | D17: 3.374947 | E17: 9.73131 | F17: 7.170162 | G17: -0.794656 | H17: 16.1014686 | I17: 17.535501 | J17: 10.26803
B18: 12 | C18: Solway and Cheviot | D18: 1.302351 | E18: 6.614974 | F18: 6.280539 | G18: -0.794656 | H18: 10.8241054 | I18: 12.0802132 | J18: 8.1318726
B19: 13 | C19: North East England | D19: 3.356563 | E19: 5.652913 | F19: 4.427803 | G19: -0.794656 | H19: 10.6264798 | I19: 11.5120404 | J19: 5.8943122
B20: 14 | C20: North Lancashire and The Lakes | D20: 1.255895 | E20: 5.652913 | F20: 0.348719 | G20: -0.794656 | H20: 5.2625446 | I20: 5.3322884 | J20: 1.8152282
B21: 15 | C21: South Lancashire, Yorkshire and Humber | D21: 4.130216 | E21: 2.265403 | F21: 0.838674 | G21: -0.794656 | H21: 5.8188216 | I21: 5.9865564 | J21: 0.9501792
B22: 16 | C22: North Midlands and North Wales | D22: 3.367914 | E22: 0.325194 | F22: 0 | G22: -0.794656 | H22: 2.8334132 | I22: 2.8334132 | J22: -0.6645784
B23: 17 | C23: South Lincolnshire and North Norfolk | D23: 3.593202 | E23: 2.819282 | F23: 0 | G23: -0.794656 | H23: 5.0539716 | I23: 5.0539716 | J23: 0.3330568
B24: 18 | C24: Mid Wales and The Midlands | D24: 0.578087 | E24: 5.318168 | F24: 0 | G24: -0.794656 | H24: 4.0379654 | I24: 4.0379654 | J24: 1.3326112
B25: 19 | C25: Anglesey and Snowdon | D25: 5.922122 | E25: -0.516703 | F25: 0 | G25: -0.794656 | H25: 4.7141036 | I25: 4.7141036 | J25: -1.0013372
B26: 20 | C26: Pembrokeshire | D26: 7.810953 | E26: -6.402058 | F26: 0 | G26: -0.794656 | H26: 1.8946506 | I26: 1.8946506 | J26: -3.3554792
B27: 21 | C27: South Wales & Gloucester | D27: 2.887311 | E27: -7.011841 | F27: 0 | G27: -0.794656 | H27: -3.5168178 | I27: -3.5168178 | J27: -3.5993924
B28: 22 | C28: Cotswold | D28: 1.504294 | E28: 5.515635 | F28: -12.51782 | G28: -0.794656 | H28: -4.89211 | I28: -7.395674 | J28: -11.106222
B29: 23 | C29: Central London | D29: -3.646896 | E29: 5.515635 | F29: -6.278502 | G29: -0.794656 | H29: -5.0518456 | I29: -6.307546 | J29: -4.866904
B30: 24 | C30: Essex and Kent | D30: -2.755642 | E30: 5.515635 | F30: 0 | G30: -0.794656 | H30: 0.86221 | I30: 0.86221 | J30: 1.411598
B31: 25 | C31: Oxfordshire, Surrey and Sussex | D31: -0.433405 | E31: -0.690925 | F31: 0 | G31: -0.794656 | H31: -1.780801 | I31: -1.780801 | J31: -1.071026
B32: 26 | C32: Somerset and Wessex | D32: -1.843181 | E32: -1.45126 | F32: 0 | G32: -0.794656 | H32: -3.798845 | I32: -3.798845 | J32: -1.37516
B33: 27 | C33: West Devon and Cornwall | D33: -2.376864 | E33: -9.597891 | F33: 0 | G33: -0.794656 | H33: -10.8498328 | I33: -10.8498328 | J33: -4.6338124

Sheet T5
A1: ="Table 5 - Generation wider tariffs in "&'T14'!F4 -> Table 5 - Generation wider tariffs in 2025/26 | I1: Return to Index
B4: Generation Tariffs | D4: System Peak Tariff | E4: Shared Year Round Tariff | F4: Not Shared Year Round Tariff | G4: Adjustment Tariff | H4: Conventional Carbon | I4: Conventional Low Carbon | J4: Intermittent
H5: 0.8 | I5: 0.8 | J5: 0.4
B6: Zone | C6: Zone Name | D6: (£/kW) | E6: (£/kW) | F6: (£/kW) | G6: (£/kW) | H6: Load Factor (£/kW) | I6: Load Factor (£/kW) | J6: Load Factor (£/kW)
B7: 1 | C7: North Scotland | D7: 2.82264 | E7: 15.439825 | F7: 23.813798 | G7: -2.512418 | H7: 31.7131204 | I7: 36.47588 | J7: 27.47731
B8: 2 | C8: East Aberdeenshire | D8: 4.460623 | E8: 5.137691 | F8: 23.813798 | G8: -2.512418 | H8: 25.1093962 | I8: 29.8721558 | J8: 23.3564564
B9: 3 | C9: Western Highlands | D9: 2.210209 | E9: 13.519946 | F9: 21.61293 | G9: -2.512418 | H9: 27.8040918 | I9: 32.1266778 | J9: 24.5084904
B10: 4 | C10: Skye and Lochalsh | D10: 2.158312 | E10: 13.519946 | F10: 28.279425 | G10: -2.512418 | H10: 33.0853908 | I10: 38.7412758 | J10: 31.1749854
B11: 5 | C11: Eastern Grampian and Tayside | D11: 4.361992 | E11: 11.067239 | F11: 18.217074 | G11: -2.512418 | H11: 25.2770244 | I11: 28.9204392 | J11: 20.1315516
B12: 6 | C12: Central Grampian | D12: 3.819417 | E12: 11.003658 | F12: 18.086178 | G12: -2.512418 | H12: 24.5788678 | I12: 28.1961034 | J12: 19.9752232
B13: 7 | C13: Argyll | D13: 2.462464 | E13: 9.534307 | F13: 24.499386 | G13: -2.512418 | H13: 27.1770004 | I13: 32.0768776 | J13: 25.8006908
B14: 8 | C14: The Trossachs | D14: 3.42937 | E14: 9.534307 | F14: 15.02967 | G14: -2.512418 | H14: 20.5681336 | I14: 23.5740676 | J14: 16.3309748
B15: 9 | C15: Stirlingshire and Fife | D15: 2.187342 | E15: 9.050668 | F15: 14.252519 | G15: -2.512418 | H15: 18.3174736 | I15: 21.1679774 | J15: 15.3603682
B16: 10 | C16: South West Scotlands | D16: 1.963969 | E16: 9.286744 | F16: 14.602605 | G16: -2.512418 | H16: 18.5630302 | I16: 21.4835512 | J16: 15.8048846
B17: 11 | C17: Lothian and Borders | D17: 2.284228 | E17: 9.286744 | F17: 8.799999 | G17: -2.512418 | H17: 14.2412044 | I17: 16.0012042 | J17: 10.0022786
B18: 12 | C18: Solway and Cheviot | D18: 1.385205 | E18: 6.824575 | F18: 8.330643 | G18: -2.512418 | H18: 10.9969614 | I18: 12.66309 | J18: 8.548055
B19: 13 | C19: North East England | D19: 2.573081 | E19: 5.609119 | F19: 4.964097 | G19: -2.512418 | H19: 8.5192358 | I19: 9.5120552 | J19: 4.6953266
B20: 14 | C20: North Lancashire and The Lakes | D20: 1.217504 | E20: 5.609119 | F20: 1.665175 | G20: -2.512418 | H20: 4.5245212 | I20: 4.8575562 | J20: 1.3964046
B21: 15 | C21: South Lancashire, Yorkshire and Humber | D21: 2.924003 | E21: 3.209929 | F21: 1.043556 | G21: -2.512418 | H21: 3.814373 | I21: 4.0230842 | J21: -0.1848904
B22: 16 | C22: North Midlands and North Wales | D22: 2.748212 | E22: 1.38725 | F22: -0.53267 | G22: -2.512418 | H22: 0.919458 | I22: 0.812924 | J22: -2.490188
B23: 17 | C23: South Lincolnshire and North Norfolk | D23: 3.303801 | E23: 3.598764 | F23: -0.173638 | G23: -2.512418 | H23: 3.5314838 | I23: 3.4967562 | J23: -1.2465504
B24: 18 | C24: Mid Wales and The Midlands | D24: 0.789 | E24: 4.720846 | F24: -0.056685 | G24: -2.512418 | H24: 2.0079108 | I24: 1.9965738 | J24: -0.6807646
B25: 19 | C25: Anglesey and Snowdon | D25: 5.769546 | E25: 0.894868 | F25: -0.53267 | G25: -2.512418 | H25: 3.5468864 | I25: 3.4403524 | J25: -2.6871408
B26: 20 | C26: Pembrokeshire | D26: 8.083019 | E26: -6.602743 | F26: 0 | G26: -2.512418 | H26: 0.2884066 | I26: 0.2884066 | J26: -5.1535152
B27: 21 | C27: South Wales & Gloucester | D27: 3.07761 | E27: -7.035223 | F27: 0 | G27: -2.512418 | H27: -5.0629864 | I27: -5.0629864 | J27: -5.3265072
B28: 22 | C28: Cotswold | D28: 1.690451 | E28: 5.35553 | F28: -12.745878 | G28: -2.512418 | H28: -6.7342454 | I28: -9.283421 | J28: -13.116084
B29: 23 | C29: Central London | D29: -3.373643 | E29: 5.35553 | F29: -6.522345 | G29: -2.512418 | H29: -6.819513 | I29: -8.123982 | J29: -6.892551
B30: 24 | C30: Essex and Kent | D30: -2.50064 | E30: 5.35553 | F30: 0 | G30: -2.512418 | H30: -0.728634 | I30: -0.728634 | J30: -0.370206
B31: 25 | C31: Oxfordshire, Surrey and Sussex | D31: -0.163446 | E31: -0.878515 | F31: 0 | G31: -2.512418 | H31: -3.378676 | I31: -3.378676 | J31: -2.863824
B32: 26 | C32: Somerset and Wessex | D32: -1.668149 | E32: -1.942812 | F32: 0 | G32: -2.512418 | H32: -5.7348166 | I32: -5.7348166 | J32: -3.2895428
B33: 27 | C33: West Devon and Cornwall | D33: -2.236341 | E33: -9.873314 | F33: 0 | G33: -2.512418 | H33: -12.6474102 | I33: -12.6474102 | J33: -6.4617436

Sheet T6
A1: ="Table 6 - Generation wider tariffs in "&'T14'!G4 -> Table 6 - Generation wider tariffs in 2026/27 | I1: Return to Index
B4: Generation Tariffs | D4: System Peak Tariff | E4: Shared Year Round Tariff | F4: Not Shared Year Round Tariff | G4: Adjustment Tariff | H4: Conventional Carbon | I4: Conventional Low Carbon | J4: Intermittent
H5: 0.8 | I5: 0.8 | J5: 0.4
B6: Zone | C6: Zone Name | D6: (£/kW) | E6: (£/kW) | F6: (£/kW) | G6: (£/kW) | H6: Load Factor (£/kW) | I6: Load Factor (£/kW) | J6: Load Factor (£/kW)
B7: 1 | C7: North Scotland | D7: 2.192544 | E7: 14.73096 | F7: 25.308994 | G7: -3.537638 | H7: 30.6868692 | I7: 35.748668 | J7: 27.66374
B8: 2 | C8: East Aberdeenshire | D8: 4.110529 | E8: 5.600336 | F8: 25.308994 | G8: -3.537638 | H8: 25.300355 | I8: 30.3621538 | J8: 24.0114904
B9: 3 | C9: Western Highlands | D9: 2.496419 | E9: 13.259313 | F9: 23.141193 | G9: -3.537638 | H9: 28.0791858 | I9: 32.7074244 | J9: 24.9072802
B10: 4 | C10: Skye and Lochalsh | D10: 2.440073 | E10: 13.259313 | F10: 29.95219 | G10: -3.537638 | H10: 33.4716374 | I10: 39.4620754 | J10: 31.7182772
B11: 5 | C11: Eastern Grampian and Tayside | D11: 5.396491 | E11: 11.307145 | F11: 19.642321 | G11: -3.537638 | H11: 26.6184258 | I11: 30.54689 | J11: 20.627541
B12: 6 | C12: Central Grampian | D12: 4.485725 | E12: 11.053652 | F12: 19.005111 | G12: -3.537638 | H12: 24.9950974 | I12: 28.7961196 | J12: 19.8889338
B13: 7 | C13: Argyll | D13: 2.540652 | E13: 9.936303 | F13: 28.691888 | G13: -3.537638 | H13: 29.9055668 | I13: 35.6439444 | J13: 29.1287712
B14: 8 | C14: The Trossachs | D14: 3.414573 | E14: 9.936303 | F14: 16.172438 | G14: -3.537638 | H14: 20.7639278 | I14: 23.9984154 | J14: 16.6093212
B15: 9 | C15: Stirlingshire and Fife | D15: 2.092205 | E15: 9.449718 | F15: 15.194426 | G15: -3.537638 | H15: 18.2698822 | I15: 21.3087674 | J15: 15.4366752
B16: 10 | C16: South West Scotlands | D16: 2.040642 | E16: 9.573379 | F16: 15.424719 | G16: -3.537638 | H16: 18.5014824 | I16: 21.5864262 | J16: 15.7164326
B17: 11 | C17: Lothian and Borders | D17: 2.260813 | E17: 9.573379 | F17: 9.386909 | G17: -3.537638 | H17: 13.8914054 | I17: 15.7687872 | J17: 9.6786226
B18: 12 | C18: Solway and Cheviot | D18: 1.730944 | E18: 7.305795 | F18: 8.793905 | G18: -3.537638 | H18: 11.073066 | I18: 12.831847 | J18: 8.178585
B19: 13 | C19: North East England | D19: 2.821452 | E19: 6.14271 | F19: 5.10741 | G19: -3.537638 | H19: 8.28391 | I19: 9.305392 | J19: 4.026856
B20: 14 | C20: North Lancashire and The Lakes | D20: 1.400089 | E20: 6.14271 | F20: 2.202935 | G20: -3.537638 | H20: 4.538967 | I20: 4.979554 | J20: 1.122381
B21: 15 | C21: South Lancashire, Yorkshire and Humber | D21: 3.19401 | E21: 3.823162 | F21: 0.827448 | G21: -3.537638 | H21: 3.37686 | I21: 3.5423496 | J21: -1.1809252
B22: 16 | C22: North Midlands and North Wales | D22: 2.74348 | E22: 2.336582 | F22: -0.607261 | G22: -3.537638 | H22: 0.5892988 | I22: 0.4678466 | J22: -3.2102662
B23: 17 | C23: South Lincolnshire and North Norfolk | D23: 2.737284 | E23: 4.790389 | F23: -0.071117 | G23: -3.537638 | H23: 2.9750636 | I23: 2.9608402 | J23: -1.6925994
B24: 18 | C24: Mid Wales and The Midlands | D24: 0.875417 | E24: 4.675807 | F24: -0.090969 | G24: -3.537638 | H24: 1.0056494 | I24: 0.9874556 | J24: -1.7582842
B25: 19 | C25: Anglesey and Snowdon | D25: 5.606623 | E25: 2.16619 | F25: -0.607261 | G25: -3.537638 | H25: 3.3161282 | I25: 3.194676 | J25: -3.278423
B26: 20 | C26: Pembrokeshire | D26: 4.196418 | E26: -10.158788 | F26: 0 | G26: -3.537638 | H26: -7.4682504 | I26: -7.4682504 | J26: -7.6011532
B27: 21 | C27: South Wales & Gloucester | D27: 1.635838 | E27: -9.141854 | F27: 0 | G27: -3.537638 | H27: -9.2152832 | I27: -9.2152832 | J27: -7.1943796
B28: 22 | C28: Cotswold | D28: -0.02275 | E28: 5.268761 | F28: -14.070072 | G28: -3.537638 | H28: -10.6014368 | I28: -13.4154512 | J28: -15.5002056
B29: 23 | C29: Central London | D29: -2.810144 | E29: 5.268761 | F29: -6.379246 | G29: -3.537638 | H29: -7.23617 | I29: -8.5120192 | J29: -7.8093796
B30: 24 | C30: Essex and Kent | D30: -2.104877 | E30: 5.268761 | F30: 0 | G30: -3.537638 | H30: -1.4275062 | I30: -1.4275062 | J30: -1.4301336
B31: 25 | C31: Oxfordshire, Surrey and Sussex | D31: -0.119674 | E31: -1.229576 | F31: 0 | G31: -3.537638 | H31: -4.6409728 | I31: -4.6409728 | J31: -4.0294684
B32: 26 | C32: Somerset and Wessex | D32: -1.632621 | E32: -2.596698 | F32: 0 | G32: -3.537638 | H32: -7.2476174 | I32: -7.2476174 | J32: -4.5763172
B33: 27 | C33: West Devon and Cornwall | D33: -2.090091 | E33: -10.962696 | F33: 0 | G33: -3.537638 | H33: -14.3978858 | I33: -14.3978858 | J33: -7.9227164

Sheet T7 & F1
A1: Table 7 - Comparison of Conventional Carbon (80%) tariffs | H1: Return to Index | J1: Figure 1 – Wider tariffs for a Conventional Carbon 80% generator
B4: Wider Tariffs for a Conventional Carbon 80% Generator | D4: ='T14'!C4 -> 2022/23 | E4: ='T14'!D4 -> 2023/24 | F4: ='T14'!E4 -> 2024/25 | G4: ='T14'!F4 -> 2025/26 | H4: ='T14'!G4 -> 2026/27
B5: Zone | C5: Zone Name | D5: (£/kW) | E5: (£/kW) | F5: (£/kW) | G5: (£/kW) | H5: (£/kW)
B6: 1 | C6: North Scotland | D6: ='T2'!H7 -> 31.164932 | E6: ='T3'!H7 -> 32.2965794 | F6: ='T4'!H7 -> 30.1031538 | G6: ='T5'!H7 -> 31.7131204 | H6: ='T6'!H7 -> 30.6868692 | K6: `
B7: 2 | C7: East Aberdeenshire | D7: ='T2'!H8 -> 25.6744366 | E7: ='T3'!H8 -> 26.286661 | F7: ='T4'!H8 -> 24.901341 | G7: ='T5'!H8 -> 25.1093962 | H7: ='T6'!H8 -> 25.300355
B8: 3 | C8: Western Highlands | D8: ='T2'!H9 -> 29.2930432 | E8: ='T3'!H9 -> 29.3128322 | F8: ='T4'!H9 -> 28.6340816 | G8: ='T5'!H9 -> 27.8040918 | H8: ='T6'!H9 -> 28.0791858
B9: 4 | C9: Skye and Lochalsh | D9: ='T2'!H10 -> 26.2511912 | E9: ='T3'!H10 -> 26.2071766 | F9: ='T4'!H10 -> 25.4843556 | G9: ='T5'!H10 -> 33.0853908 | H9: ='T6'!H10 -> 33.4716374
B10: 5 | C10: Eastern Grampian and Tayside | D10: ='T2'!H11 -> 28.1415948 | E10: ='T3'!H11 -> 28.3101844 | F10: ='T4'!H11 -> 27.9439368 | G10: ='T5'!H11 -> 25.2770244 | H10: ='T6'!H11 -> 26.6184258
B11: 6 | C11: Central Grampian | D11: ='T2'!H12 -> 26.8132326 | E11: ='T3'!H12 -> 26.0447296 | F11: ='T4'!H12 -> 25.2547976 | G11: ='T5'!H12 -> 24.5788678 | H11: ='T6'!H12 -> 24.9950974
B12: 7 | C12: Argyll | D12: ='T2'!H13 -> 28.252773 | E12: ='T3'!H13 -> 27.2345044 | F12: ='T4'!H13 -> 26.926052 | G12: ='T5'!H13 -> 27.1770004 | H12: ='T6'!H13 -> 29.9055668
B13: 8 | C13: The Trossachs | D13: ='T2'!H14 -> 23.1896248 | E13: ='T3'!H14 -> 22.042757 | F13: ='T4'!H14 -> 21.121509 | G13: ='T5'!H14 -> 20.5681336 | H13: ='T6'!H14 -> 20.7639278
B14: 9 | C14: Stirlingshire and Fife | D14: ='T2'!H15 -> 19.4062666 | E14: ='T3'!H15 -> 20.0336996 | F14: ='T4'!H15 -> 18.8244068 | G14: ='T5'!H15 -> 18.3174736 | H14: ='T6'!H15 -> 18.2698822
B15: 10 | C15: South West Scotland | D15: ='T2'!H16 -> 20.998127 | E15: ='T3'!H16 -> 20.2673792 | F15: ='T4'!H16 -> 18.3442736 | G15: ='T5'!H16 -> 18.5630302 | H15: ='T6'!H16 -> 18.5014824
B16: 11 | C16: Lothian and Borders | D16: ='T2'!H17 -> 15.7577478 | E16: ='T3'!H17 -> 16.6532098 | F16: ='T4'!H17 -> 16.1014686 | G16: ='T5'!H17 -> 14.2412044 | H16: ='T6'!H17 -> 13.8914054
B17: 12 | C17: Solway and Cheviot | D17: ='T2'!H18 -> 13.0980578 | E17: ='T3'!H18 -> 13.2682318 | F17: ='T4'!H18 -> 10.8241054 | G17: ='T5'!H18 -> 10.9969614 | H17: ='T6'!H18 -> 11.073066
B18: 13 | C18: North East England | D18: ='T2'!H19 -> 11.1362032 | E18: ='T3'!H19 -> 11.4097974 | F18: ='T4'!H19 -> 10.6264798 | G18: ='T5'!H19 -> 8.5192358 | H18: ='T6'!H19 -> 8.28391
B19: 14 | C19: North Lancashire and The Lakes | D19: ='T2'!H20 -> 7.41113 | E19: ='T3'!H20 -> 7.3943442 | F19: ='T4'!H20 -> 5.2625446 | G19: ='T5'!H20 -> 4.5245212 | H19: ='T6'!H20 -> 4.538967
B20: 15 | C20: South Lancashire, Yorkshire and Humber | D20: ='T2'!H21 -> 6.3681524 | E20: ='T3'!H21 -> 6.303823 | F20: ='T4'!H21 -> 5.8188216 | G20: ='T5'!H21 -> 3.814373 | H20: ='T6'!H21 -> 3.37686
B21: 16 | C21: North Midlands and North Wales | D21: ='T2'!H22 -> 4.2939878 | E21: ='T3'!H22 -> 3.8148706 | F21: ='T4'!H22 -> 2.8334132 | G21: ='T5'!H22 -> 0.919458 | H21: ='T6'!H22 -> 0.5892988
B22: 17 | C22: South Lincolnshire and North Norfolk | D22: ='T2'!H23 -> 2.8701856 | E22: ='T3'!H23 -> 4.7705118 | F22: ='T4'!H23 -> 5.0539716 | G22: ='T5'!H23 -> 3.5314838 | H22: ='T6'!H23 -> 2.9750636
B23: 18 | C23: Mid Wales and The Midlands | D23: ='T2'!H24 -> 2.1856128 | E23: ='T3'!H24 -> 2.5192402 | F23: ='T4'!H24 -> 4.0379654 | G23: ='T5'!H24 -> 2.0079108 | H23: ='T6'!H24 -> 1.0056494
B24: 19 | C24: Anglesey and Snowdon | D24: ='T2'!H25 -> 5.7971456 | E24: ='T3'!H25 -> 5.6577052 | F24: ='T4'!H25 -> 4.7141036 | G24: ='T5'!H25 -> 3.5468864 | H24: ='T6'!H25 -> 3.3161282
B25: 20 | C25: Pembrokeshire | D25: ='T2'!H26 -> 3.1272264 | E25: ='T3'!H26 -> 1.1885888 | F25: ='T4'!H26 -> 1.8946506 | G25: ='T5'!H26 -> 0.2884066 | H25: ='T6'!H26 -> -7.4682504
B26: 21 | C26: South Wales & Gloucester | D26: ='T2'!H27 -> -1.9403902 | E26: ='T3'!H27 -> -4.2778902 | F26: ='T4'!H27 -> -3.5168178 | G26: ='T5'!H27 -> -5.0629864 | H26: ='T6'!H27 -> -9.2152832
B27: 22 | C27: Cotswold | D27: ='T2'!H28 -> -1.2395022 | E27: ='T3'!H28 -> -3.8055778 | F27: ='T4'!H28 -> -4.89211 | G27: ='T5'!H28 -> -6.7342454 | H27: ='T6'!H28 -> -10.6014368
B28: 23 | C28: Central London | D28: ='T2'!H29 -> -8.9440452 | E28: ='T3'!H29 -> -4.7213974 | F28: ='T4'!H29 -> -5.0518456 | G28: ='T5'!H29 -> -6.819513 | H28: ='T6'!H29 -> -7.23617
B29: 24 | C29: Essex and Kent | D29: ='T2'!H30 -> -1.2152836 | E29: ='T3'!H30 -> 0.2069424 | F29: ='T4'!H30 -> 0.86221 | G29: ='T5'!H30 -> -0.728634 | H29: ='T6'!H30 -> -1.4275062
B30: 25 | C30: Oxfordshire, Surrey and Sussex | D30: ='T2'!H31 -> -2.5659288 | E30: ='T3'!H31 -> -1.7734294 | F30: ='T4'!H31 -> -1.780801 | G30: ='T5'!H31 -> -3.378676 | H30: ='T6'!H31 -> -4.6409728
B31: 26 | C31: Somerset and Wessex | D31: ='T2'!H32 -> -4.717511 | E31: ='T3'!H32 -> -4.1230744 | F31: ='T4'!H32 -> -3.798845 | G31: ='T5'!H32 -> -5.7348166 | H31: ='T6'!H32 -> -7.2476174
B32: 27 | C32: West Devon and Cornwall | D32: ='T2'!H33 -> -8.2883976 | E32: ='T3'!H33 -> -10.4561498 | F32: ='T4'!H33 -> -10.8498328 | G32: ='T5'!H33 -> -12.6474102 | H32: ='T6'!H33 -> -14.3978858

Sheet T8 & F2
A1: Table 8 - Comparison of Conventional Low Carbon 80% tariffs | H1: Return to Index | J1: Figure 2 - Wider tariffs for a Conventional Low Carbon 80% generator
B4: Wider Tariffs for a Conventional Low Carbon 80% Generator | D4: ='T14'!C4 -> 2022/23 | E4: ='T14'!D4 -> 2023/24 | F4: ='T14'!E4 -> 2024/25 | G4: ='T14'!F4 -> 2025/26 | H4: ='T14'!G4 -> 2026/27
B5: Zone | C5: Zone Name | D5: (£/kW) | E5: (£/kW) | F5: (£/kW) | G5: (£/kW) | H5: (£/kW)
B6: 1 | C6: North Scotland | D6: ='T2'!I7 -> 34.4659708 | E6: ='T3'!I7 -> 35.6600658 | F6: ='T4'!I7 -> 33.8361014 | G6: ='T5'!I7 -> 36.47588 | H6: ='T6'!I7 -> 35.748668
B7: 2 | C7: East Aberdeenshire | D7: ='T2'!I8 -> 28.9754754 | E7: ='T3'!I8 -> 29.6501474 | F7: ='T4'!I8 -> 28.6342886 | G7: ='T5'!I8 -> 29.8721558 | H7: ='T6'!I8 -> 30.3621538
B8: 3 | C8: Western Highlands | D8: ='T2'!I9 -> 32.4560478 | E8: ='T3'!I9 -> 32.4758024 | F8: ='T4'!I9 -> 32.2344562 | G8: ='T5'!I9 -> 32.1266778 | H8: ='T6'!I9 -> 32.7074244
B9: 4 | C9: Skye and Lochalsh | D9: ='T2'!I10 -> 29.7746578 | E9: ='T3'!I10 -> 29.7390604 | F9: ='T4'!I10 -> 29.4668982 | G9: ='T5'!I10 -> 38.7412758 | H9: ='T6'!I10 -> 39.4620754
B10: 5 | C10: Eastern Grampian and Tayside | D10: ='T2'!I11 -> 31.0830694 | E10: ='T3'!I11 -> 31.2530618 | F10: ='T4'!I11 -> 31.2882678 | G10: ='T5'!I11 -> 28.9204392 | H10: ='T6'!I11 -> 30.54689
B11: 6 | C11: Central Grampian | D11: ='T2'!I12 -> 29.5797648 | E11: ='T3'!I12 -> 28.774571 | F11: ='T4'!I12 -> 28.230428 | G11: ='T5'!I12 -> 28.1961034 | H11: ='T6'!I12 -> 28.7961196
B12: 7 | C12: Argyll | D12: ='T2'!I13 -> 32.167432 | E12: ='T3'!I13 -> 31.0823244 | F12: ='T4'!I13 -> 30.8819248 | G12: ='T5'!I13 -> 32.0768776 | H12: ='T6'!I13 -> 35.6439444
B13: 8 | C13: The Trossachs | D13: ='T2'!I14 -> 25.569403 | E13: ='T3'!I14 -> 24.3515374 | F13: ='T4'!I14 -> 23.6399128 | G13: ='T5'!I14 -> 23.5740676 | H13: ='T6'!I14 -> 23.9984154
B14: 9 | C14: Stirlingshire and Fife | D14: ='T2'!I15 -> 21.5965958 | E14: ='T3'!I15 -> 22.2246866 | F14: ='T4'!I15 -> 21.1991824 | G14: ='T5'!I15 -> 21.1679774 | H14: ='T6'!I15 -> 21.3087674
B15: 10 | C15: South West Scotland | D15: ='T2'!I16 -> 23.243932 | E15: ='T3'!I16 -> 22.5239852 | F15: ='T4'!I16 -> 20.748586 | G15: ='T5'!I16 -> 21.4835512 | H15: ='T6'!I16 -> 21.5864262
B16: 11 | C16: Lothian and Borders | D16: ='T2'!I17 -> 16.894503 | E16: ='T3'!I17 -> 17.8088842 | F16: ='T4'!I17 -> 17.535501 | G16: ='T5'!I17 -> 16.0012042 | H16: ='T6'!I17 -> 15.7687872
B17: 12 | C17: Solway and Cheviot | D17: ='T2'!I18 -> 14.4086402 | E17: ='T3'!I18 -> 14.546781 | F17: ='T4'!I18 -> 12.0802132 | G17: ='T5'!I18 -> 12.66309 | H17: ='T6'!I18 -> 12.831847
B18: 13 | C18: North East England | D18: ='T2'!I19 -> 11.9055358 | E18: ='T3'!I19 -> 12.2213628 | F18: ='T4'!I19 -> 11.5120404 | G18: ='T5'!I19 -> 9.5120552 | H18: ='T6'!I19 -> 9.305392
B19: 14 | C19: North Lancashire and The Lakes | D19: ='T2'!I20 -> 7.7824858 | E19: ='T3'!I20 -> 7.5763108 | F19: ='T4'!I20 -> 5.3322884 | G19: ='T5'!I20 -> 4.8575562 | H19: ='T6'!I20 -> 4.979554
B20: 15 | C20: South Lancashire, Yorkshire and Humber | D20: ='T2'!I21 -> 6.4125578 | E20: ='T3'!I21 -> 6.380934 | F20: ='T4'!I21 -> 5.9865564 | G20: ='T5'!I21 -> 4.0230842 | H20: ='T6'!I21 -> 3.5423496
B21: 16 | C21: North Midlands and North Wales | D21: ='T2'!I22 -> 4.2939878 | E21: ='T3'!I22 -> 3.8148706 | F21: ='T4'!I22 -> 2.8334132 | G21: ='T5'!I22 -> 0.812924 | H21: ='T6'!I22 -> 0.4678466
B22: 17 | C22: South Lincolnshire and North Norfolk | D22: ='T2'!I23 -> 2.8701856 | E22: ='T3'!I23 -> 4.7705118 | F22: ='T4'!I23 -> 5.0539716 | G22: ='T5'!I23 -> 3.4967562 | H22: ='T6'!I23 -> 2.9608402
B23: 18 | C23: Mid Wales and The Midlands | D23: ='T2'!I24 -> 2.1856128 | E23: ='T3'!I24 -> 2.5192402 | F23: ='T4'!I24 -> 4.0379654 | G23: ='T5'!I24 -> 1.9965738 | H23: ='T6'!I24 -> 0.9874556
B24: 19 | C24: Anglesey and Snowdon | D24: ='T2'!I25 -> 5.7971456 | E24: ='T3'!I25 -> 5.6577052 | F24: ='T4'!I25 -> 4.7141036 | G24: ='T5'!I25 -> 3.4403524 | H24: ='T6'!I25 -> 3.194676
B25: 20 | C25: Pembrokeshire | D25: ='T2'!I26 -> 3.1272264 | E25: ='T3'!I26 -> 1.1885888 | F25: ='T4'!I26 -> 1.8946506 | G25: ='T5'!I26 -> 0.2884066 | H25: ='T6'!I26 -> -7.4682504
B26: 21 | C26: South Wales & Gloucester | D26: ='T2'!I27 -> -1.9403902 | E26: ='T3'!I27 -> -4.2778902 | F26: ='T4'!I27 -> -3.5168178 | G26: ='T5'!I27 -> -5.0629864 | H26: ='T6'!I27 -> -9.2152832
B27: 22 | C27: Cotswold | D27: ='T2'!I28 -> -3.0411906 | E27: ='T3'!I28 -> -6.0265066 | F27: ='T4'!I28 -> -7.395674 | G27: ='T5'!I28 -> -9.283421 | H27: ='T6'!I28 -> -13.4154512
B28: 23 | C28: Central London | D28: ='T2'!I29 -> -10.3830336 | E28: ='T3'!I29 -> -5.8642486 | F28: ='T4'!I29 -> -6.307546 | G28: ='T5'!I29 -> -8.123982 | H28: ='T6'!I29 -> -8.5120192
B29: 24 | C29: Essex and Kent | D29: ='T2'!I30 -> -1.2152836 | E29: ='T3'!I30 -> 0.2069424 | F29: ='T4'!I30 -> 0.86221 | G29: ='T5'!I30 -> -0.728634 | H29: ='T6'!I30 -> -1.4275062
B30: 25 | C30: Oxfordshire, Surrey and Sussex | D30: ='T2'!I31 -> -2.5659288 | E30: ='T3'!I31 -> -1.7734294 | F30: ='T4'!I31 -> -1.780801 | G30: ='T5'!I31 -> -3.378676 | H30: ='T6'!I31 -> -4.6409728
B31: 26 | C31: Somerset and Wessex | D31: ='T2'!I32 -> -4.717511 | E31: ='T3'!I32 -> -4.1230744 | F31: ='T4'!I32 -> -3.798845 | G31: ='T5'!I32 -> -5.7348166 | H31: ='T6'!I32 -> -7.2476174
B32: 27 | C32: West Devon and Cornwall | D32: ='T2'!I33 -> -8.2883976 | E32: ='T3'!I33 -> -10.4561498 | F32: ='T4'!I33 -> -10.8498328 | G32: ='T5'!I33 -> -12.6474102 | H32: ='T6'!I33 -> -14.3978858

Sheet T9 & F3
A1: Table 9 - Comparison of Intermittent (40%) tariffs | H1: Return to Index | J1: Figure 3 - Wider tariffs for an Intermittent 40% load factor generator
B4: Wider Tariffs for an Intermittent 40% Generator | D4: ='T14'!C4 -> 2022/23 | E4: ='T14'!D4 -> 2023/24 | F4: ='T14'!E4 -> 2024/25 | G4: ='T14'!F4 -> 2025/26 | H4: ='T14'!G4 -> 2026/27
B5: Zone | C5: Zone Name | D5: (£/kW) | E5: (£/kW) | F5: (£/kW) | G5: (£/kW) | H5: (£/kW)
B6: 1 | C6: North Scotland | D6: ='T2'!J7 -> 23.4055364 | E6: ='T3'!J7 -> 24.1122934 | F6: ='T4'!J7 -> 24.2390112 | G6: ='T5'!J7 -> 27.47731 | H6: ='T6'!J7 -> 27.66374
B7: 2 | C7: East Aberdeenshire | D7: ='T2'!J8 -> 20.1853012 | E7: ='T3'!J8 -> 20.8657942 | F7: ='T4'!J8 -> 21.1269228 | G7: ='T5'!J8 -> 23.3564564 | H7: ='T6'!J8 -> 24.0114904
B8: 3 | C8: Western Highlands | D8: ='T2'!J9 -> 22.0660554 | E8: ='T3'!J9 -> 22.2495272 | F8: ='T4'!J9 -> 23.2220806 | G8: ='T5'!J9 -> 24.5084904 | H8: ='T6'!J9 -> 24.9072802
B9: 4 | C9: Skye and Lochalsh | D9: ='T2'!J10 -> 23.8683654 | E9: ='T3'!J10 -> 24.0940952 | F9: ='T4'!J10 -> 25.1329206 | G9: ='T5'!J10 -> 31.1749854 | H9: ='T6'!J10 -> 31.7182772
B10: 5 | C10: Eastern Grampian and Tayside | D10: ='T2'!J11 -> 20.2349662 | E10: ='T3'!J11 -> 20.4754604 | F10: ='T4'!J11 -> 21.4140354 | G10: ='T5'!J11 -> 20.1315516 | H10: ='T6'!J11 -> 20.627541
B11: 6 | C11: Central Grampian | D11: ='T2'!J12 -> 18.9224214 | E11: ='T3'!J12 -> 18.903156 | F11: ='T4'!J12 -> 18.962932 | G11: ='T5'!J12 -> 19.9752232 | H11: ='T6'!J12 -> 19.8889338
B12: 7 | C12: Argyll | D12: ='T2'!J13 -> 23.720421 | E12: ='T3'!J13 -> 23.5156842 | F12: ='T4'!J13 -> 23.1237444 | G12: ='T5'!J13 -> 25.8006908 | H12: ='T6'!J13 -> 29.1287712
B13: 8 | C13: The Trossachs | D13: ='T2'!J14 -> 16.046017 | E13: ='T3'!J14 -> 15.8204862 | F13: ='T4'!J14 -> 15.9363994 | G13: ='T5'!J14 -> 16.3309748 | H13: ='T6'!J14 -> 16.6093212
B14: 9 | C14: Stirlingshire and Fife | D14: ='T2'!J15 -> 14.4477564 | E14: ='T3'!J15 -> 14.8476068 | F14: ='T4'!J15 -> 14.8996232 | G14: ='T5'!J15 -> 15.3603682 | H14: ='T6'!J15 -> 15.4366752
B15: 10 | C15: South West Scotland | D15: ='T2'!J16 -> 14.939177 | E15: ='T3'!J16 -> 15.4151266 | F15: ='T4'!J16 -> 15.11943 | G15: ='T5'!J16 -> 15.8048846 | H15: ='T6'!J16 -> 15.7164326
B16: 11 | C16: Lothian and Borders | D16: ='T2'!J17 -> 9.393928 | E16: ='T3'!J17 -> 9.9104686 | F16: ='T4'!J17 -> 10.26803 | G16: ='T5'!J17 -> 10.0022786 | H16: ='T6'!J17 -> 9.6786226
B17: 12 | C17: Solway and Cheviot | D17: ='T2'!J18 -> 8.9430436 | E17: ='T3'!J18 -> 9.088759 | F17: ='T4'!J18 -> 8.1318726 | G17: ='T5'!J18 -> 8.548055 | H17: ='T6'!J18 -> 8.178585
B18: 13 | C18: North East England | D18: ='T2'!J19 -> 5.5153954 | E18: ='T3'!J19 -> 6.1078044 | F18: ='T4'!J19 -> 5.8943122 | G18: ='T5'!J19 -> 4.6953266 | H18: ='T6'!J19 -> 4.026856
B19: 14 | C19: North Lancashire and The Lakes | D19: ='T2'!J20 -> 3.5255114 | E19: ='T3'!J20 -> 2.9598104 | F19: ='T4'!J20 -> 1.8152282 | G19: ='T5'!J20 -> 1.3964046 | H19: ='T6'!J20 -> 1.122381
B20: 15 | C20: South Lancashire, Yorkshire and Humber | D20: ='T2'!J21 -> 0.5338294 | E20: ='T3'!J21 -> 1.022458 | F20: ='T4'!J21 -> 0.9501792 | G20: ='T5'!J21 -> -0.1848904 | H20: ='T6'!J21 -> -1.1809252
B21: 16 | C21: North Midlands and North Wales | D21: ='T2'!J22 -> -0.1197556 | E21: ='T3'!J22 -> -0.0456842 | F21: ='T4'!J22 -> -0.6645784 | G21: ='T5'!J22 -> -2.490188 | H21: ='T6'!J22 -> -3.2102662
B22: 17 | C22: South Lincolnshire and North Norfolk | D22: ='T2'!J23 -> -0.1982772 | E22: ='T3'!J23 -> 0.5767714 | F22: ='T4'!J23 -> 0.3330568 | G22: ='T5'!J23 -> -1.2465504 | H22: ='T6'!J23 -> -1.6925994
B23: 18 | C23: Mid Wales and The Midlands | D23: ='T2'!J24 -> 0.3429944 | E23: ='T3'!J24 -> 1.1849306 | F23: ='T4'!J24 -> 1.3326112 | G23: ='T5'!J24 -> -0.6807646 | H23: ='T6'!J24 -> -1.7582842
B24: 19 | C24: Anglesey and Snowdon | D24: ='T2'!J25 -> -0.0541752 | E24: ='T3'!J25 -> -0.3272274 | F24: ='T4'!J25 -> -1.0013372 | G24: ='T5'!J25 -> -2.6871408 | H24: ='T6'!J25 -> -3.278423
B25: 20 | C25: Pembrokeshire | D25: ='T2'!J26 -> -2.1890188 | E25: ='T3'!J26 -> -2.9444946 | F25: ='T4'!J26 -> -3.3554792 | G25: ='T5'!J26 -> -5.1535152 | H25: ='T6'!J26 -> -7.6011532
B26: 21 | C26: South Wales & Gloucester | D26: ='T2'!J27 -> -2.7088856 | E26: ='T3'!J27 -> -3.3771206 | F26: ='T4'!J27 -> -3.5993924 | G26: ='T5'!J27 -> -5.3265072 | H26: ='T6'!J27 -> -7.1943796
B27: 22 | C27: Cotswold | D27: ='T2'!J28 -> -7.9932188 | E27: ='T3'!J28 -> -9.5560098 | F27: ='T4'!J28 -> -11.106222 | G27: ='T5'!J28 -> -13.116084 | H27: ='T6'!J28 -> -15.5002056
B28: 23 | C28: Central London | D28: ='T2'!J29 -> -6.1797188 | E28: ='T3'!J29 -> -4.1656218 | F28: ='T4'!J29 -> -4.866904 | G28: ='T5'!J29 -> -6.892551 | H28: ='T6'!J29 -> -7.8093796
B29: 24 | C29: Essex and Kent | D29: ='T2'!J30 -> 1.0152232 | E29: ='T3'!J30 -> 1.5486342 | F29: ='T4'!J30 -> 1.411598 | G29: ='T5'!J30 -> -0.370206 | H29: ='T6'!J30 -> -1.4301336
B30: 25 | C30: Oxfordshire, Surrey and Sussex | D30: ='T2'!J31 -> -1.0992424 | E30: ='T3'!J31 -> -0.7751962 | F30: ='T4'!J31 -> -1.071026 | G30: ='T5'!J31 -> -2.863824 | H30: ='T6'!J31 -> -4.0294684
B31: 26 | C31: Somerset and Wessex | D31: ='T2'!J32 -> -1.568098 | E31: ='T3'!J32 -> -1.0350762 | F31: ='T4'!J32 -> -1.37516 | G31: ='T5'!J32 -> -3.2895428 | H31: ='T6'!J32 -> -4.5763172
B32: 27 | C32: West Devon and Cornwall | D32: ='T2'!J33 -> -3.4280048 | E32: ='T3'!J33 -> -3.8776634 | F32: ='T4'!J33 -> -4.6338124 | G32: ='T5'!J33 -> -6.4617436 | H32: ='T6'!J33 -> -7.9227164

Sheet T10
A1: ="Table 10 – Local substation tariffs for "&'T14'!C4 -> Table 10 – Local substation tariffs for 2022/23 | H1: Return to Index
B4: Substation Rating | C4: Connection Type | D4: Local Substation Tariff (£/kW)
D5: 132kV | E5: 275kV | F5: 400kV
B6: <1320 MW | C6: No redundancy | D6: 0.148953 | E6: 0.07448 | F6: 0.051372
B7: <1320 MW | C7: Redundancy | D7: 0.313861 | E7: 0.159415 | F7: 0.113195
B8: >=1320 MW | C8: No redundancy | D8: 0 | E8: 0.218821 | F8: 0.155794
B9: >=1320 MW | C9: Redundancy | D9: 0 | E9: 0.329287 | F9: 0.236838

Sheet T11
A1: Table 11 – Onshore local circuit tariffs | G1: Return to Index
B4: Connection Point | C4: 2022/23 | D4: 2023/24 | E4: 2024/25 | F4: 2025/26 | G4: 2026/27 | J4: ='T14'!C4 -> 2022/23 | K4: ='T14'!K4 -> 0 | M4: ='T14'!D4 -> 2023/24 | P4: ='T14'!E4 -> 2024/25 | Q4: ='T14'!N4 -> 0 | S4: ='T14'!F4 -> 2025/26 | V4: ='T14'!G4 -> 2026/27 | W4: ='T14'!Q4 -> 0
C5: (£/kW) | D5: (£/kW) | E5: (£/kW) | F5: (£/kW) | G5: (£/kW) | J5: Connection Point | K5: (£/kW) | M5: Connection Point | N5: (£/kW) | P5: Connection Point | Q5: (£/kW) | S5: Connection Point | T5: (£/kW) | V5: Connection Point | W5: (£/kW)
B6: Aberarder | C6: =IF(ISNA(MATCH(B6,J:J,0)),"",INDEX(K:K,MATCH(B6,J:J,0))) ->  | D6: =IF(ISNA(MATCH(B6,M:M,0)),"",INDEX(N:N,MATCH(B6,M:M,0))) ->  | E6: =IF(ISNA(MATCH(B6,P:P,0)),"",INDEX(Q:Q,MATCH(B6,P:P,0))) -> 1.78222876 | F6: =IF(ISNA(MATCH(B6,S:S,0)),"",INDEX(T:T,MATCH(B6,S:S,0))) -> 1.817873335 | G6: =IF(ISNA(MATCH(B6,V:V,0)),"",INDEX(W:W,MATCH(B6,V:V,0))) -> 1.85365966 | J6: Achruach | K6: 4.34586575 | M6: Achruach | N6: 4.43268949 | P6: Achruach | Q6: -2.691973359 | S6: Achruach | T6: -2.745967146 | V6: Achruach | W6: -2.800376757
B7: Aberdeen Bay | C7: =IF(ISNA(MATCH(B7,J:J,0)),"",INDEX(K:K,MATCH(B7,J:J,0))) -> 2.638818553 | D7: 2.691594924 | E7: =IF(ISNA(MATCH(B7,P:P,0)),"",INDEX(Q:Q,MATCH(B7,P:P,0))) -> 2.745426823 | F7: =IF(ISNA(MATCH(B7,S:S,0)),"",INDEX(T:T,MATCH(B7,S:S,0))) -> 2.800335359 | G7: =IF(ISNA(MATCH(B7,V:V,0)),"",INDEX(W:W,MATCH(B7,V:V,0))) -> 2.855462253 | J7: Aigas | K7: 0.6769668159 | M7: Aigas | N7: 0.6905061523 | P7: Aigas | Q7: 0.7043162753 | S7: Aigas | T7: 0.7184026008 | V7: Aigas | W7: 0.7325449441
B8: Achruach | C8: =IF(ISNA(MATCH(B8,J:J,0)),"",INDEX(K:K,MATCH(B8,J:J,0))) -> 4.34586575 | D8: 4.43268949 | E8: -2.691973359 | F8: -2.745967146 | G8: -2.800376757 | J8: An Suidhe | K8: 3.081283705 | M8: An Suidhe | N8: -0.9903740833 | P8: An Suidhe | Q8: -1.009743918 | S8: An Suidhe | T8: -1.030091822 | V8: An Suidhe | W8: -1.050720794
B9: Aigas | C9: 0.6769668159 | D9: 0.6905061523 | E9: 0.7043162753 | F9: =IF(ISNA(MATCH(B9,S:S,0)),"",INDEX(T:T,MATCH(B9,S:S,0))) -> 0.7184026008 | G9: 0.7325449441 | J9: Arecleoch | K9: 2.149790722 | M9: Arecleoch | N9: 2.192786537 | P9: Arecleoch | Q9: 1.293751362 | S9: Arecleoch | T9: 1.319626389 | V9: Arecleoch | W9: 1.345604315
B10: An Suidhe | C10: 3.081283705 | D10: -0.9903740833 | E10: -1.009743918 | F10: -1.030091822 | G10: -1.050720794 | J10: Beinneun Wind Farm | K10: 1.554100114 | M10: Beinneun Wind Farm | N10: 1.585189189 | P10: Beinneun Wind Farm | Q10: 1.616872725 | S10: Beinneun Wind Farm | T10: 1.649211835 | V10: Beinneun Wind Farm | W10: 1.681681198
B11: Arecleoch | C11: 2.149790722 | D11: 2.192786537 | E11: 1.293751362 | F11: 1.319626389 | G11: 1.345604315 | J11: Black Hill | K11: 1.571741663 | M11: Black Hill | N11: 1.603176496 | P11: Black Hill | Q11: 1.635240026 | S11: Black Hill | T11: 1.667944826 | V11: Black Hill | W11: 1.700779686
B12: Armadale | F12: 3.216910111 | G12: 3.274505916 | J12: Blackcraig Wind Farm | K12: 6.515857744 | M12: Blackcraig Wind Farm | N12: 6.883018088 | P12: Blackcraig Wind Farm | Q12: 7.020678449 | S12: Blackcraig Wind Farm | T12: 7.161092018 | V12: Blackcraig Wind Farm | W12: 7.302063977
B13: Beaw Field | F13: 52.1995377 | G13: 53.65191442 | J13: Blacklaw Extension | K13: 3.835505942 | M13: Blacklaw Extension | N13: 3.912216061 | P13: Blacklaw Extension | Q13: 3.990460382 | S13: Blacklaw Extension | T13: 4.070269589 | V13: Blacklaw Extension | W13: 4.150396178
B14: Beinneun Wind Farm | C14: 1.554100114 | D14: 1.585189189 | E14: 1.616872725 | F14: 1.649211835 | G14: 1.681681198 | J14: Black Law | K14: 1.808663913 | M14: Black Law | N14: 1.844837191 | P14: Black Law | Q14: 1.881733935 | S14: Black Law | T14: 1.919368613 | V14: Black Law | W14: 1.957152956
B15: Bhlaraidh Wind Farm | C15: 0.6682975629 | D15: 0.6816635141 | E15: 0.6952967844 | F15: 0.7092027201 | G15: 0.7231639562 | J15: Clyde (North) | K15: 0.1135135207 | M15: Branxton | N15: 0.3812190921 | P15: Branxton | Q15: 0.3889677246 | S15: Branxton | T15: 0.3982678674 | V15: Branxton | W15: 0.4075305606
B16: Black Hill | C16: 1.571741663 | D16: 1.603176496 | E16: 1.635240026 | F16: 1.667944826 | G16: 1.700779686 | J16: Clyde (South) | K16: 0.1312728941 | M16: Clyde (North) | N16: 0.1157837912 | P16: Clyde (North) | Q16: 0.118099467 | S16: Clyde (North) | T16: 0.1204614563 | V16: Clyde (North) | W16: 0.1228328387
B17: Black Law | C17: 1.808663913 | D17: 1.844837191 | E17: 1.881733935 | F17: 1.919368613 | G17: 1.957152956 | J17: Corriegarth | K17: 2.998657447 | M17: Clyde (South) | N17: 0.133898352 | P17: Clyde (South) | Q17: 0.1365763191 | S17: Clyde (South) | T17: 0.1393078454 | V17: Clyde (South) | W17: 0.1420502344
B18: Blackcraig Wind Farm | C18: 6.515857744 | D18: 6.883018088 | E18: 7.020678449 | F18: 7.161092018 | G18: 7.302063977 | J18: Corriemoillie | K18: 1.683828375 | M18: Corriegarth | N18: 3.058630596 | P18: Corriegarth | Q18: 3.119803208 | S18: Corriegarth | T18: 3.182199272 | V18: Corriegarth | W18: 3.244843469
B19: Blacklaw Extension | C19: 3.835505942 | D19: 3.912216061 | E19: 3.990460382 | F19: 4.070269589 | G19: 4.150396178 | J19: Coryton | K19: 0.05583452868 | M19: Corriemoillie | N19: 1.717503384 | P19: Corriemoillie | Q19: 1.751852843 | S19: Corriemoillie | T19: 1.786889566 | V19: Corriemoillie | W19: 1.822065288
B20: Blarghour | F20: 3.05111519 | G20: 3.111177581 | J20: Cruachan | K20: 1.846802685 | M20: Coryton | N20: 0.0560597146 | P20: Coryton | Q20: 0.05825058275 | S20: Coryton | T20: 0.05950632592 | V20: Coryton | W20: 0.06095976966
B21: Branxton | D21: 0.3812190921 | E21: 0.3889677246 | F21: 0.3982678674 | G21: 0.4075305606 | J21: Culligran | K21: 1.793977942 | M21: Cruachan | N21: 1.883818429 | P21: Cruachan | Q21: 1.921512435 | S21: Cruachan | T21: 1.960021171 | V21: Cruachan | W21: 1.998676302
B22: Chirmorie | E22: 0.97808761 | F22: 0.9976493622 | G22: 1.017288907 | J22: Deanie | K22: 2.947249476 | M22: Culligran | N22: 1.829857501 | P22: Culligran | Q22: 1.866454651 | S22: Culligran | T22: 1.903783744 | V22: Culligran | W22: 1.941261285
B23: Clash Gour | E23: 0.1069339619 | F23: 0.1097353578 | G23: 0.1119210869 | J23: Dersalloch | K23: 2.493300466 | M23: Deanie | N23: 3.006194465 | P23: Deanie | Q23: 3.066318355 | S23: Deanie | T23: 3.127644722 | V23: Deanie | W23: 3.189214968
B24: Clauchrie | F24: 0.837420861 | G24: 0.8539061762 | J24: Dinorwig | K24: 2.428249956 | M24: Dersalloch | N24: 2.543166475 | P24: Dersalloch | Q24: 2.594029804 | S24: Dersalloch | T24: 2.645910401 | V24: Dersalloch | W24: 2.697997313
B25: Cloiche | F25: 1.474571525 | G25: 1.503599672 | J25: Dunlaw Extension | K25: 1.529669387 | M25: Dinorwig | N25: 2.476814955 | P25: Dinorwig | Q25: 2.526351254 | S25: Dinorwig | T25: 2.576878279 | V25: Dinorwig | W25: 2.627606238
B26: Clyde (North) | C26: 0.1135135207 | D26: 0.1157837912 | E26: 0.118099467 | F26: 0.1204614563 | G26: 0.1228328387 | J26: Dunhill | K26: 1.449613087 | M26: Dunlaw Extension | N26: 1.561087192 | P26: Dunlaw Extension | Q26: 1.600129696 | S26: Dunlaw Extension | T26: 1.632275395 | V26: Dunlaw Extension | W26: 1.665044579
B27: Clyde (South) | C27: 0.1312728941 | D27: 0.133898352 | E27: 0.1365763191 | F27: 0.1393078454 | G27: 0.1420502344 | J27: Dumnaglass | K27: 1.173159193 | M27: Dunhill | N27: 1.478605349 | P27: Dunhill | Q27: 1.508177456 | S27: Dunhill | T27: 1.538341005 | V27: Dunhill | W27: 1.568624507
B28: Corriegarth | C28: 2.998657447 | D28: 3.058630596 | E28: 3.119803208 | F28: 3.182199272 | G28: 3.244843469 | J28: Edinbane | K28: 7.084899421 | M28: Dumnaglass | N28: 1.196622377 | P28: Dumnaglass | Q28: 1.220554825 | S28: Dumnaglass | T28: 1.244965921 | V28: Dumnaglass | W28: 1.269474095
B29: Corriemoillie | C29: 1.683828375 | D29: 1.717503384 | E29: 1.751852843 | F29: 1.786889566 | G29: 1.822065288 | J29: Ewe Hill | K29: 1.539417565 | M29: Edinbane | N29: 7.226637367 | P29: Edinbane | Q29: 7.37130373 | S29: Edinbane | T29: 7.518577094 | V29: Edinbane | W29: 7.669145674
B30: Coryton | C30: 0.05583452868 | D30: 0.0560597146 | E30: 0.05825058275 | F30: 0.05950632592 | G30: 0.06095976966 | J30: Farr | K30: 3.608458489 | M30: Ewe Hill | N30: 1.570205917 | P30: Ewe Hill | Q30: 1.601610035 | S30: Ewe Hill | T30: 1.633642236 | V30: Ewe Hill | W30: 1.665801821
B31: Costa Head | F31: 5.168996942 | G31: 5.270752879 | J31: Fallago | K31: -0.06264377614 | M31: Farr | N31: 3.680627658 | P31: Farr | Q31: 3.754240212 | S31: Farr | T31: 3.829325016 | V31: Farr | W31: 3.904708414
B32: Creag Riabhach | C32: 3.472129675 | D32: 3.541572269 | E32: 3.612403714 | F32: 3.684651788 | G32: 3.757187175 | J32: Fernoch | K32: 4.552786391 | M32: Fallago | N32: -0.06362323241 | P32: Fallago | Q32: -0.06477543202 | S32: Fallago | T32: -0.06527152777 | V32: Fallago | W32: -0.06584981113
B33: Cruachan | C33: 1.846802685 | D33: 1.883818429 | E33: 1.921512435 | F33: 1.960021171 | G33: 1.998676302 | J33: Ffestiniogg | K33: 0.2560530161 | M33: Fernoch | N33: 4.643851805 | P33: Fernoch | Q33: 4.736732621 | S33: Fernoch | T33: 4.831469348 | V33: Fernoch | W33: 4.926584885
B34: Culligran | C34: 1.793977942 | D34: 1.829857501 | E34: 1.866454651 | F34: 1.903783744 | G34: 1.941261285 | J34: Finlarig | K34: 0.3314305599 | M34: Ffestiniogg | N34: 0.2611740765 | P34: Ffestiniogg | Q34: 0.266397558 | S34: Ffestiniogg | T34: 0.2717255092 | V34: Ffestiniogg | W34: 0.2770746482
B35: Deanie | C35: 2.947249476 | D35: 3.006194465 | E35: 3.066318355 | F35: 3.127644722 | G35: 3.189214968 | J35: Foyers | K35: 0.2964533754 | M35: Finlarig | N35: 0.3380591711 | P35: Finlarig | Q35: 0.3448203545 | S35: Finlarig | T35: 0.3517167616 | V35: Finlarig | W35: 0.358640594
B36: Dersalloch | C36: 2.493300466 | D36: 2.543166475 | E36: 2.594029804 | F36: 2.645910401 | G36: 2.697997313 | J36: Galawhistle | K36: 3.621831854 | M36: Foyers | N36: 0.302382443 | P36: Foyers | Q36: 0.3084300918 | S36: Foyers | T36: 0.3145986936 | V36: Foyers | W36: 0.3207918265
B37: Dinorwig | C37: 2.428249956 | D37: 2.476814955 | E37: 2.526351254 | F37: 2.576878279 | G37: 2.627606238 | J37: Glendoe | K37: 1.903936087 | M37: Galawhistle | N37: 3.694268491 | P37: Galawhistle | Q37: 3.768153861 | S37: Galawhistle | T37: 3.843516938 | V37: Galawhistle | W37: 3.919179716
B38: Dorenell | C38: 2.12397522 | D38: =IF(ISNA(MATCH(B38,M:M,0)),"",INDEX(N:N,MATCH(B38,M:M,0))) -> 4.936384442 | E38: 5.035112131 | F38: 5.135814373 | G38: 5.236917084 | J38: Glenglass | K38: 4.86962482 | M38: Glendoe | N38: 1.942014809 | P38: Glendoe | Q38: 1.980855105 | S38: Glendoe | T38: 2.020472208 | V38: Glendoe | W38: 2.060246857
B39: Dumnaglass | C39: 1.173159193 | D39: 1.196622377 | E39: 1.220554825 | F39: 1.244965921 | G39: 1.269474095 | J39: Gordonbush | K39: 0.09551863921 | M39: Glenglass | N39: 4.967017316 | P39: Glenglass | Q39: 5.066357663 | S39: Glenglass | T39: 5.167684816 | V39: Glenglass | W39: 5.269414922
B40: Dunhill | C40: 1.449613087 | D40: 1.478605349 | E40: 1.508177456 | F40: 1.538341005 | G40: 1.568624507 | J40: Griffin Wind | K40: 9.827873887 | M40: Gordonbush | N40: 0.1235741383 | P40: Gordonbush | Q40: 0.1071685859 | S40: Gordonbush | T40: 0.1590985148 | V40: Gordonbush | W40: 0.1528700152
B41: Dunlaw Extension | C41: 1.529669387 | D41: 1.561087192 | E41: 1.600129696 | F41: 1.632275395 | G41: 1.665044579 | J41: Hadyard Hill | K41: 2.864978916 | M41: Griffin Wind | N41: 10.02404798 | P41: Griffin Wind | Q41: 10.22435612 | S41: Griffin Wind | T41: 10.42881296 | V41: Griffin Wind | W41: 10.63390062
B42: Edinbane | C42: 7.084899421 | D42: 7.226637367 | E42: 7.37130373 | F42: 7.518577094 | G42: 7.669145674 | J42: Harestanes | K42: 2.617777993 | M42: Hadyard Hill | N42: 2.922278495 | P42: Hadyard Hill | Q42: 2.980724064 | S42: Hadyard Hill | T42: 3.040338546 | V42: Hadyard Hill | W42: 3.100190099
B43: Elchies | F43: 2.30011693 | G43: 2.345396615 | J43: Hartlepool | K43: 0.09059231348 | M43: Harestanes | N43: 2.670852219 | P43: Harestanes | Q43: 2.724989267 | S43: Harestanes | T43: 2.78020367 | V43: Harestanes | W43: 2.835756608
B44: Energy Isles | E44: 56.64488308 | F44: 56.88909452 | G44: 58.43378901 | J44: Invergarry | K44: 0.3787777827 | M44: Hartlepool | N44: 0.09274281592 | P44: Hartlepool | Q44: 0.09499494026 | S44: Hartlepool | T44: 0.0974958015 | V44: Hartlepool | W44: 0.09982819489
B45: Enoch Hill | C45: =IF(ISNA(MATCH(B45,J:J,0)),"",INDEX(K:K,MATCH(B45,J:J,0))) ->  | D45: 1.548074415 | E45: 1.579035904 | F45: 1.610616622 | G45: 1.642322928 | J45: Kilgallioch | K45: 1.089363626 | M45: Invergarry | N45: 0.3863533384 | P45: Invergarry | Q45: 0.3940804052 | S45: Invergarry | T45: 0.4019620133 | V45: Invergarry | W45: 0.4098749646
B46: Ewe Hill | C46: 1.539417565 | D46: 1.570205917 | E46: 1.601610035 | F46: 1.633642236 | G46: 1.665801821 | J46: Kilmorack | K46: 0.204419946 | M46: Kilgallioch | N46: 1.111150899 | P46: Kilgallioch | Q46: 0.1904830112 | S46: Kilgallioch | T46: 0.1942926715 | V46: Kilgallioch | W46: 0.1981174818
B47: Fallago | C47: -0.06264377614 | D47: -0.06362323241 | E47: -0.06477543202 | F47: -0.06527152777 | G47: -0.06584981113 | J47: Langage | K47: -0.3414851249 | M47: Kilmorack | N47: 0.2085083449 | P47: Kilmorack | Q47: 0.2126785118 | S47: Kilmorack | T47: 0.216932082 | V47: Kilmorack | W47: 0.2212025676
B48: Farr | C48: 3.608458489 | D48: 3.680627658 | E48: 3.754240212 | F48: 3.829325016 | G48: 3.904708414 | J48: Lochay | K48: 0.3787777827 | M48: Langage | N48: -0.3483893345 | P48: Langage | Q48: -0.3471641267 | S48: Langage | T48: -0.353901579 | V48: Langage | W48: -0.3607412167
B49: Fasque | G49: 3.081310257 | J49: Luichart | K49: 0.5804194122 | M49: Lochay | N49: 0.3863533384 | P49: Lochay | Q49: 0.3940804052 | S49: Lochay | T49: 0.4019620133 | V49: Lochay | W49: 0.4098749646
B50: Faw Side | F50: 4.692270692 | G50: 4.785075189 | J50: Mark Hill | K50: 0.9062773027 | M50: Luichart | N50: 0.5920262412 | P50: Luichart | Q50: 0.6038661576 | S50: Luichart | T50: 0.6159431467 | V50: Luichart | W50: 0.6280678306
B51: Fernoch | C51: 4.552786391 | D51: 4.643851805 | E51: 4.736732621 | F51: 4.831469348 | G51: 4.926584885 | J51: Marchwood | K51: 0.3863067847 | M51: Mark Hill | N51: 0.9244028487 | P51: Marchwood | Q51: 0.4023006621 | S51: Marchwood | T51: 0.4103578788 | V51: Marchwood | W51: -0.2538402275
B52: Ffestiniogg | C52: 0.2560530161 | D52: 0.2611740765 | E52: 0.266397558 | F52: 0.2717255092 | G52: 0.2770746482 | J52: Middleton | K52: 0.153593684 | M52: Marchwood | N52: 0.3940267244 | P52: Middleton | Q52: -0.001557868003 | S52: Middleton | T52: 0.0006249734287 | V52: Middleton | W52: 0.002015856463
B53: Finlarig | C53: 0.3314305599 | D53: 0.3380591711 | E53: 0.3448203545 | F53: 0.3517167616 | G53: 0.358640594 | J53: Millennium Wind | K53: 1.88985569 | M53: Middleton | N53: 0.1574148576 | P53: Millennium Wind | Q53: 1.966192827 | S53: Millennium Wind | T53: 2.005518339 | V53: Millennium Wind | W53: 2.045001887
B54: Foyers | C54: 0.2964533754 | D54: 0.302382443 | E54: 0.3084300918 | F54: 0.3145986936 | G54: 0.3207918265 | J54: Moffat | K54: 0.1983349057 | M54: Millennium Wind | N54: 1.927659877 | P54: Moffat | Q54: 0.2078006793 | S54: Moffat | T54: 0.2126713106 | V54: Moffat | W54: 0.2176802713
B55: Galawhistle | C55: 3.621831854 | D55: 3.694268491 | E55: 3.768153861 | F55: 3.843516938 | G55: 3.919179716 | J55: Mossford | K55: 2.914056541 | M55: Moffat | N55: 0.2030202697 | P55: Nant | Q55: -1.322464725 | S55: Nant | T55: 1.402503917 | V55: Nant | W55: 1.430112046
B56: Gelnshero | E56: 1.86412362 | F56: 1.68372684 | G56: 1.716872381 | J56: Nant | K56: -1.271073203 | M56: Mossford | N56: 2.972336112 | P56: Necton | Q56: 0.8287255799 | S56: Rhigos | T56: 0.1150868355 | V56: Rhigos | W56: 0.1173818974
B57: Gills Bay | F57: 2.704775394 | G57: 2.758021112 | J57: Necton | K57: 1.151834457 | M57: Nant | N57: -1.296523148 | P57: Rhigos | Q57: 0.1128167389 | S57: Rocksavage | T57: 0.01944223363 | V57: Rocksavage | W57: -0.01982471821
B58: Glen Kyllachy | C58: -0.4734722284 | D58: -0.482941673 | E58: 0.4926005065 | F58: 0.5024525166 | G58: 0.5123437057 | J58: Rhigos | K58: 0.1068733757 | M58: Necton | N58: 0.7666113955 | P58: Rocksavage | Q58: 0.01906132664 | S58: Saltend | T58: -0.002211722872 | V58: Saltend | W58: -0.002255393408
B59: Glen Ullinish | F59: 7.566496196 | G59: 7.718008103 | J59: Rocksavage | K59: 0.01832110604 | M59: Rhigos | N59: 0.109057233 | P59: Saltend | Q59: -0.002168290889 | S59: South Humber Bank | T59: -0.1991472207 | V59: South Humber Bank | W59: -0.2030519659
B60: Glendoe | C60: 1.903936087 | D60: 1.942014809 | E60: 1.980855105 | F60: 2.020472208 | G60: 2.060246857 | J60: Saltend | K60: 0.01756034821 | M60: Rocksavage | N60: 0.01868745438 | P60: South Humber Bank | Q60: -0.1952656134 | S60: Spalding | T60: 0.2921748911 | V60: Spalding | W60: 0.298669371
B61: Glenglass | C61: 4.86962482 | D61: 4.967017316 | E61: 5.066357663 | F61: 5.167684816 | G61: 5.269414922 | J61: South Humber Bank | K61: -0.1876637681 | M61: Saltend | N61: 0.01791159201 | P61: Spalding | Q61: 0.2859183619 | S61: Strathbrora | T61: 0.02633149878 | V61: Strathbrora | W61: 0.01819646877
B62: Glenmuckloch | E62: 4.082166038 | F62: 4.163809359 | G62: 4.245777355 | J62: Spalding | K62: 0.2746751694 | M62: South Humber Bank | N62: -0.1914338687 | P62: Strathbrora | Q62: -0.01942293277 | S62: Stronelairg | T62: 0.9583820542 | V62: Stronelairg | W62: 0.9772485895
B63: Gordonbush | C63: 0.09551863921 | D63: 0.1235741383 | E63: 0.1071685859 | F63: 0.1590985148 | G63: 0.1528700152 | J63: Strathbrora | K63: -0.02565120647 | M63: Spalding | N63: 0.2801935419 | P63: Stronelairg | Q63: 1.153001281 | S63: Strathy Wind | T63: 2.228493352 | V63: Strathy Wind | W63: 2.266631363
B64: Griffin Wind | C64: 9.827873887 | D64: 10.02404798 | E64: 10.22435612 | F64: 10.42881296 | G64: 10.63390062 | J64: Stronelairg | K64: 1.107046954 | M64: Strathbrora | N64: -0.001934106791 | P64: Strathy Wind | Q64: 1.905141782 | S64: Wester Dod | T64: 0.1779381155 | V64: Wester Dod | W64: 0.1818373917
B65: Hadyard Hill | C65: 2.864978916 | D65: 2.922278495 | E65: 2.980724064 | F65: 3.040338546 | G65: 3.100190099 | J65: Strathy Wind | K65: 1.825320667 | M65: Stronelairg | N65: 1.13050357 | P65: Wester Dod | Q65: 0.1740071629 | S65: Whitelee | T65: 0.1165756029 | V65: Whitelee | W65: 0.1188704891
B66: Hareshaw Rig | G66: 2.690489232 | J66: Wester Dod | K66: 0.3522108777 | M66: Strathy Wind | N66: 1.882633848 | P66: Whitelee | Q66: 0.1142898067 | S66: Whitelee Extension | T66: 0.324080176 | V66: Whitelee Extension | W66: 0.3304599596
B67: Harestanes | C67: 2.617777993 | D67: 2.670852219 | E67: 2.724989267 | F67: 2.78020367 | G67: 2.835756608 | J67: Whitelee | K67: 0.1098517943 | M67: Wester Dod | N67: 0.1704951601 | P67: Whitelee Extension | Q67: 0.3177256628 | S67: Bhlaraidh Wind Farm | T67: 0.7092027201 | V67: Bhlaraidh Wind Farm | W67: 0.7231639562
B68: Hartlepool | C68: 0.09059231348 | D68: 0.09274281592 | E68: 0.09499494026 | F68: 0.0974958015 | G68: 0.09982819489 | J68: Whitelee Extension | K68: 0.305387988 | M68: Whitelee | N68: 0.1120488301 | P68: Bhlaraidh Wind Farm | Q68: 0.6952967844 | S68: Dorenell | T68: 5.135814373 | V68: Dorenell | W68: 5.236917084
B69: Hesta Head | F69: 9.400971032 | G69: 9.586036843 | J69: Bhlaraidh Wind Farm | K69: 0.6682975629 | M69: Whitelee Extension | N69: 0.3114957478 | P69: Dorenell | Q69: 5.035112131 | S69: Kype Muir | T69: 1.629249492 | V69: Kype Muir | W69: 1.661322602
B70: Invergarry | C70: 0.3787777827 | D70: =IF(ISNA(MATCH(B70,M:M,0)),"",INDEX(N:N,MATCH(B70,M:M,0))) -> 0.3863533384 | E70: 0.3940804052 | F70: 0.4019620133 | G70: 0.4098749646 | J70: Dorenell | K70: 2.12397522 | M70: Bhlaraidh Wind Farm | N70: 0.6816635141 | P70: Kype Muir | Q70: 1.597303424 | S70: Middle Muir | T70: 2.523986475 | V70: Middle Muir | W70: 2.573673215
B71: Kergord | C71: =IF(ISNA(MATCH(B71,J:J,0)),"",INDEX(K:K,MATCH(B71,J:J,0))) ->  | E71: =IF(ISNA(MATCH(B71,P:P,0)),"",INDEX(Q:Q,MATCH(B71,P:P,0))) -> 43.80242632 | F71: =IF(ISNA(MATCH(B71,S:S,0)),"",INDEX(T:T,MATCH(B71,S:S,0))) -> 43.78978862 | G71: =IF(ISNA(MATCH(B71,V:V,0)),"",INDEX(W:W,MATCH(B71,V:V,0))) -> 45.07661255 | J71: Kype Muir | K71: 1.535278185 | M71: Dorenell | N71: 4.936384442 | P71: Middle Muir | Q71: 2.474496544 | S71: Millennium South | T71: 0.5185444032 | V71: Millennium South | W71: 0.5290385111
B72: Kilgallioch | C72: 1.089363626 | D72: 1.111150899 | E72: 0.1904830112 | F72: 0.1942926715 | G72: 0.1981174818 | J72: Middle Muir | K72: 2.378408827 | M72: Kype Muir | N72: 1.565983749 | P72: Millennium South | Q72: 0.5083772185 | S72: Aberdeen Bay | T72: 2.800335359 | V72: Aberdeen Bay | W72: 2.855462253
B73: Kilmorack | C73: 0.204419946 | D73: 0.2085083449 | E73: 0.2126785118 | F73: 0.216932082 | G73: 0.2212025676 | J73: Millennium South | K73: 0.4886385869 | M73: Middle Muir | N73: 2.425977004 | P73: Aberdeen Bay | Q73: 2.745426823 | S73: Aberarder | T73: 1.817873335 | V73: Aberarder | W73: 1.85365966
B74: Kinl | E74: 0.7129425151 | F74: 0.4756808678 | G74: 0.4848519112 | J74: Aberdeen Bay | K74: 2.638818553 | M74: Millennium South | N74: 0.4983935304 | P74: Aberarder | Q74: 1.78222876 | S74: Glen Kyllachy | T74: 0.5024525166 | V74: Glen Kyllachy | W74: 0.5123437057
B75: Kype Muir | C75: 1.535278185 | D75: 1.565983749 | E75: 1.597303424 | F75: 1.629249492 | G75: 1.661322602 | J75: Glen Kyllachy | K75: -0.4734722284 | M75: Aberdeen Bay | N75: 2.691594924 | P75: Glen Kyllachy | Q75: 0.4926005065 | S75: Limekilns | T75: 0.6699366888 | V75: Limekilns | W75: 0.6831249409
B76: Langage | C76: -0.3414851249 | D76: -0.3483893345 | E76: -0.3471641267 | F76: -0.353901579 | G76: -0.3607412167 | J76: Sandy Knowe | K76: 5.181386854 | M76: Glen Kyllachy | N76: -0.482941673 | P76: Limekilns | Q76: 0.6568006753 | S76: Sandy Knowe | T76: 5.902719013 | V76: Sandy Knowe | W76: 6.018918869
B77: Limekilns | E77: 0.6568006753 | F77: 0.6699366888 | G77: 0.6831249409 | J77: Creag Riabhach | K77: 3.472129675 | M77: Sandy Knowe | N77: 5.285014591 | P77: Sandy Knowe | Q77: 5.786979425 | S77: Creag Riabhach | T77: 3.684651788 | V77: Creag Riabhach | W77: 3.757187175
B78: Lochay | C78: 0.3787777827 | D78: 0.3863533384 | E78: 0.3940804052 | F78: 0.4019620133 | G78: 0.4098749646 | K78: 0 | M78: Creag Riabhach | N78: 3.541572269 | P78: Creag Riabhach | Q78: 3.612403714 | S78: Enoch Hill | T78: 1.610616622 | V78: Enoch Hill | W78: 1.642322928
B79: Luichart | C79: 0.5804194122 | D79: 0.5920262412 | E79: 0.6038661576 | F79: 0.6159431467 | G79: 0.6280678306 | K79: 0 | M79: Enoch Hill | N79: 1.548074415 | P79: Enoch Hill | Q79: 1.579035904 | S79: Kergord | T79: 43.78978862 | V79: Kergord | W79: 45.07661255
B80: Marchwood | C80: 0.3863067847 | D80: 0.3940267244 | E80: 0.4023006621 | F80: 0.4103578788 | G80: -0.2538402275 | K80: 0 | N80: 0 | P80: Kergord | Q80: 43.80242632 | S80: Energy Isles | T80: 56.88909452 | V80: Energy Isles | W80: 58.43378901
B81: Middle Muir | C81: 2.378408827 | D81: 2.425977004 | E81: 2.474496544 | F81: 2.523986475 | G81: 2.573673215 | K81: 0 | N81: 0 | P81: Energy Isles | Q81: 56.64488308 | S81: Clash Gour | T81: 0.1097353578 | V81: Clash Gour | W81: 0.1119210869
B82: Middleton | C82: 0.153593684 | D82: 0.1574148576 | E82: -0.001557868003 | F82: 0.0006249734287 | G82: 0.002015856463 | K82: 0 | N82: 0 | P82: Clash Gour | Q82: 0.1069339619 | S82: Gelnshero | T82: 1.68372684 | V82: Gelnshero | W82: 1.716872381
B83: Millennium South | C83: 0.4886385869 | D83: 0.4983935304 | E83: 0.5083772185 | F83: 0.5185444032 | G83: 0.5290385111 | K83: 0 | N83: 0 | P83: Gelnshero | Q83: 1.86412362 | S83: Kinl | T83: 0.4756808678 | V83: Kinl | W83: 0.4848519112
B84: Millennium Wind | C84: 1.88985569 | D84: 1.927659877 | E84: 1.966192827 | F84: 2.005518339 | G84: 2.045001887 | K84: 0 | N84: 0 | P84: Kinl | Q84: 0.7129425151 | S84: Glenmuckloch | T84: 4.163809359 | V84: Glenmuckloch | W84: 4.245777355
B85: Moffat | C85: 0.1983349057 | D85: 0.2030202697 | E85: 0.2078006793 | F85: 0.2126713106 | G85: 0.2176802713 | K85: 0 | N85: 0 | P85: Glenmuckloch | Q85: 4.082166038 | S85: Chirmorie | T85: 0.9976493622 | V85: Chirmorie | W85: 1.017288907
B86: Mossford | C86: 2.914056541 | D86: 2.972336112 | E86: 3.031782226 | F86: 3.092417536 | G86: 3.153293646 | K86: 0 | N86: 0 | P86: Chirmorie | Q86: 0.97808761 | S86: Blarghour | T86: 3.05111519 | V86: Blarghour | W86: 3.111177581
B87: Mossy Hill | F87: 47.13947206 | G87: 48.49223725 | K87: 0 | N87: 0 | P87: Mossford | Q87: 3.031782226 | S87: Glen Ullinish | T87: 7.566496196 | V87: Glen Ullinish | W87: 7.718008103
B88: Muaitheabhal | F88: 55.83210169 | G88: 56.93098771 | K88: 0 | N88: 0 | Q88: 0 | S88: Cloiche | T88: 1.474571525 | V88: Cloiche | W88: 1.503599672
B89: Nant | C89: -1.271073203 | D89: -1.296523148 | E89: -1.322464725 | F89: 1.402503917 | G89: 1.430112046 | K89: 0 | N89: 0 | Q89: 0 | S89: Muaitheabhal | T89: 55.83210169 | V89: Muaitheabhal | W89: 56.93098771
B90: Rhigos | C90: 0.1068733757 | D90: 0.109057233 | E90: 0.1128167389 | F90: 0.1150868355 | G90: 0.1173818974 | K90: 0 | N90: 0 | Q90: 0 | S90: Stornoway | T90: 50.47260818 | V90: Stornoway | W90: 51.46598818
B91: Rocksavage | C91: 0.01832110604 | D91: 0.01868745438 | E91: 0.01906132664 | F91: 0.01944223363 | G91: -0.01982471821 | K91: 0 | N91: 0 | Q91: 0 | S91: Clauchrie | T91: 0.837420861 | V91: Clauchrie | W91: 0.8539061762
B92: Sallachy | F92: 1.004905033 | G92: 1.024687411 | K92: 0 | N92: 0 | Q92: 0 | S92: Faw Side | T92: 4.692270692 | V92: Faw Side | W92: 4.785075189
B93: Saltend | C93: 0.01756034821 | D93: 0.01791159201 | E93: -0.002168290889 | F93: -0.002211722872 | G93: -0.002255393408 | K93: 0 | N93: 0 | Q93: 0 | S93: Scoop Hill | T93: 0.8493229382 | V93: Scoop Hill | W93: 0.8674898948
B94: Sandy Knowe | C94: 5.181386854 | D94: 5.285014591 | E94: 5.786979425 | F94: 5.902719013 | G94: 6.018918869 | K94: 0 | N94: 0 | Q94: 0 | S94: Troston | T94: 0.837420861 | V94: Troston | W94: 0.8539061762
B95: Scoop Hill | F95: 0.8493229382 | G95: 0.8674898948 | K95: 0 | N95: 0 | Q95: 0 | S95: Mossy Hill | T95: 47.13947206 | V95: Mossy Hill | W95: 48.49223725
B96: South Humber Bank | C96: -0.1876637681 | D96: -0.1914338687 | E96: -0.1952656134 | F96: -0.1991472207 | G96: -0.2030519659 | K96: 0 | N96: 0 | Q96: 0 | S96: Beaw Field | T96: 52.1995377 | V96: Beaw Field | W96: 53.65191442
B97: Spalding | C97: =IF(ISNA(MATCH(B97,J:J,0)),"",INDEX(K:K,MATCH(B97,J:J,0))) -> 0.2746751694 | D97: =IF(ISNA(MATCH(B97,M:M,0)),"",INDEX(N:N,MATCH(B97,M:M,0))) -> 0.2801935419 | E97: =IF(ISNA(MATCH(B97,P:P,0)),"",INDEX(Q:Q,MATCH(B97,P:P,0))) -> 0.2859183619 | F97: =IF(ISNA(MATCH(B97,S:S,0)),"",INDEX(T:T,MATCH(B97,S:S,0))) -> 0.2921748911 | G97: =IF(ISNA(MATCH(B97,V:V,0)),"",INDEX(W:W,MATCH(B97,V:V,0))) -> 0.298669371 | K97: 0 | N97: 0 | Q97: 0 | S97: Costa Head | T97: 5.168996942 | V97: Costa Head | W97: 5.270752879
B98: Stornoway | F98: 50.47260818 | G98: 51.46598818 | K98: 0 | N98: 0 | Q98: 0 | S98: Hesta Head | T98: 9.400971032 | V98: Hesta Head | W98: 9.586036843
B99: Stranoch | G99: 1.739313977 | K99: 0 | N99: 0 | Q99: 0 | S99: Armadale | T99: 3.216910111 | V99: Armadale | W99: 3.274505916
B100: Strathbrora | C100: -0.02565120647 | D100: -0.001934106791 | E100: -0.01942293277 | F100: 0.02633149878 | G100: 0.01819646877 | K100: 0 | N100: 0 | Q100: 0 | S100: Gills Bay | T100: 2.704775394 | V100: Gills Bay | W100: 2.758021112
B101: Strathy Wind | C101: 1.825320667 | D101: 1.882633848 | E101: 1.905141782 | F101: 2.228493352 | G101: 2.266631363 | K101: 0 | N101: 0 | Q101: 0 | S101: Elchies | T101: 2.30011693 | V101: Elchies | W101: 2.345396615
B102: Stronelairg | C102: 1.107046954 | D102: 1.13050357 | E102: 1.153001281 | F102: 0.9583820542 | G102: 0.9772485895 | K102: 0 | N102: 0 | Q102: 0 | S102: Sallachy | T102: 1.004905033 | V102: Sallachy | W102: 1.024687411
B103: Troston | F103: 0.837420861 | G103: 0.8539061762 | K103: 0 | N103: 0 | Q103: 0 | S103: Mossford | T103: 3.092417536 | V103: Fasque | W103: 3.081310257
B104: Wester Dod | C104: 0.3522108777 | D104: 0.1704951601 | E104: 0.1740071629 | F104: 0.1779381155 | G104: 0.1818373917 | K104: 0 | N104: 0 | Q104: 0 | T104: 0 | V104: Mossford | W104: 3.153293646
B105: Whitelee | C105: 0.1098517943 | D105: 0.1120488301 | E105: 0.1142898067 | F105: 0.1165756029 | G105: 0.1188704891 | K105: 0 | N105: 0 | Q105: 0 | T105: 0 | V105: Stranoch | W105: 1.739313977
B106: Whitelee Extension | C106: 0.305387988 | D106: 0.3114957478 | E106: 0.3177256628 | F106: 0.324080176 | G106: 0.3304599596 | K106: 0 | N106: 0 | Q106: 0 | T106: 0 | V106: Hareshaw Rig | W106: 2.690489232

Sheet T12
A1: Table 12 - CMP203: Circuits subject to one-off charges | F1: Return to Index
A3: Node 1 | B3: Node 2 | C3: Actual Parameters | D3: Amendment in Transport Model | E3: Generator
A4: Dyce 132kV | B4: Aberdeen Bay 132kV | C4: 9.5km of Cable | D4: 9.5km of OHL | E4: Aberdeen Bay
A5: Crystal Rig 132kV | B5: Wester Dod 132kV | C5: 3.9km of Cable | D5: 3.9km of OHL | E5: Aikengall II
A6: Wishaw 132kV | B6: Blacklaw 132kV | C6: 11.46km of Cable | D6: 11.46km of OHL | E6: Blacklaw
A7: Farigaig 132kV | B7: Corriegarth 132kV | C7: 4km Cable | D7: 4km OHL | E7: Corriegarth
A8: Elvanfoot 275kV | B8: Clyde North 275kV | C8: 6.2km of Cable | D8: 6.2km of OHL | E8: Clyde North
A9: Elvanfoot 275kV | B9: Clyde South 275kV | C9: 7.17km of Cable | D9: 7.17km of OHL | E9: Clyde South
A10: Farigaig 132kV | B10: Dunmaglass 132kV | C10: 4km Cable | D10: 4km OHL | E10: Dunmaglass
A11: Coalburn 132kV | B11: Galawhistle 132kV | C11: 9.7km cable | D11: 9.7km OHL | E11: Galawhistle II
A12: Moffat 132kV | B12: Harestanes 132kV | C12: 15.33km cable | D12: 15.33km OHL | E12: Harestanes
A13: Coalburn 132kV | B13: Kype Muir 132kV | C13: 17km cable | D13: 17km OHL | E13: Kype Muir
A14: Coalburn 132kV | B14: Middle Muir 132kV | C14: 13km cable | D14: 13km OHL | E14: Middle Muir
A15: Melgarve 132kV | B15: Stronelairg 132kV | C15: 10km cable | D15: 10km OHL | E15: Stronelairg
A16: East Kilbride South 275kV | B16: Whitelee 275kV | C16: 6km of Cable | D16: 6km of OHL | E16: Whitelee
A17: East Kilbride South 275kV | B17: Whitelee Extension 275kV | C17: 16.68km of Cable | D17: 16.68km of OHL | E17: Whitelee Extension
A18: Sandy Knowe 132kV | B18: Glen Glass 132kV | C18: 7km of cable | D18: 7km of OHL | E18: Sandy Knowe

Sheet T13
A1: ="Table 13 – Offshore local tariffs for "&'T14'!C4 -> Table 13 – Offshore local tariffs for 2022/23 | H1: Return to Index
B4: Offshore Generator | C4: Tariff Component (£/kW)
C5: Substation | D5: Circuit | E5: ETUoS
B6: Barrow | C6: 8.981363 | D6: 47.448077 | E6: 1.178201
B7: Burbo Bank | C7: 11.349149 | D7: 21.934427 | E7: 0
B8: Dudgeon | C8: 16.599924 | D8: 26.045535 | E8: 0
B9: Galloper | C9: 16.992267 | D9: 26.875018 | E9: 0
B10: Greater Gabbard | C10: 16.731766 | D10: 38.718989 | E10: 0
B11: Gunfleet | C11: 19.545355 | D11: 18.024323 | E11: 3.368849
B12: Gwynt Y Mor | C12: 21.312321 | D12: 21.07111 | E12: 0
B13: Hornsea 1A | C13: 7.500569 | D13: 26.538185 | E13: 0
B14: Hornsea 1B | C14: 7.500569 | D14: 26.538185 | E14: 0
B15: Hornsea 1C | C15: 7.500569 | D15: 26.538185 | E15: 0
B16: Humber Gateway | C16: 12.54242 | D16: 28.776625 | E16: 0
B17: Lincs | C17: 17.411874 | D17: 68.474947 | E17: 0
B18: London Array | C18: 11.81607 | D18: 40.512775 | E18: 0
B19: Ormonde | C19: 27.613792 | D19: 51.616163 | E19: 0.411338
B20: Race Bank | C20: 10.052457 | D20: 27.920291 | E20: 0
B21: Robin Rigg | C21: -0.606088 | D21: 34.402796 | E21: 11.022437
B22: Robin Rigg West | C22: -0.606088 | D22: 34.402796 | E22: 11.022437
B23: Sheringham Shoal | C23: 25.834847 | D23: 30.427173 | E23: 0.661397
B24: Thanet | C24: 19.728152 | D24: 36.960737 | E24: 0.889775
B25: Walney 1 | C25: 23.84997 | D25: 47.682154 | E25: 0
B26: Walney 2 | C26: 22.188899 | D26: 45.156621 | E26: 0
B27: Walney 3 | C27: 10.32594 | D27: 20.919735 | E27: 0
B28: Walney 4 | C28: 10.32594 | D28: 20.919735 | E28: 0
B29: West of Duddon Sands | C29: 9.234736 | D29: 46.03395 | E29: 0
B30: Westermost Rough | C30: 18.777289 | D30: 31.956559 | E30: 0

Sheet T14
A1: Table 14 – HH, NHH and EET Summary | H1: Return to Index
B4: HH Tariffs | C4: 2022/23 | D4: 2023/24 | E4: 2024/25 | F4: 2025/26 | G4: 2026/27
B5: Average Tariff (£/kW) | C5: 51.39231284 | D5: 1.872668265 | E5: 1.597503562 | F5: 1.607772924 | G5: 1.836518771
B6: Residual (£/kW) | C6: 53.28545628 | D6: - | E6: - | F6: - | G6: -
B7: EET | C7: 2022/23 | D7: 2023/24 | E7: 2024/25 | F7: 2025/26 | G7: 2026/27
B8: Average Tariff (£/kW) | C8: 2.13886117 | D8: 2.056896163 | E8: 1.878808035 | F8: 2.053008114 | G8: 2.183690871
B9: Phased residual (£/kW) | C9: - | D9: - | E9: - | F9: - | G9: -
B10: AGIC (£/kW) | C10: 2.316267 | D10: 2.362592 | E10: 2.409844 | F10: 2.458041 | G10: 2.50643
B11: Total Credit (£m) | C11: 13.98061477 | D11: 13.70342978 | E11: 12.70264247 | F11: 12.68328946 | G11: 14.9682703
B12: NHH Tariffs | C12: 2022/23 | D12: 2023/24 | E12: 2024/25 | F12: 2025/26 | G12: 2026/27
B13: Average (p/kWh) | C13: 6.495928887 | D13: 0.230255567 | E13: 0.2054174082 | F13: 0.2060420091 | G13: 0.2306471069

Sheet T15
A1: Table 15 – Non-locational banded charges | H1: Return to Index
B4: Band | C4: Tariff | D4: 2022/23 | E4: 2023/24 | F4: 2024/25 | G4: 2025/26 | H4: 2026/27
B5: Domestic | C5: £/Site per Annum | E5: 30.92195676 | F5: 30.5817268 | G5: 29.45585272 | H5: 29.60326366
B6: LV_NoMIC_1 | E6: 14.99230064 | F6: 14.82734246 | G6: 14.28147006 | H6: 14.35294125
B7: LV_NoMIC_2 | E7: 76.5534413 | F7: 75.71113451 | G7: 72.92380975 | H7: 73.28875479
B8: LV_NoMIC_3 | E8: 179.3072568 | F8: 177.3343642 | G8: 170.8057543 | H8: 171.6605466
B9: LV_NoMIC_4 | E9: 534.7946986 | F9: 528.9104274 | G9: 509.4384549 | H9: 511.9879245
B10: LV1 | E10: 1111.9806 | F10: 1099.745633 | G10: 1059.258216 | H10: 1064.559243
B11: LV2 | E11: 1851.881297 | F11: 1831.505307 | G11: 1764.077971 | H11: 1772.906247
B12: LV3 | E12: 2876.387365 | F12: 2844.738878 | G12: 2740.009089 | H12: 2753.721383
B13: LV4 | E13: 6467.091408 | F13: 6395.934907 | G13: 6160.466929 | H13: 6191.296803
B14: HV1 | E14: 4631.981608 | F14: 4581.016563 | G14: 4412.365268 | H14: 4434.446819
B15: HV2 | E15: 16038.88393 | F15: 15862.41034 | G15: 15278.43165 | H15: 15354.89211
B16: HV3 | E16: 31201.86775 | F16: 30858.55797 | G16: 29722.49228 | H16: 29871.23761
B17: HV4 | E17: 76866.16507 | F17: 76020.41742 | G17: 73221.70634 | H17: 73588.14219
B18: EHV1 | E18: 26986.67853 | F18: 26689.74789 | G18: 25707.158 | H18: 25835.80871
B19: EHV2 | E19: 161285.4519 | F19: 159510.8506 | G19: 153638.4179 | H19: 154407.2968
B20: EHV3 | E20: 343814.0436 | F20: 340031.1058 | G20: 327512.7738 | H20: 329151.8018
B21: EHV4 | E21: 924575.741 | F21: 914402.7637 | G21: 880738.7923 | H21: 885146.4235
B22: T-Demand1 | E22: 140242.7396 | F22: 138699.6684 | G22: 133593.4046 | H22: 134261.9689
B23: T-Demand2 | E23: 497867.5601 | F23: 492389.5931 | G23: 474262.1444 | H23: 476635.5753
B24: T-Demand3 | E24: 979409.4347 | F24: 968633.1299 | G24: 932972.6538 | H24: 937641.6878
B25: T-Demand4 | E25: 2952211.038 | F25: 2919728.273 | G25: 2812237.731 | H25: 2826311.491
B26: Unmetered demand
B27: Unmetered | C27: p/kWh | E27: 0.9133141879 | F27: 0.9032651198 | G27: 0.8700111837 | H27: 0.8743651289
B29: Demand Residual (£m) | E29: 2392.579035 | F29: 2366.253823 | G29: 2279.139584 | H29: 2290.545471

Sheet T16
A1: Table 16 - Gross Half-Hourly locational demand tariffs by demand zone | H1: Return to Index | J1: Figure XX Gross Half-Hourly demand tariffs by demand zone
A2: * 2022/23 includes demand residual tariff
B4: Zone | C4: Zone Name | D4: 2022/23 | E4: 2023/24 | F4: 2024/25 | G4: 2025/26 | H4: 2026/27
D5: (£/kW) | E5: (£/kW) | F5: (£/kW) | G5: (£/kW) | H5: (£/kW)
B6: 1 | C6: Northern Scotland | D6: 22.740255 | E6: - | F6: - | G6: - | H6: -
B7: 2 | C7: Southern Scotland | D7: 31.47082 | E7: - | F7: - | G7: - | H7: -
B8: 3 | C8: Northern | D8: 41.680268 | E8: - | F8: - | G8: - | H8: -
B9: 4 | C9: North West | D9: 47.559033 | E9: - | F9: - | G9: - | H9: -
B10: 5 | C10: Yorkshire | D10: 48.256053 | E10: - | F10: - | G10: - | H10: -
B11: 6 | C11: N Wales & Mersey | D11: 48.884841 | E11: - | F11: - | G11: - | H11: -
B12: 7 | C12: East Midlands | D12: 51.948679 | E12: - | F12: - | G12: - | H12: -
B13: 8 | C13: Midlands | D13: 53.500361 | E13: 1.183251 | F13: 1.542582 | G13: 1.307358 | H13: 0.760787
B14: 9 | C14: Eastern | D14: 54.465861 | E14: - | F14: - | G14: - | H14: -
B15: 10 | C15: South Wales | D15: 55.008036 | E15: 4.227343 | F15: 3.041558 | G15: 3.065773 | H15: 8.187153
B16: 11 | C16: South East | D16: 56.810225 | E16: 2.362135 | F16: 1.3275 | G16: 1.40016 | H16: 1.145258
B17: 12 | C17: London | D17: 59.948874 | E17: 4.711316 | F17: 3.578877 | G17: 3.691459 | H17: 3.573019
B18: 13 | C18: Southern | D18: 58.515282 | E18: 4.945049 | F18: 4.486189 | G18: 4.5774 | H18: 4.734708
B19: 14 | C19: South Western | D19: 60.445976 | E19: 9.71902 | F19: 9.750382 | G19: 9.748246 | H19: 11.400354
B24: Zone | C24: Zone Name | D24: ="Difference "&'T14'!C4&" to "&'T14'!D4 -> Difference 2022/23 to 2023/24 | E24: ="Difference "&'T14'!D4&" to "&'T14'!E4 -> Difference 2023/24 to 2024/25 | F24: ="Difference "&'T14'!E4&" to "&'T14'!F4 -> Difference 2024/25 to 2025/26 | G24: ="Difference "&'T14'!F4&" to "&'T14'!G4 -> Difference 2025/26 to 2026/27
D25: (£/kW) | E25: (£/kW) | F25: (£/kW) | G25: (£/kW)
B26: 1 | C26: Northern Scotland | D26: =IFERROR(IF(E6="-",0-D6,E6-D6),"-") -> -22.740255 | E26: - | F26: - | G26: -
B27: 2 | C27: Southern Scotland | D27: -31.47082 | E27: - | F27: - | G27: -
B28: 3 | C28: Northern | D28: =IFERROR(IF(E8="-",0-D8,E8-D8),"-") -> -41.680268 | E28: - | F28: - | G28: -
B29: 4 | C29: North West | D29: -47.559033 | E29: - | F29: - | G29: -
B30: 5 | C30: Yorkshire | D30: -48.256053 | E30: - | F30: - | G30: -
B31: 6 | C31: N Wales & Mersey | D31: -48.884841 | E31: - | F31: - | G31: -
B32: 7 | C32: East Midlands | D32: -51.948679 | E32: - | F32: - | G32: -
B33: 8 | C33: Midlands | D33: -52.31711 | E33: 0.359331 | F33: -0.235224 | G33: -0.546571
B34: 9 | C34: Eastern | D34: -54.465861 | E34: - | F34: - | G34: -
B35: 10 | C35: South Wales | D35: -50.780693 | E35: -1.185785 | F35: 0.024215 | G35: 5.12138
B36: 11 | C36: South East | D36: -54.44809 | E36: -1.034635 | F36: 0.07266 | G36: -0.254902
B37: 12 | C37: London | D37: -55.237558 | E37: =IFERROR(IF(F17="-",0-E17,F17-E17),"-") -> -1.132439 | F37: 0.112582 | G37: -0.11844
B38: 13 | C38: Southern | D38: -53.570233 | E38: -0.45886 | F38: 0.091211 | G38: 0.157308
B39: 14 | C39: South Western | D39: =IFERROR(IF(E19="-",0-D19,E19-D19),"-") -> -50.726956 | E39: =IFERROR(IF(F19="-",0-E19,F19-E19),"-") -> 0.031362 | F39: =IFERROR(IF(G19="-",0-F19,G19-F19),"-") -> -0.002136 | G39: =IFERROR(IF(H19="-",0-G19,H19-G19),"-") -> 1.652108

Sheet T17
A1: Table 17 - Embedded Export Tariffs 2022/23 to 2026/27 | H1: Return to Index | J1: Figure XX - Embedded Export Tariff
B4: Zone | C4: Zone Name | D4: ='T14'!C4 -> 2022/23 | E4: ='T14'!D4 -> 2023/24 | F4: ='T14'!E4 -> 2024/25 | G4: ='T14'!F4 -> 2025/26 | H4: ='T14'!G4 -> 2026/27
D5: (£/kW) | E5: (£/kW) | F5: (£/kW) | G5: (£/kW) | H5: (£/kW)
B6: 1 | C6: Northern Scotland | D6: - | E6: - | F6: - | G6: - | H6: -
B7: 2 | C7: Southern Scotland | D7: - | E7: - | F7: - | G7: - | H7: -
B8: 3 | C8: Northern | D8: - | E8: - | F8: - | G8: - | H8: -
B9: 4 | C9: North West | D9: - | E9: - | F9: - | G9: - | H9: -
B10: 5 | C10: Yorkshire | D10: - | E10: - | F10: - | G10: - | H10: -
B11: 6 | C11: N Wales & Mersey | D11: - | E11: - | F11: - | G11: - | H11: -
B12: 7 | C12: East Midlands | D12: 0.97949 | E12: 1.129181 | F12: 1.047299 | G12: 1.057903 | H12: 0.744994
B13: 8 | C13: Midlands | D13: 2.531172 | E13: 3.545843 | F13: 3.952426 | G13: 3.765399 | H13: 3.267217
B14: 9 | C14: Eastern | D14: 3.496672 | E14: 2.123936 | F14: 1.232163 | G14: 1.325877 | H14: 1.011117
B15: 10 | C15: South Wales | D15: 4.038846 | E15: 6.589935 | F15: 5.451402 | G15: 5.523814 | H15: 10.693583
B16: 11 | C16: South East | D16: 5.841035 | E16: 4.724727 | F16: 3.737344 | G16: 3.858201 | H16: 3.651688
B17: 12 | C17: London | D17: 8.979685 | E17: 7.073908 | F17: 5.988721 | G17: 6.1495 | H17: 6.079449
B18: 13 | C18: Southern | D18: 7.546093 | E18: 7.307641 | F18: 6.896033 | G18: 7.035441 | H18: 7.241138
B19: 14 | C19: South Western | D19: 9.476786 | E19: 12.081612 | F19: 12.160226 | G19: 12.206287 | H19: 13.906784
C21: These tariffs include:
C22: Phased residual (£/kW) | D22: - | E22: - | F22: - | G22: - | H22: -
C23: AGIC (£/kW) | D23: 2.316267 | E23: 2.362592 | F23: 2.409844 | G23: 2.458041 | H23: 2.50643
B27: Zone | C27: Zone Name | D27: ='T16'!D24 -> Difference 2022/23 to 2023/24 | E27: ='T16'!E24 -> Difference 2023/24 to 2024/25 | F27: ='T16'!F24 -> Difference 2024/25 to 2025/26 | G27: ='T16'!G24 -> Difference 2025/26 to 2026/27
D28: (£/kW) | E28: (£/kW) | F28: (£/kW) | G28: (£/kW)
B29: 1 | C29: Northern Scotland | D29: =IFERROR(E6-D6,"-") -> - | E29: =IFERROR(F6-E6,"-") -> - | F29: - | G29: -
B30: 2 | C30: Southern Scotland | D30: =IFERROR(E7-D7,"-") -> - | E30: - | F30: - | G30: -
B31: 3 | C31: Northern | D31: =IFERROR(E8-D8,"-") -> - | E31: - | F31: - | G31: -
B32: 4 | C32: North West | D32: =IFERROR(E9-D9,"-") -> - | E32: - | F32: - | G32: -
B33: 5 | C33: Yorkshire | D33: =IFERROR(E10-D10,"-") -> - | E33: - | F33: - | G33: -
B34: 6 | C34: N Wales & Mersey | D34: =IFERROR(E11-D11,"-") -> - | E34: - | F34: - | G34: -
B35: 7 | C35: East Midlands | D35: =IFERROR(E12-D12,"-") -> 0.149691 | E35: -0.081882 | F35: 0.010604 | G35: -0.312909
B36: 8 | C36: Midlands | D36: =IFERROR(E13-D13,"-") -> 1.014671 | E36: 0.406583 | F36: -0.187027 | G36: -0.498182
B37: 9 | C37: Eastern | D37: =IFERROR(E14-D14,"-") -> -1.372736 | E37: -0.891773 | F37: 0.093714 | G37: -0.31476
B38: 10 | C38: South Wales | D38: =IFERROR(E15-D15,"-") -> 2.551089 | E38: -1.138533 | F38: 0.072412 | G38: 5.169769
B39: 11 | C39: South East | D39: =IFERROR(E16-D16,"-") -> -1.116308 | E39: -0.987383 | F39: 0.120857 | G39: -0.206513
B40: 12 | C40: London | D40: =IFERROR(E17-D17,"-") -> -1.905777 | E40: -1.085187 | F40: 0.160779 | G40: -0.070051
B41: 13 | C41: Southern | D41: =IFERROR(E18-D18,"-") -> -0.238452 | E41: -0.411608 | F41: 0.139408 | G41: 0.205697
B42: 14 | C42: South Western | D42: =IFERROR(E19-D19,"-") -> 2.604826 | E42: =IFERROR(F19-E19,"-") -> 0.078614 | F42: 0.046061 | G42: 1.700497

Sheet T18
A1: Table 18 – NHH demand tariff changes | H1: Return to Index | J1: Figure XX - NHH demand tariff changes
B4: Zone | C4: Zone Name | D4: ='T14'!C4 -> 2022/23 | E4: ='T14'!D4 -> 2023/24 | F4: ='T14'!E4 -> 2024/25 | G4: ='T14'!F4 -> 2025/26 | H4: ='T14'!G4 -> 2026/27
D5: (p/kWh) | E5: (p/kWh) | F5: (p/kWh) | G5: (p/kWh) | H5: (p/kWh)
B6: 1 | C6: Northern Scotland | D6: 3.022811 | E6: - | F6: - | G6: - | H6: -
B7: 2 | C7: Southern Scotland | D7: 4.012326 | E7: - | F7: - | G7: - | H7: -
B8: 3 | C8: Northern | D8: 5.135737 | E8: - | F8: - | G8: - | H8: -
B9: 4 | C9: North West | D9: 6.042024 | E9: - | F9: - | G9: - | H9: -
B10: 5 | C10: Yorkshire | D10: 5.902938 | E10: - | F10: - | G10: - | H10: -
B11: 6 | C11: N Wales & Mersey | D11: 5.982738 | E11: - | F11: - | G11: - | H11: -
B12: 7 | C12: East Midlands | D12: 6.57082 | E12: - | F12: - | G12: - | H12: -
B13: 8 | C13: Midlands | D13: 6.896029 | E13: 0.152274 | F13: 0.199008 | G13: 0.168479 | H13: 0.098127
B14: 9 | C14: Eastern | D14: 7.406702 | E14: - | F14: - | G14: - | H14: -
B15: 10 | C15: South Wales | D15: 6.264584 | E15: 0.480909 | F15: 0.347672 | G15: 0.350043 | H15: 0.935237
B16: 11 | C16: South East | D16: 7.766608 | E16: 0.322148 | F16: 0.182401 | G16: 0.192642 | H16: 0.156505
B17: 12 | C17: London | D17: 6.256171 | E17: 0.490426 | F17: 0.376802 | G17: 0.388562 | H17: 0.372622
B18: 13 | C18: Southern | D18: 7.523025 | E18: 0.634257 | F18: 0.579943 | G18: 0.591774 | H18: 0.610218
B19: 14 | C19: South Western | D19: 8.44426 | E19: 1.335608 | F19: 1.35809 | G19: 1.358419 | H19: 1.591817
B24: Zone | C24: Zone Name | D24: ='T16'!D24 -> Difference 2022/23 to 2023/24 | E24: ='T16'!E24 -> Difference 2023/24 to 2024/25 | F24: ='T16'!F24 -> Difference 2024/25 to 2025/26 | G24: ='T16'!G24 -> Difference 2025/26 to 2026/27
D25: (p/kWh) | E25: (p/kWh) | F25: (p/kWh) | G25: (p/kWh)
B26: 1 | C26: Northern Scotland | D26: =IFERROR(IF(E6="-",0-D6,E6-D6),"-") -> -3.022811 | E26: - | F26: - | G26: -
B27: 2 | C27: Southern Scotland | D27: -4.012326 | E27: - | F27: - | G27: -
B28: 3 | C28: Northern | D28: =IFERROR(IF(E8="-",0-D8,E8-D8),"-") -> -5.135737 | E28: - | F28: - | G28: -
B29: 4 | C29: North West | D29: =IFERROR(IF(E9="-",0-D9,E9-D9),"-") -> -6.042024 | E29: - | F29: - | G29: -
B30: 5 | C30: Yorkshire | D30: =IFERROR(IF(E10="-",0-D10,E10-D10),"-") -> -5.902938 | E30: - | F30: - | G30: -
B31: 6 | C31: N Wales & Mersey | D31: =IFERROR(IF(E11="-",0-D11,E11-D11),"-") -> -5.982738 | E31: - | F31: - | G31: -
B32: 7 | C32: East Midlands | D32: =IFERROR(IF(E12="-",0-D12,E12-D12),"-") -> -6.57082 | E32: - | F32: - | G32: -
B33: 8 | C33: Midlands | D33: =IFERROR(IF(E13="-",0-D13,E13-D13),"-") -> -6.743755 | E33: 0.046734 | F33: -0.030529 | G33: -0.070352
B34: 9 | C34: Eastern | D34: =IFERROR(IF(E14="-",0-D14,E14-D14),"-") -> -7.406702 | E34: - | F34: - | G34: -
B35: 10 | C35: South Wales | D35: =IFERROR(IF(E15="-",0-D15,E15-D15),"-") -> -5.783675 | E35: -0.133237 | F35: 0.002371 | G35: 0.585194
B36: 11 | C36: South East | D36: =IFERROR(IF(E16="-",0-D16,E16-D16),"-") -> -7.44446 | E36: -0.139747 | F36: 0.010241 | G36: -0.036137
B37: 12 | C37: London | D37: =IFERROR(IF(E17="-",0-D17,E17-D17),"-") -> -5.765745 | E37: -0.113624 | F37: 0.01176 | G37: -0.01594
B38: 13 | C38: Southern | D38: =IFERROR(IF(E18="-",0-D18,E18-D18),"-") -> -6.888768 | E38: -0.054314 | F38: 0.011831 | G38: 0.018444
B39: 14 | C39: South Western | D39: =IFERROR(IF(E19="-",0-D19,E19-D19),"-") -> -7.108652 | E39: =IFERROR(IF(F19="-",0-E19,F19-E19),"-") -> 0.022482 | F39: =IFERROR(IF(G19="-",0-F19,G19-F19),"-") -> 0.000329 | G39: =IFERROR(IF(H19="-",0-G19,H19-G19),"-") -> 0.233398

Sheet T19
A1: Table 19 - Generation contracted, modelled and chargeable TEC | H1: Return to Index
B4: Best View | C4: ='T14'!C4 -> 2022/23 | D4: ='T14'!D4 -> 2023/24 | E4: ='T14'!E4 -> 2024/25 | F4: ='T14'!F4 -> 2025/26 | G4: ='T14'!G4 -> 2026/27
B5: Contracted TEC (GW) | C5: 89.91283 | D5: 101.56929 | E5: 125.99087 | F5: 142.09767 | G5: 151.02797
B6: Modelled TEC (GW) | C6: 84.32323 | D6: 85.79471 | E6: 89.47831 | F6: 96.40011 | G6: 97.73671
B7: Chargeable TEC (GW) | C7: 74.93423 | D7: 73.50571 | E7: 72.08931 | F7: 78.96111 | G7: 80.34771

Sheet T20
A1: Table 20 – Interconnectors Contracted TEC | H1: Return to Index
B4: Interconnector | C4: Node | D4: Zone | E4: ='T14'!C4 -> 2022/23 | F4: ='T14'!D4 -> 2023/24 | G4: ='T14'!E4 -> 2024/25 | H4: ='T14'!F4 -> 2025/26 | I4: ='T14'!G4 -> 2026/27
E5: (MW) | F5: (MW) | G5: (MW) | H5: (MW) | I5: (MW)
B6: Aquind Interconnector | C6: LOVE40 | D6: =INDEX(TA!E:E,MATCH('T20'!$B6&'T20'!$C6,TA!$B:$B&TA!$D:$D,0)) -> 25 | G6: =INDEX(TA!H:H,MATCH('T20'!$B6&'T20'!$C6,TA!$B:$B&TA!$D:$D,0)) -> 2000 | H6: =INDEX(TA!I:I,MATCH('T20'!$B6&'T20'!$C6,TA!$B:$B&TA!$D:$D,0)) -> 2000 | I6: =INDEX(TA!J:J,MATCH('T20'!$B6&'T20'!$C6,TA!$B:$B&TA!$D:$D,0)) -> 2000
B7: Auchencrosh (interconnector CCT) | C7: AUCH20 | D7: =INDEX(TA!E:E,MATCH('T20'!$B7&'T20'!$C7,TA!$B:$B&TA!$D:$D,0)) -> 10 | E7: =INDEX(TA!F:F,MATCH('T20'!$B7&'T20'!$C7,TA!$B:$B&TA!$D:$D,0)) -> 660 | F7: =INDEX(TA!G:G,MATCH('T20'!$B7&'T20'!$C7,TA!$B:$B&TA!$D:$D,0)) -> 660 | G7: =INDEX(TA!H:H,MATCH('T20'!$B7&'T20'!$C7,TA!$B:$B&TA!$D:$D,0)) -> 660 | H7: =INDEX(TA!I:I,MATCH('T20'!$B7&'T20'!$C7,TA!$B:$B&TA!$D:$D,0)) -> 660 | I7: =INDEX(TA!J:J,MATCH('T20'!$B7&'T20'!$C7,TA!$B:$B&TA!$D:$D,0)) -> 660
B8: Britned | C8: GRAI40 | D8: =INDEX(TA!E:E,MATCH('T20'!$B8&'T20'!$C8,TA!$B:$B&TA!$D:$D,0)) -> 24 | E8: =INDEX(TA!F:F,MATCH('T20'!$B8&'T20'!$C8,TA!$B:$B&TA!$D:$D,0)) -> 1200 | F8: =INDEX(TA!G:G,MATCH('T20'!$B8&'T20'!$C8,TA!$B:$B&TA!$D:$D,0)) -> 1200 | G8: =INDEX(TA!H:H,MATCH('T20'!$B8&'T20'!$C8,TA!$B:$B&TA!$D:$D,0)) -> 1200 | H8: =INDEX(TA!I:I,MATCH('T20'!$B8&'T20'!$C8,TA!$B:$B&TA!$D:$D,0)) -> 1200 | I8: =INDEX(TA!J:J,MATCH('T20'!$B8&'T20'!$C8,TA!$B:$B&TA!$D:$D,0)) -> 1200
B9: Cronos | C9: KEMS40 | D9: =INDEX(TA!E:E,MATCH('T20'!$B9&'T20'!$C9,TA!$B:$B&TA!$D:$D,0)) -> 24 | H9: =INDEX(TA!I:I,MATCH('T20'!$B9&'T20'!$C9,TA!$B:$B&TA!$D:$D,0)) -> 1400 | I9: =INDEX(TA!J:J,MATCH('T20'!$B9&'T20'!$C9,TA!$B:$B&TA!$D:$D,0)) -> 1400
B10: East West Interconnector | C10: CONQ40 | D10: =INDEX(TA!E:E,MATCH('T20'!$B10&'T20'!$C10,TA!$B:$B&TA!$D:$D,0)) -> 16 | E10: =INDEX(TA!F:F,MATCH('T20'!$B10&'T20'!$C10,TA!$B:$B&TA!$D:$D,0)) -> 505 | F10: =INDEX(TA!G:G,MATCH('T20'!$B10&'T20'!$C10,TA!$B:$B&TA!$D:$D,0)) -> 505 | G10: =INDEX(TA!H:H,MATCH('T20'!$B10&'T20'!$C10,TA!$B:$B&TA!$D:$D,0)) -> 505 | H10: =INDEX(TA!I:I,MATCH('T20'!$B10&'T20'!$C10,TA!$B:$B&TA!$D:$D,0)) -> 505 | I10: =INDEX(TA!J:J,MATCH('T20'!$B10&'T20'!$C10,TA!$B:$B&TA!$D:$D,0)) -> 505
B11: ElecLink | C11: SELL40 | D11: =INDEX(TA!E:E,MATCH('T20'!$B11&'T20'!$C11,TA!$B:$B&TA!$D:$D,0)) -> 24 | E11: =INDEX(TA!F:F,MATCH('T20'!$B11&'T20'!$C11,TA!$B:$B&TA!$D:$D,0)) -> 1000 | F11: =INDEX(TA!G:G,MATCH('T20'!$B11&'T20'!$C11,TA!$B:$B&TA!$D:$D,0)) -> 1000 | G11: =INDEX(TA!H:H,MATCH('T20'!$B11&'T20'!$C11,TA!$B:$B&TA!$D:$D,0)) -> 1000 | H11: =INDEX(TA!I:I,MATCH('T20'!$B11&'T20'!$C11,TA!$B:$B&TA!$D:$D,0)) -> 1000 | I11: =INDEX(TA!J:J,MATCH('T20'!$B11&'T20'!$C11,TA!$B:$B&TA!$D:$D,0)) -> 1000
B12: EuroLink | C12: LEIS4A | D12: =INDEX(TA!E:E,MATCH('T20'!$B12&'T20'!$C12,TA!$B:$B&TA!$D:$D,0)) -> 18 | G12: =INDEX(TA!H:H,MATCH('T20'!$B12&'T20'!$C12,TA!$B:$B&TA!$D:$D,0)) -> 1600 | H12: =INDEX(TA!I:I,MATCH('T20'!$B12&'T20'!$C12,TA!$B:$B&TA!$D:$D,0)) -> 1600 | I12: =INDEX(TA!J:J,MATCH('T20'!$B12&'T20'!$C12,TA!$B:$B&TA!$D:$D,0)) -> 1600
B13: FAB Link Interconnector | C13: EXET40 | D13: =INDEX(TA!E:E,MATCH('T20'!$B13&'T20'!$C13,TA!$B:$B&TA!$D:$D,0)) -> 26 | H13: =INDEX(TA!I:I,MATCH('T20'!$B13&'T20'!$C13,TA!$B:$B&TA!$D:$D,0)) -> 1400 | I13: =INDEX(TA!J:J,MATCH('T20'!$B13&'T20'!$C13,TA!$B:$B&TA!$D:$D,0)) -> 1400
B14: Greenlink | C14: PEMB40 | D14: =INDEX(TA!E:E,MATCH('T20'!$B14&'T20'!$C14,TA!$B:$B&TA!$D:$D,0)) -> 20 | E14: =INDEX(TA!F:F,MATCH('T20'!$B14&'T20'!$C14,TA!$B:$B&TA!$D:$D,0)) -> 504 | F14: =INDEX(TA!G:G,MATCH('T20'!$B14&'T20'!$C14,TA!$B:$B&TA!$D:$D,0)) -> 504 | G14: =INDEX(TA!H:H,MATCH('T20'!$B14&'T20'!$C14,TA!$B:$B&TA!$D:$D,0)) -> 504 | H14: =INDEX(TA!I:I,MATCH('T20'!$B14&'T20'!$C14,TA!$B:$B&TA!$D:$D,0)) -> 504 | I14: =INDEX(TA!J:J,MATCH('T20'!$B14&'T20'!$C14,TA!$B:$B&TA!$D:$D,0)) -> 504
B15: Gridlink Interconnector | C15: KINO40 | D15: =INDEX(TA!E:E,MATCH('T20'!$B15&'T20'!$C15,TA!$B:$B&TA!$D:$D,0)) -> 24 | G15: =INDEX(TA!H:H,MATCH('T20'!$B15&'T20'!$C15,TA!$B:$B&TA!$D:$D,0)) -> 1500 | H15: =INDEX(TA!I:I,MATCH('T20'!$B15&'T20'!$C15,TA!$B:$B&TA!$D:$D,0)) -> 1500 | I15: =INDEX(TA!J:J,MATCH('T20'!$B15&'T20'!$C15,TA!$B:$B&TA!$D:$D,0)) -> 1500
B16: IFA Interconnector | C16: SELL40 | D16: =INDEX(TA!E:E,MATCH('T20'!$B16&'T20'!$C16,TA!$B:$B&TA!$D:$D,0)) -> 24 | E16: =INDEX(TA!F:F,MATCH('T20'!$B16&'T20'!$C16,TA!$B:$B&TA!$D:$D,0)) -> 2000 | F16: =INDEX(TA!G:G,MATCH('T20'!$B16&'T20'!$C16,TA!$B:$B&TA!$D:$D,0)) -> 2000 | G16: =INDEX(TA!H:H,MATCH('T20'!$B16&'T20'!$C16,TA!$B:$B&TA!$D:$D,0)) -> 2000 | H16: =INDEX(TA!I:I,MATCH('T20'!$B16&'T20'!$C16,TA!$B:$B&TA!$D:$D,0)) -> 2000 | I16: =INDEX(TA!J:J,MATCH('T20'!$B16&'T20'!$C16,TA!$B:$B&TA!$D:$D,0)) -> 2000
B17: IFA2 Interconnector | C17: CHIL40 | D17: =INDEX(TA!E:E,MATCH('T20'!$B17&'T20'!$C17,TA!$B:$B&TA!$D:$D,0)) -> 26 | E17: =INDEX(TA!F:F,MATCH('T20'!$B17&'T20'!$C17,TA!$B:$B&TA!$D:$D,0)) -> 1100 | F17: =INDEX(TA!G:G,MATCH('T20'!$B17&'T20'!$C17,TA!$B:$B&TA!$D:$D,0)) -> 1100 | G17: =INDEX(TA!H:H,MATCH('T20'!$B17&'T20'!$C17,TA!$B:$B&TA!$D:$D,0)) -> 1100 | H17: =INDEX(TA!I:I,MATCH('T20'!$B17&'T20'!$C17,TA!$B:$B&TA!$D:$D,0)) -> 1100 | I17: =INDEX(TA!J:J,MATCH('T20'!$B17&'T20'!$C17,TA!$B:$B&TA!$D:$D,0)) -> 1100
B18: MARES | C18: BODE40 | D18: =INDEX(TA!E:E,MATCH('T20'!$B18&'T20'!$C18,TA!$B:$B&TA!$D:$D,0)) -> 16 | H18: =INDEX(TA!I:I,MATCH('T20'!$B18&'T20'!$C18,TA!$B:$B&TA!$D:$D,0)) -> 750 | I18: =INDEX(TA!J:J,MATCH('T20'!$B18&'T20'!$C18,TA!$B:$B&TA!$D:$D,0)) -> 750
B19: Nemo Link | C19: RICH40 | D19: =INDEX(TA!E:E,MATCH('T20'!$B19&'T20'!$C19,TA!$B:$B&TA!$D:$D,0)) -> 24 | E19: =INDEX(TA!F:F,MATCH('T20'!$B19&'T20'!$C19,TA!$B:$B&TA!$D:$D,0)) -> 1020 | F19: =INDEX(TA!G:G,MATCH('T20'!$B19&'T20'!$C19,TA!$B:$B&TA!$D:$D,0)) -> 1020 | G19: =INDEX(TA!H:H,MATCH('T20'!$B19&'T20'!$C19,TA!$B:$B&TA!$D:$D,0)) -> 1020 | H19: =INDEX(TA!I:I,MATCH('T20'!$B19&'T20'!$C19,TA!$B:$B&TA!$D:$D,0)) -> 1020 | I19: =INDEX(TA!J:J,MATCH('T20'!$B19&'T20'!$C19,TA!$B:$B&TA!$D:$D,0)) -> 1020
B20: NeuConnect Interconnector | C20: GRAI40 | D20: =INDEX(TA!E:E,MATCH('T20'!$B20&'T20'!$C20,TA!$B:$B&TA!$D:$D,0)) -> 24 | F20: =INDEX(TA!G:G,MATCH('T20'!$B20&'T20'!$C20,TA!$B:$B&TA!$D:$D,0)) -> 1400 | G20: =INDEX(TA!H:H,MATCH('T20'!$B20&'T20'!$C20,TA!$B:$B&TA!$D:$D,0)) -> 1400 | H20: =INDEX(TA!I:I,MATCH('T20'!$B20&'T20'!$C20,TA!$B:$B&TA!$D:$D,0)) -> 1400 | I20: =INDEX(TA!J:J,MATCH('T20'!$B20&'T20'!$C20,TA!$B:$B&TA!$D:$D,0)) -> 1400
B21: NorthConnect | C21: PEHE20 | D21: =INDEX(TA!E:E,MATCH('T20'!$B21&'T20'!$C21,TA!$B:$B&TA!$D:$D,0)) -> 2 | I21: =INDEX(TA!J:J,MATCH('T20'!$B21&'T20'!$C21,TA!$B:$B&TA!$D:$D,0)) -> 1400
B22: NS Link | C22: BLYT4A | D22: =INDEX(TA!E:E,MATCH('T20'!$B22&'T20'!$C22,TA!$B:$B&TA!$D:$D,0)) -> 13 | E22: =INDEX(TA!F:F,MATCH('T20'!$B22&'T20'!$C22,TA!$B:$B&TA!$D:$D,0)) -> 1400 | F22: =INDEX(TA!G:G,MATCH('T20'!$B22&'T20'!$C22,TA!$B:$B&TA!$D:$D,0)) -> 1400 | G22: =INDEX(TA!H:H,MATCH('T20'!$B22&'T20'!$C22,TA!$B:$B&TA!$D:$D,0)) -> 1400 | H22: =INDEX(TA!I:I,MATCH('T20'!$B22&'T20'!$C22,TA!$B:$B&TA!$D:$D,0)) -> 1400 | I22: =INDEX(TA!J:J,MATCH('T20'!$B22&'T20'!$C22,TA!$B:$B&TA!$D:$D,0)) -> 1400
B23: Tarchon | C23: CORI10 | D23: =INDEX(TA!E:E,MATCH('T20'!$B23&'T20'!$C23,TA!$B:$B&TA!$D:$D,0)) -> 1 | F23: =INDEX(TA!G:G,MATCH('T20'!$B23&'T20'!$C23,TA!$B:$B&TA!$D:$D,0)) -> 0 | G23: =INDEX(TA!H:H,MATCH('T20'!$B23&'T20'!$C23,TA!$B:$B&TA!$D:$D,0)) -> 0 | H23: =INDEX(TA!I:I,MATCH('T20'!$B23&'T20'!$C23,TA!$B:$B&TA!$D:$D,0)) -> 0 | I23: =INDEX(TA!J:J,MATCH('T20'!$B23&'T20'!$C23,TA!$B:$B&TA!$D:$D,0)) -> 1400
B24: Viking Link Denmark Interconnector | C24: BICF4A | D24: =INDEX(TA!E:E,MATCH('T20'!$B24&'T20'!$C24,TA!$B:$B&TA!$D:$D,0)) -> 17 | F24: =INDEX(TA!G:G,MATCH('T20'!$B24&'T20'!$C24,TA!$B:$B&TA!$D:$D,0)) -> 1500 | G24: =INDEX(TA!H:H,MATCH('T20'!$B24&'T20'!$C24,TA!$B:$B&TA!$D:$D,0)) -> 1500 | H24: =INDEX(TA!I:I,MATCH('T20'!$B24&'T20'!$C24,TA!$B:$B&TA!$D:$D,0)) -> 1500 | I24: =INDEX(TA!J:J,MATCH('T20'!$B24&'T20'!$C24,TA!$B:$B&TA!$D:$D,0)) -> 1500

Sheet T21
A1: Table 21 – Expansion constant and inflation indices | H1: Return to Index
B4: £/MWkm | D4: ='T14'!C4 -> 2022/23 | E4: ='T14'!D4 -> 2023/24 | F4: ='T14'!E4 -> 2024/25 | G4: ='T14'!F4 -> 2025/26 | H4: ='T14'!G4 -> 2026/27
B5: Expansion Constant | D5: 15.27649672 | E5: 15.58202665 | F5: 15.89366718 | G5: 16.21154053 | H5: 16.53067797
C6: 2018/19 | D6: =D4 -> 2022/23 | E6: =E4 -> 2023/24 | F6: =F4 -> 2024/25 | G6: =G4 -> 2025/26 | H6: =H4 -> 2026/27
B7: Base Revenue Inflation indices | C7: 1 | D7: 1.068271303 | E7: 1.087211931 | F7: 1.108208379 | G7: 1.130352864 | H7: =G7*1.02 -> 1.152959921

Sheet T22
A1: Table 22 – Allowed revenues | H1: Return to Index
B2: See T35-T38
B3: Allowed Revenues
B4: £m Nominal | C4: ='T14'!C4 -> 2022/23 | D4: ='T14'!D4 -> 2023/24 | E4: ='T14'!E4 -> 2024/25 | F4: ='T14'!F4 -> 2025/26 | G4: ='T14'!G4 -> 2026/27
B5: National Grid Electricity Transmission
B6: Price controlled revenue | C6: ='T35-T38'!B7 -> 1764.463435 | D6: ='T35-T38'!C7 -> 1704.385401 | E6: ='T35-T38'!D7 -> 1674.590069 | F6: ='T35-T38'!E7 -> 1645.018331 | G6: ='T35-T38'!F7 -> 1645.018331
B8: Income from TNUoS | C8: =C6-C7 -> 1764.463435 | D8: =D6-D7 -> 1704.385401 | E8: =E6-E7 -> 1674.590069 | F8: =F6-F7 -> 1645.018331 | G8: =G6-G7 -> 1645.018331
B10: Scottish Power Transmission
B11: Price controlled revenue | C11: ='T35-T38'!B8 -> 348.7116767 | D11: ='T35-T38'!C8 -> 370.9337303 | E11: ='T35-T38'!D8 -> 361.6272528 | F11: ='T35-T38'!E8 -> 337.5638107 | G11: ='T35-T38'!F8 -> 337.5638107
B13: Income from TNUoS | C13: =C11-C12 -> 348.7116767 | D13: =D11-D12 -> 370.9337303 | E13: =E11-E12 -> 361.6272528 | F13: =F11-F12 -> 337.5638107 | G13: =G11-G12 -> 337.5638107
B15: SHE Transmission
B16: Price controlled revenue | C16: ='T35-T38'!B9 -> 632.6502611 | D16: ='T35-T38'!C9 -> 582.9445252 | E16: ='T35-T38'!D9 -> 586.6751876 | F16: ='T35-T38'!E9 -> 563.365203 | G16: ='T35-T38'!F9 -> 563.365203
B18: Income from TNUoS | C18: =C16-C17 -> 632.6502611 | D18: =D16-D17 -> 582.9445252 | E18: =E16-E17 -> 586.6751876 | F18: =F16-F17 -> 563.365203 | G18: =G16-G17 -> 563.365203
B20: National Grid Electricity System Operator
B21: Pass-through from TNUoS | C21: =SUM('T35-T38'!B15:B16)+'T35-T38'!B21+'T35-T38'!B22+'T35-T38'!B23 -> 67.33202564 | D21: =SUM('T35-T38'!C15:C16)+'T35-T38'!C21+'T35-T38'!C22+'T35-T38'!C23 -> 67.34791815 | E21: =SUM('T35-T38'!D15:D16)+'T35-T38'!D21+'T35-T38'!D22+'T35-T38'!D23 -> 67.4125348 | F21: =SUM('T35-T38'!E15:E16)+'T35-T38'!E21+'T35-T38'!E22+'T35-T38'!E23 -> 67.45448923 | G21: =SUM('T35-T38'!F15:F16)+'T35-T38'!F21+'T35-T38'!F22+'T35-T38'!F23 -> 67.51427697
B23: Offshore (+ Interconnector cap&floor) | C23: ='T35-T38'!B17 -> 552.8453759 | D23: ='T35-T38'!C17 -> 656.452808 | E23: ='T35-T38'!D17 -> 757.0635159 | F23: ='T35-T38'!E17 -> 876.367552 | G23: ='T35-T38'!F17 -> 936.7316512
B25: Total to Collect from TNUoS | C25: =C8+C13+C18+C23+C24+C21 -> 3366.002775 | D25: =D8+D13+D18+D23+D24+D21 -> 3382.064383 | E25: 3447.36856 | F25: 3489.769386 | G25: 3550.193273

Sheet T23
A1: Table 23 - Error margin calculation | H1: Return to Index
B4: Calculation for | C4: ='T14'!C4 -> 2022/23
C5: Revenue inputs | E5: Generation output variance
B6: Data from year: | C6: Revenue variance | D6: Adjusted variance
B7: 2015/16 | C7: -0.08687551639 | D7: =C7-$C$15 -> -0.00132407814 | E7: -0.122422115
B8: 2016/17 | C8: -0.05075136741 | D8: =C8-$C$15 -> 0.03480007084 | E8: -0.07888897263
B9: 2017/18 | C9: -0.05188720592 | D9: =C9-$C$15 -> 0.03366423232 | E9: -0.01481214282
B10: 2018/19 | C10: -0.09174961194 | D10: =C10-$C$15 -> -0.006198173696 | E10: -0.0747768728
B11: 2019/20 | C11: -0.1464934896 | D11: =C11-$C$15 -> -0.06094205133 | E11: -0.04113659856
B12: 2020/21
B15: Systemic error: | C15: =AVERAGE(C7:C11) -> -0.08555143825
B16: Adjusted error: | D16: =ROUND(MAX(-MIN(D7:D11),MAX(D7:D11)),3) -> 0.061 | E16: =ROUND(MAX(-MIN(E7:E11),MAX(E7:E11)),3) -> 0.122
B17: Error margin = | E17: =((1+D16)/(1-E16)-1) -> 0.208428246
B19: Adjusted variance = the revenue variance - systemic error
B20: Systemic error = the average of all the values in the series
B21: Adjusted error = the maximum of the (absolute) values in the series

Sheet T24
A1: Table 24 – Generation and demand revenue proportions | H1: Return to Index
D4: ='T14'!C4 -> 2022/23 | E4: ='T14'!D4 -> 2023/24 | F4: ='T14'!E4 -> 2024/25 | G4: ='T14'!F4 -> 2025/26 | H4: ='T14'!G4 -> 2026/27
B5: CAPEC | C5: Limit on generation tariff (€/MWh) | D5: 2.5 | E5: 2.5 | F5: 2.5 | G5: 2.5 | H5: 2.5
B6: y | C6: Error Margin | D6: 0.208 | E6: 0.208 | F6: 0.208 | G6: 0.208 | H6: 0.208
B7: ER | C7: Exchange Rate (€/£) | D7: 1.13 | E7: 1.13 | F7: 1.13 | G7: 1.13 | H7: 1.13
B8: MAR | C8: Total Revenue (£m) | D8: 3366.002775 | E8: 3382.064383 | F8: 3447.36856 | G8: 3489.769386 | H8: 3550.193273
B9: GO | C9: Generation Output (TWh) | D9: 209.96 | E9: 206.548873 | F9: 207.9132352 | G9: 213.9520304 | H9: 213.9520304
B10: G | C10: % of revenue from generation | D10: =D12/D8 -> 0.248415643 | E10: =E12/E8 -> 0.2673887342 | F10: 0.2967721729 | G10: 0.3301527596 | H10: 0.3360391988
B11: D | C11: % of revenue from demand | D11: =D13/D8 -> 0.751584357 | E11: =E13/E8 -> 0.7326112658 | F11: 0.7032278271 | G11: 0.6698472404 | H11: 0.6639608012
B12: G.MAR | C12: Revenue recovered from generation (£m) | D12: =D22 -> 836.1677436 | E12: =E22 -> 904.3259145 | F12: 1023.083059 | G12: 1152.156993 | H12: 1193.004103
B13: D.MAR | C13: Revenue recovered from demand (£m) | D13: =D8-D12 -> 2529.835031 | E13: =E8-E12 -> 2477.738468 | F13: 2424.285502 | G13: 2337.612393 | H13: 2357.18917
B14: Breakdown of generation revenue
C15: Revenue from the Peak element | D15: 138.219743 | E15: 109.2962009 | F15: 98.61429091 | G15: 82.15746488 | H15: 66.97676374
C16: Revenue from the Year Round Shared element | D16: 108.3958963 | E16: 130.1351611 | F16: 125.0927612 | G16: 151.6230357 | H16: 179.9500536
C17: Revenue from the Year Round Not Shared element | D17: 143.275886 | E17: 137.3954641 | F17: 187.6164722 | G17: 314.4104428 | H17: 386.4730998
C18: Revenue from Onshore Local Circuit tariffs | D18: 16.11397476 | E18: 17.30558775 | F18: 38.51042641 | G18: 67.3069872 | H18: 71.17141505
C19: Revenue from Onshore Local Substation tariffs | D19: 10.47905999 | E19: 11.0610034 | F19: 11.74140182 | G19: 12.76298048 | H19: 14.25266393
C20: Revenue from Offshore Local tariffs | D20: 451.0289014 | E20: 523.1364214 | F20: 618.7939162 | G20: 722.2794204 | H20: 758.4212025
C21: Revenue from the adjustment element | D21: -31.34571776 | E21: -24.00392417 | F21: -57.28621018 | G21: -198.3833383 | H21: -284.2410956
B22: G.MAR | C22: Total Revenue recovered from generation (£m) | D22: 836.1677436 | E22: 904.3259145 | F22: 1023.083059 | G22: 1152.156993 | H22: 1193.004103
C23: Revenue from large embedded generation (£m) | D23: 7.087956778 | E23: 7.499090026 | F23: 9.184999748 | G23: 9.105094431 | H23: 9.303097556
C24: Revenue from local charges associated with pre-existing assets (indicative) (£m) | D24: =SUM('T40'!D4:D5) -> 1.94 | E24: =SUM('T40'!E4:E5) -> 2.097019819 | F24: =SUM('T40'!F4:F5) -> 3.689424988 | G24: =SUM('T40'!G4:G5) -> 18.42048048 | H24: =SUM('T40'!H4:H5) -> 19.26726707

Sheet T25
A1: Table 25 – Demand charging base and system peak | H1: Return to Index
C4: ='T14'!C4 -> 2022/23 | D4: ='T14'!D4 -> 2023/24 | E4: ='T14'!E4 -> 2024/25 | F4: ='T14'!F4 -> 2025/26 | G4: ='T14'!G4 -> 2026/27
B5: Average System Demand at Triad (GW) | C5: 49.83141566 | D5: 49.74529366 | E5: 49.79097282 | F5: 49.78205047 | G5: 49.88549903
B6: Average HH Metered Demand at Triad (GW) | C6: 19.06637584 | D6: 19.02524161 | E6: 19.16165789 | F6: 19.10100441 | G6: 19.14056473
B7: Chargeable Export Volume (GW) | C7: 6.536476028 | D7: 6.662188409 | E7: 6.761011362 | F7: 6.177905178 | G7: 6.854573831
B8: NHH Annual Energy between 4pm and 7pm (TWh) | C8: 24.18496997 | D8: 24.20606275 | E8: 24.00405339 | F8: 24.0490352 | G8: 24.1767876
B12: `

Sheet T26
A1: Table 26 - Residual Calculation | H1: Return to Index
A3: Component | C3: ='T14'!C4 -> 2022/23 | D3: ='T14'!D4 -> 2023/24 | E3: ='T14'!E4 -> 2024/25 | F3: ='T14'!F4 -> 2025/26 | G3: ='T14'!G4 -> 2026/27
A4: G | B4: Proportion of revenue recovered from generation (%) | C4: ='T24'!D10 -> 0.248415643 | D4: ='T24'!E10 -> 0.2673887342 | E4: ='T24'!F10 -> 0.2967721729 | F4: ='T24'!G10 -> 0.3301527596 | G4: ='T24'!H10 -> 0.3360391988
A5: D | B5: Proportion of revenue recovered from demand (%) | C5: ='T24'!D11 -> 0.751584357 | D5: ='T24'!E11 -> 0.7326112658 | E5: ='T24'!F11 -> 0.7032278271 | F5: ='T24'!G11 -> 0.6698472404 | G5: ='T24'!H11 -> 0.6639608012
A6: R | B6: Total TNUoS revenue (£m) | C6: ='T24'!D8 -> 3366.002775 | D6: ='T24'!E8 -> 3382.064383 | E6: ='T24'!F8 -> 3447.36856 | F6: ='T24'!G8 -> 3489.769386 | G6: ='T24'!H8 -> 3550.193273
A7: Generation Residual
A8: RG | B8: Generator adjustment tariff (£/kW) | C8: ='T24'!D21/'T26'!C13 -> -0.4183097332 | D8: ='T24'!E21/'T26'!D13 -> -0.3265586329 | E8: ='T24'!F21/'T26'!E13 -> -0.7946561034 | F8: ='T24'!G21/'T26'!F13 -> -2.512418308 | G8: ='T24'!H21/'T26'!G13 -> -3.537637795
A9: ZG | B9: Revenue recovered from the locational element of generator tariffs (£m) | C9: =SUM('T24'!D15:D17) -> 389.8915253 | D9: =SUM('T24'!E15:E17) -> 376.8268261 | E9: =SUM('T24'!F15:F17) -> 411.3235243 | F9: =SUM('T24'!G15:G17) -> 548.1909434 | G9: =SUM('T24'!H15:H17) -> 633.3999172
A10: O | B10: Revenue recovered from offshore local tariffs (£m) | C10: ='T24'!D20 -> 451.0289014 | D10: ='T24'!E20 -> 523.1364214 | E10: ='T24'!F20 -> 618.7939162 | F10: ='T24'!G20 -> 722.2794204 | G10: ='T24'!H20 -> 758.4212025
A11: LG | B11: Revenue recovered from onshore local substation tariffs (£m) | C11: ='T24'!D19 -> 10.47905999 | D11: ='T24'!E19 -> 11.0610034 | E11: ='T24'!F19 -> 11.74140182 | F11: ='T24'!G19 -> 12.76298048 | G11: ='T24'!H19 -> 14.25266393
A12: SG | B12: Revenue recovered from onshore local circuit tariffs (£m) | C12: ='T24'!D18 -> 16.11397476 | D12: ='T24'!E18 -> 17.30558775 | E12: ='T24'!F18 -> 38.51042641 | F12: ='T24'!G18 -> 67.3069872 | G12: ='T24'!H18 -> 71.17141505
A13: BG | B13: Generator charging base (GW) | C13: ='T19'!C7 -> 74.93423 | D13: ='T19'!D7 -> 73.50571 | E13: ='T19'!E7 -> 72.08931 | F13: ='T19'!F7 -> 78.96111 | G13: ='T19'!G7 -> 80.34771
A14: Gross Demand Residual
A15: RD (tariff) | B15: Demand residual tariff (£/kW) | C15: =(C5*C6-C17+C19)/C20 -> 53.14321756
A16: RD | B16: Demand residual (£m) | C16: =(C6*C5)-C17+C19 -> 2648.201764 | D16: =(D6*D5)-D18+D19 -> 2400.078125 | E16: =(E6*E5)-E18+E19 -> 2357.068823 | F16: 2270.03449 | G16: 2281.242373
A17: ZD (Unfloored) | B17: Revenue recovered from the locational element of demand tariffs (£m) | C17: -104.3861181 | D17: -111.8775264 | E17: -113.6479958 | F17: -128.6092255 | G17: -141.628321
A18: ZD (Floored) | B18: Revenue recovered from the locational element of demand tariffs (£m) | D18: 91.36377322 | E18: 79.91932108 | F18: 80.26119301 | G18: 90.91506754
A19: EE | B19: Amount to be paid to Embedded Export Tariffs (£m) | C19: 13.98061477 | D19: 13.70342978 | E19: 12.70264247 | F19: 12.68328946 | G19: 14.9682703
A20: BD | B20: Demand Gross charging base (GW) | C20: 49.83141566 | D20: 49.74529366 | E20: 49.79097282 | F20: 49.78205047 | G20: 49.88549903

Sheet S1-S3
A1: Tables S1-S3 – The impact of new interconnectors (Gridlink) on 2024/25 Tariffs | H1: Return to Index
B4: S1 -Impact of connecting Gridlink on 2024/25 Generation Tariffs
D5: 2024/25 excluding Gridlink | H5: 2024/25 Base case including Gridlink | L5: Change in tariffs
B6: Generation Tariffs | D6: System Peak Tariff | E6: Shared Year Round Tariff | F6: Not Shared Year Round Tariff | G6: Adjustment Tariff | H6: System Peak Tariff | I6: Shared Year Round Tariff | J6: Not Shared Year Round Tariff | K6: Adjustment Tariff | L6: Change in System Peak Tariff | M6: Change in Shared Year Round Tariff | N6: Change in Not Shared Year Round Tariff | O6: Change in Adjustment Tariff
B8: Zone | C8: Zone Name | D8: (£/kW) | E8: (£/kW) | F8: (£/kW) | G8: (£/kW) | H8: (£/kW) | I8: (£/kW) | J8: (£/kW) | K8: (£/kW) | L8: (£/kW) | M8: (£/kW) | N8: (£/kW) | O8: (£/kW)
B9: 1 | C9: North Scotland | D9: 3.161767 | E9: 16.086402 | F9: 18.722166 | G9: -0.815932 | H9: 3.228161 | I9: 15.922323 | J9: 18.664738 | K9: -0.794656 | L9: 0.066394 | M9: -0.164079 | N9: -0.057428 | O9: 0.021276
B10: 2 | C10: East Aberdeenshire | D10: 4.185079 | E10: 8.247195 | F10: 18.722166 | G10: -0.815932 | H10: 4.250525 | I10: 8.142102 | J10: 18.664738 | K10: -0.794656 | L10: 0.065446 | M10: -0.105093 | N10: -0.057428 | O10: 0.021276
B11: 3 | C11: Western Highlands | D11: 2.928811 | E11: 15.204756 | F11: 18.061935 | G11: -0.815932 | H11: 2.997512 | I11: 15.037159 | J11: 18.001873 | K11: -0.794656 | L11: 0.068701 | M11: -0.167597 | N11: -0.060062 | O11: 0.021276
B12: 4 | C12: Skye and Lochalsh | D12: -1.748862 | E12: 15.204756 | F12: 19.96597 | G12: -0.815932 | H12: -1.680886 | I12: 15.037159 | J12: 19.912713 | K12: -0.794656 | L12: 0.067976 | M12: -0.167597 | N12: -0.053257 | O12: 0.021276
B13: 5 | C13: Eastern Grampian and Tayside | D13: 4.163166 | E13: 13.888773 | F13: 16.785197 | G13: -0.815932 | H13: 4.387196 | I13: 13.717591 | J13: 16.721655 | K13: -0.794656 | L13: 0.22403 | M13: -0.171182 | N13: -0.063542 | O13: 0.021276
B14: 6 | C14: Central Grampian | D14: 3.768045 | E14: 12.602691 | F14: 15.224371 | G14: -0.815932 | H14: 4.38806 | I14: 12.19859 | J14: 14.878152 | K14: -0.794656 | L14: 0.620015 | M14: -0.404101 | N14: -0.346219 | O14: 0.021276
B15: 7 | C15: Argyll | D15: 2.460362 | E15: 10.519804 | F15: 20.648837 | G15: -0.815932 | H15: 3.619144 | I15: 10.347591 | J15: 19.779364 | K15: -0.794656 | L15: 1.158782 | M15: -0.172213 | N15: -0.869473 | O15: 0.021276
B16: 8 | C16: The Trossachs | D16: 3.389702 | E16: 10.519804 | F16: 12.651836 | G16: -0.815932 | H16: 3.564477 | I16: 10.347591 | J16: 12.592019 | K16: -0.794656 | L16: 0.174775 | M16: -0.172213 | N16: -0.059817 | O16: 0.021276
B17: 9 | C17: Stirlingshire and Fife | D17: 2.436418 | E17: 9.685183 | F17: 11.899408 | G17: -0.815932 | H17: 2.479158 | I17: 9.551003 | J17: 11.873878 | K17: -0.794656 | L17: 0.04274 | M17: -0.13418 | N17: -0.02553 | O17: 0.021276
B18: 10 | C18: South West Scotlands | D18: 1.663145 | E18: 9.884783 | F18: 12.062895 | G18: -0.815932 | H18: 1.736632 | I18: 9.73131 | J18: 12.021562 | K18: -0.794656 | L18: 0.073487 | M18: -0.153473 | N18: -0.041333 | O18: 0.021276
B19: 11 | C19: Lothian and Borders | D19: 3.319087 | E19: 9.884783 | F19: 7.181799 | G19: -0.815932 | H19: 3.374947 | I19: 9.73131 | J19: 7.170162 | K19: -0.794656 | L19: 0.05586 | M19: -0.153473 | N19: -0.011637 | O19: 0.021276
B20: 12 | C20: Solway and Cheviot | D20: 1.233697 | E20: 6.759158 | F20: 6.304759 | G20: -0.815932 | H20: 1.302351 | I20: 6.614974 | J20: 6.280539 | K20: -0.794656 | L20: 0.068654 | M20: -0.144184 | N20: -0.02422 | O20: 0.021276
B21: 13 | C21: North East England | D21: 3.307376 | E21: 5.777514 | F21: 4.41431 | G21: -0.815932 | H21: 3.356563 | I21: 5.652913 | J21: 4.427803 | K21: -0.794656 | L21: 0.049187 | M21: -0.124601 | N21: 0.013493 | O21: 0.021276
B22: 14 | C22: North Lancashire and The Lakes | D22: 1.179782 | E22: 5.777514 | F22: 0.396937 | G22: -0.815932 | H22: 1.255895 | I22: 5.652913 | J22: 0.348719 | K22: -0.794656 | L22: 0.076113 | M22: -0.124601 | N22: -0.048218 | O22: 0.021276
B23: 15 | C23: South Lancashire, Yorkshire and Humber | D23: 4.092066 | E23: 2.371723 | F23: 0.805813 | G23: -0.815932 | H23: 4.130216 | I23: 2.265403 | J23: 0.838674 | K23: -0.794656 | L23: 0.03815 | M23: -0.10632 | N23: 0.032861 | O23: 0.021276
B24: 16 | C24: North Midlands and North Wales | D24: 3.330793 | E24: 0.507538 | F24: - | G24: -0.815932 | H24: 3.367914 | I24: 0.325194 | J24: - | K24: -0.794656 | L24: 0.037121 | M24: -0.182344 | N24: - | O24: 0.021276
B25: 17 | C25: South Lincolnshire and North Norfolk | D25: 3.564177 | E25: 2.89771 | F25: - | G25: -0.815932 | H25: 3.593202 | I25: 2.819282 | J25: - | K25: -0.794656 | L25: 0.029025 | M25: -0.078428 | N25: - | O25: 0.021276
B26: 18 | C26: Mid Wales and The Midlands | D26: 0.481932 | E26: 5.34355 | F26: - | G26: -0.815932 | H26: 0.578087 | I26: 5.318168 | J26: - | K26: -0.794656 | L26: 0.096155 | M26: -0.025382 | N26: - | O26: 0.021276
B27: 19 | C27: Anglesey and Snowdon | D27: 5.850288 | E27: -0.312006 | F27: - | G27: -0.815932 | H27: 5.922122 | I27: -0.516703 | J27: - | K27: -0.794656 | L27: 0.071834 | M27: -0.204697 | N27: - | O27: 0.021276
B28: 20 | C28: Pembrokeshire | D28: 7.841154 | E28: -6.431786 | F28: - | G28: -0.815932 | H28: 7.810953 | I28: -6.402058 | J28: - | K28: -0.794656 | L28: -0.030201 | M28: 0.029728 | N28: - | O28: 0.021276
B29: 21 | C29: South Wales & Gloucester | D29: 2.920793 | E29: -7.091065 | F29: - | G29: -0.815932 | H29: 2.887311 | I29: -7.011841 | J29: - | K29: -0.794656 | L29: -0.033482 | M29: 0.079224 | N29: - | O29: 0.021276
B30: 22 | C30: Cotswold | D30: 1.540515 | E30: 5.390403 | F30: -12.42483 | G30: -0.815932 | H30: 1.504294 | I30: 5.515635 | J30: -12.51782 | K30: -0.794656 | L30: -0.036221 | M30: 0.125232 | N30: -0.09299 | O30: 0.021276
B31: 23 | C31: Central London | D31: -3.601749 | E31: 5.390403 | F31: -6.288006 | G31: -0.815932 | H31: -3.646896 | I31: 5.515635 | J31: -6.278502 | K31: -0.794656 | L31: -0.045147 | M31: 0.125232 | N31: 0.009504 | O31: 0.021276
B32: 24 | C32: Essex and Kent | D32: -2.768663 | E32: 5.390403 | F32: - | G32: -0.815932 | H32: -2.755642 | I32: 5.515635 | J32: - | K32: -0.794656 | L32: 0.013021 | M32: 0.125232 | N32: - | O32: 0.021276
B33: 25 | C33: Oxfordshire, Surrey and Sussex | D33: -0.370227 | E33: -0.823485 | F33: - | G33: -0.815932 | H33: -0.433405 | I33: -0.690925 | J33: - | K33: -0.794656 | L33: -0.063178 | M33: 0.13256 | N33: - | O33: 0.021276
B34: 26 | C34: Somerset and Wessex | D34: -1.799169 | E34: -1.563207 | F34: - | G34: -0.815932 | H34: -1.843181 | I34: -1.45126 | J34: - | K34: -0.794656 | L34: -0.044012 | M34: 0.111947 | N34: - | O34: 0.021276
B35: 27 | C35: West Devon and Cornwall | D35: -2.337654 | E35: -9.676275 | F35: - | G35: -0.815932 | H35: -2.376864 | I35: -9.597891 | J35: - | K35: -0.794656 | L35: -0.03921 | M35: 0.078384 | N35: - | O35: 0.021276
B37: S2 -Impact of connecting Gridlink on 2024/25 Demand Tariffs | N37: S3 -Impact of connecting Gridlink on 2024/25 Demand Bandings
B38: Zone No. | C38: Zone Name | D38: 2024/25 excluding Gridlink | G38: 2024/25 base case including Gridlink | J38: Change in tariffs | N38: TDR Band | O38: 2024/25 excluding Gridlink TDR Tariff (£/site) | P38: 2024/25 base case including Gridlink TDR Tariff (£/site) | Q38: Change
D39: HH Gross Demand Zonal Locational Tariff (£/kW) | E39: NHH Demand Zonal Locational Tariff (p/kWh) | F39: Embedded Export Tariff (£/kW) | G39: HH Gross Demand Zonal Locational Tariff (£/kW) | H39: NHH Demand Zonal Locational Tariff (p/kWh) | I39: Embedded Export Tariff (£/kW) | J39: HH Gross Demand Zonal Locational Tariff (£/kW) | K39: NHH Demand Zonal Locational Tariff (p/kWh) | L39: Embedded Export Tariff (£/kW)
B40: 1 | C40: Northern Scotland | D40: - | E40: - | F40: - | G40: - | H40: - | I40: - | J40: - | K40: - | L40: - | N40: Domestic | O40: 30.57268784 | P40: 30.5817268 | Q40: =P40-O40 -> 0.009038955244
B41: 2 | C41: Southern Scotland | D41: - | E41: - | F41: - | G41: - | H41: - | I41: - | J41: - | K41: - | L41: - | N41: LV_NoMIC_1 | O41: 14.82295998 | P41: 14.82734246 | Q41: 0.004382476038
B42: 3 | C42: Northern | D42: - | E42: - | F42: - | G42: - | H42: - | I42: - | J42: - | K42: - | L42: - | N42: LV_NoMIC_2 | O42: 75.68875678 | P42: 75.71113451 | Q42: 0.02237772775
B43: 4 | C43: North West | D43: - | E43: - | F43: - | G43: - | H43: - | I43: - | J43: - | K43: - | L43: - | N43: LV_NoMIC_3 | O43: 177.28195 | P43: 177.3343642 | Q43: 0.05241422081
B44: 5 | C44: Yorkshire | D44: - | E44: - | F44: - | G44: - | H44: - | I44: - | J44: - | K44: - | L44: - | N44: LV_NoMIC_4 | O44: 528.7540988 | P44: 528.9104274 | Q44: 0.1563285721
B45: 6 | C45: N Wales & Mersey | D45: - | E45: - | F45: - | G45: - | H45: - | I45: - | J45: - | K45: - | L45: - | N45: LV1 | O45: 1099.420584 | P45: 1099.745633 | Q45: 0.3250487332
B46: 7 | C46: East Midlands | D46: - | E46: - | F46: 1.044328 | G46: - | H46: - | I46: 1.047299 | J46: - | K46: - | L46: 0.002971 | N46: LV2 | O46: 1830.963974 | P46: 1831.505307 | Q46: 0.5413328882
B47: 8 | C47: Midlands | D47: 1.455473 | E47: 0.18777 | F47: 3.865317 | G47: 1.542582 | H47: 0.199008 | I47: 3.952426 | J47: 0.087109 | K47: 0.011238 | L47: 0.087109 | N47: LV3 | O47: 2843.898066 | P47: 2844.738878 | Q47: 0.8408114939
B48: 9 | C48: Eastern | D48: - | E48: - | F48: 1.224688 | G48: - | H48: - | I48: 1.232163 | J48: - | K48: - | L48: 0.007475 | N48: LV4 | O48: 6394.044478 | P48: 6395.934907 | Q48: 1.890428547
B49: 10 | C49: South Wales | D49: 3.04472 | E49: 0.348033 | F49: 5.454564 | G49: 3.041558 | H49: 0.347672 | I49: 5.451402 | J49: -0.003162 | K49: -0.000361 | L49: -0.003162 | N49: HV1 | O49: 4579.662565 | P49: 4581.016563 | Q49: 1.353998221
B50: 11 | C50: South East | D50: 1.455937 | E50: 0.200048 | F50: 3.865781 | G50: 1.3275 | H50: 0.182401 | I50: 3.737344 | J50: -0.128437 | K50: -0.017647 | L50: -0.128437 | N50: HV2 | O50: 15857.72193 | P50: 15862.41034 | Q50: 4.688408147
B51: 12 | C51: London | D51: 3.684286 | E51: 0.3879 | F51: 6.09413 | G51: 3.578877 | H51: 0.376802 | I51: 5.988721 | J51: -0.105409 | K51: -0.011098 | L51: -0.105409 | N51: HV3 | O51: 30849.43719 | P51: 30858.55797 | Q51: 9.120777457
B52: 13 | C52: Southern | D52: 4.531606 | E52: 0.585814 | F52: 6.94145 | G52: 4.486189 | H52: 0.579943 | I52: 6.896033 | J52: -0.045417 | K52: -0.005871 | L52: -0.045417 | N52: HV4 | O52: 75997.94828 | P52: 76020.41742 | Q52: 22.46914163
B53: 14 | C53: South Western | D53: 9.772649 | E53: 1.361192 | F53: 12.182493 | G53: 9.750382 | H53: 1.35809 | I53: 12.160226 | J53: -0.022267 | K53: -0.003102 | L53: -0.022267 | N53: EHV1 | O53: 26681.85927 | P53: 26689.74789 | Q53: 7.88861395
N54: EHV2 | O54: 159463.7044 | P54: 159510.8506 | Q54: 47.14617488
N55: EHV3 | O55: 339930.6038 | P55: 340031.1058 | Q55: 100.5020406
N56: EHV4 | O56: 914132.4962 | P56: 914402.7637 | Q56: 270.267461
N57: T-Demand1 | O57: 138658.6733 | P57: 138699.6684 | Q57: 40.99507209
N58: T-Demand2 | O58: 492244.0589 | P58: 492389.5931 | Q58: 145.5342115
N59: T-Demand3 | O59: 968346.8337 | P59: 968633.1299 | Q59: 286.2961783
N60: T-Demand4 | O60: 2918865.297 | P60: 2919728.273 | Q60: 862.9758993
N61: Unmetered demand | P61: p/kWh per year
N62: Unmetered | O62: 0.9029981443 | P62: 0.9032651198 | Q62: =P62-O62 -> 0.0002669755389

Sheet S4-S6
A1: Tables S4-S6 – The impact of new interconnectors (Eurolink) on 2024/25 Tariffs | H1: Return to Index
B4: S4 -Impact of connecting Eurolink on 2024/25 Generation Tariffs
D5: 2024/25 excluding Eurolink | H5: 2024/25 Base case including Eurolink | L5: Change in tariffs
B6: Generation Tariffs | D6: System Peak Tariff | E6: Shared Year Round Tariff | F6: Not Shared Year Round Tariff | G6: Adjustment Tariff | H6: System Peak Tariff | I6: Shared Year Round Tariff | J6: Not Shared Year Round Tariff | K6: Adjustment Tariff | L6: Change in System Peak Tariff | M6: Change in Shared Year Round Tariff | N6: Change in Not Shared Year Round Tariff | O6: Change in Adjustment Tariff
B8: Zone | C8: Zone Name | D8: (£/kW) | E8: (£/kW) | F8: (£/kW) | G8: (£/kW) | H8: (£/kW) | I8: (£/kW) | J8: (£/kW) | K8: (£/kW) | L8: (£/kW) | M8: (£/kW) | N8: (£/kW) | O8: (£/kW)
B9: 1 | C9: North Scotland | D9: 3.20058 | E9: 16.051541 | F9: 18.739424 | G9: -0.799146 | H9: 3.228161 | I9: 15.922323 | J9: 18.664738 | K9: -0.794656 | L9: 0.027581 | M9: -0.129218 | N9: -0.074686 | O9: 0.00449
B10: 2 | C10: East Aberdeenshire | D10: 4.224174 | E10: 8.20832 | F10: 18.739424 | G10: -0.799146 | H10: 4.250525 | I10: 8.142102 | J10: 18.664738 | K10: -0.794656 | L10: 0.026351 | M10: -0.066218 | N10: -0.074686 | O10: 0.00449
B11: 3 | C11: Western Highlands | D11: 2.96746 | E11: 15.170192 | F11: 18.079416 | G11: -0.799146 | H11: 2.997512 | I11: 15.037159 | J11: 18.001873 | K11: -0.794656 | L11: 0.030052 | M11: -0.133033 | N11: -0.077543 | O11: 0.00449
B12: 4 | C12: Skye and Lochalsh | D12: -1.710227 | E12: 15.170192 | F12: 19.983017 | G12: -0.799146 | H12: -1.680886 | I12: 15.037159 | J12: 19.912713 | K12: -0.794656 | L12: 0.029341 | M12: -0.133033 | N12: -0.070304 | O12: 0.00449
B13: 5 | C13: Eastern Grampian and Tayside | D13: 4.201218 | E13: 13.852988 | F13: 16.801492 | G13: -0.799146 | H13: 4.387196 | I13: 13.717591 | J13: 16.721655 | K13: -0.794656 | L13: 0.185978 | M13: -0.135397 | N13: -0.079837 | O13: 0.00449
B14: 6 | C14: Central Grampian | D14: 3.804123 | E14: 12.56819 | F14: 15.242225 | G14: -0.799146 | H14: 4.38806 | I14: 12.19859 | J14: 14.878152 | K14: -0.794656 | L14: 0.583937 | M14: -0.3696 | N14: -0.364073 | O14: 0.00449
B15: 7 | C15: Argyll | D15: 2.494495 | E15: 10.48659 | F15: 20.667547 | G15: -0.799146 | H15: 3.619144 | I15: 10.347591 | J15: 19.779364 | K15: -0.794656 | L15: 1.124649 | M15: -0.138999 | N15: -0.888183 | O15: 0.00449
B16: 8 | C16: The Trossachs | D16: 3.425001 | E16: 10.48659 | F16: 12.67128 | G16: -0.799146 | H16: 3.564477 | I16: 10.347591 | J16: 12.592019 | K16: -0.794656 | L16: 0.139476 | M16: -0.138999 | N16: -0.079261 | O16: 0.00449
B17: 9 | C17: Stirlingshire and Fife | D17: 2.477817 | E17: 9.64741 | F17: 11.914742 | G17: -0.799146 | H17: 2.479158 | I17: 9.551003 | J17: 11.873878 | K17: -0.794656 | L17: 0.001341 | M17: -0.096407 | N17: -0.040864 | O17: 0.00449
B18: 10 | C18: South West Scotlands | D18: 1.693189 | E18: 9.851834 | F18: 12.08218 | G18: -0.799146 | H18: 1.736632 | I18: 9.73131 | J18: 12.021562 | K18: -0.794656 | L18: 0.043443 | M18: -0.120524 | N18: -0.060618 | O18: 0.00449
B19: 11 | C19: Lothian and Borders | D19: 3.372706 | E19: 9.851834 | F19: 7.187891 | G19: -0.799146 | H19: 3.374947 | I19: 9.73131 | J19: 7.170162 | K19: -0.794656 | L19: 0.002241 | M19: -0.120524 | N19: -0.017729 | O19: 0.00449
B20: 12 | C20: Solway and Cheviot | D20: 1.259827 | E20: 6.726668 | F20: 6.32489 | G20: -0.799146 | H20: 1.302351 | I20: 6.614974 | J20: 6.280539 | K20: -0.794656 | L20: 0.042524 | M20: -0.111694 | N20: -0.044351 | O20: 0.00449
B21: 13 | C21: North East England | D21: 3.397576 | E21: 5.727065 | F21: 4.399855 | G21: -0.799146 | H21: 3.356563 | I21: 5.652913 | J21: 4.427803 | K21: -0.794656 | L21: -0.041013 | M21: -0.074152 | N21: 0.027948 | O21: 0.00449
B22: 14 | C22: North Lancashire and The Lakes | D22: 1.184495 | E22: 5.727065 | F22: 0.466246 | G22: -0.799146 | H22: 1.255895 | I22: 5.652913 | J22: 0.348719 | K22: -0.794656 | L22: 0.0714 | M22: -0.074152 | N22: -0.117527 | O22: 0.00449
B23: 15 | C23: South Lancashire, Yorkshire and Humber | D23: 4.20669 | E23: 2.306993 | F23: 0.776225 | G23: -0.799146 | H23: 4.130216 | I23: 2.265403 | J23: 0.838674 | K23: -0.794656 | L23: -0.076474 | M23: -0.04159 | N23: 0.062449 | O23: 0.00449
B24: 16 | C24: North Midlands and North Wales | D24: 3.370536 | E24: 0.511254 | F24: - | G24: -0.799146 | H24: 3.367914 | I24: 0.325194 | J24: - | K24: -0.794656 | L24: -0.002622 | M24: -0.18606 | N24: - | O24: 0.00449
B25: 17 | C25: South Lincolnshire and North Norfolk | D25: 3.608342 | E25: 2.742345 | F25: - | G25: -0.799146 | H25: 3.593202 | I25: 2.819282 | J25: - | K25: -0.794656 | L25: -0.01514 | M25: 0.076937 | N25: - | O25: 0.00449
B26: 18 | C26: Mid Wales and The Midlands | D26: 0.605006 | E26: 4.714939 | F26: - | G26: -0.799146 | H26: 0.578087 | I26: 5.318168 | J26: - | K26: -0.794656 | L26: -0.026919 | M26: 0.603229 | N26: - | O26: 0.00449
B27: 19 | C27: Anglesey and Snowdon | D27: 5.801142 | E27: -0.255437 | F27: - | G27: -0.799146 | H27: 5.922122 | I27: -0.516703 | J27: - | K27: -0.794656 | L27: 0.12098 | M27: -0.261266 | N27: - | O27: 0.00449
B28: 20 | C28: Pembrokeshire | D28: 7.796151 | E28: -6.389663 | F28: - | G28: -0.799146 | H28: 7.810953 | I28: -6.402058 | J28: - | K28: -0.794656 | L28: 0.014802 | M28: -0.012395 | N28: - | O28: 0.00449
B29: 21 | C29: South Wales & Gloucester | D29: 2.874808 | E29: -7.048906 | F29: - | G29: -0.799146 | H29: 2.887311 | I29: -7.011841 | J29: - | K29: -0.794656 | L29: 0.012503 | M29: 0.037065 | N29: - | O29: 0.00449
B30: 22 | C30: Cotswold | D30: 1.493785 | E30: 5.435567 | F30: -12.421586 | G30: -0.799146 | H30: 1.504294 | I30: 5.515635 | J30: -12.51782 | K30: -0.794656 | L30: 0.010509 | M30: 0.080068 | N30: -0.096234 | O30: 0.00449
B31: 23 | C31: Central London | D31: -3.644958 | E31: 5.435567 | F31: -6.266867 | G31: -0.799146 | H31: -3.646896 | I31: 5.515635 | J31: -6.278502 | K31: -0.794656 | L31: -0.001938 | M31: 0.080068 | N31: -0.011635 | O31: 0.00449
B32: 24 | C32: Essex and Kent | D32: -2.765303 | E32: 5.435567 | F32: - | G32: -0.799146 | H32: -2.755642 | I32: 5.515635 | J32: - | K32: -0.794656 | L32: 0.009661 | M32: 0.080068 | N32: - | O32: 0.00449
B33: 25 | C33: Oxfordshire, Surrey and Sussex | D33: -0.426511 | E33: -0.755577 | F33: - | G33: -0.799146 | H33: -0.433405 | I33: -0.690925 | J33: - | K33: -0.794656 | L33: -0.006894 | M33: 0.064652 | N33: - | O33: 0.00449
B34: 26 | C34: Somerset and Wessex | D34: -1.847067 | E34: -1.494579 | F34: - | G34: -0.799146 | H34: -1.843181 | I34: -1.45126 | J34: - | K34: -0.794656 | L34: 0.003886 | M34: 0.043319 | N34: - | O34: 0.00449
B35: 27 | C35: West Devon and Cornwall | D35: -2.384905 | E35: -9.622031 | F35: - | G35: -0.799146 | H35: -2.376864 | I35: -9.597891 | J35: - | K35: -0.794656 | L35: 0.008041 | M35: 0.02414 | N35: - | O35: 0.00449
B37: S5 -Impact of connecting Eurolink on 2024/25 Demand Tariffs | N37: S6 -Impact of connecting Eurolink on 2024/25 Demand Bandings
B38: Zone No. | C38: Zone Name | D38: 2024/25 excluding Eurolink | G38: 2024/25 base case including Eurolink | J38: Change in tariffs | N38: TDR Band | O38: 2024/25 excluding Eurolink TDR Tariff (£/site) | P38: 2024/25 base case including Eurolink TDR Tariff (£/site) | Q38: Change
D39: HH Gross Demand Zonal Locational Tariff (£/kW) | E39: NHH Demand Zonal Locational Tariff (p/kWh) | F39: Embedded Export Tariff (£/kW) | G39: HH Gross Demand Zonal Locational Tariff (£/kW) | H39: NHH Demand Zonal Locational Tariff (p/kWh) | I39: Embedded Export Tariff (£/kW) | J39: HH Gross Demand Zonal Locational Tariff (£/kW) | K39: NHH Demand Zonal Locational Tariff (p/kWh) | L39: Embedded Export Tariff (£/kW)
B40: 1 | C40: Northern Scotland | D40: - | E40: - | F40: - | G40: - | H40: - | I40: - | J40: - | K40: - | L40: - | N40: Domestic | O40: 30.57896074 | P40: 30.5817268 | Q40: 0.002766062792
B41: 2 | C41: Southern Scotland | D41: - | E41: - | F41: - | G41: - | H41: - | I41: - | J41: - | K41: - | L41: - | N41: LV_NoMIC_1 | O41: 14.82600135 | P41: 14.82734246 | Q41: 0.001341106751
B42: 3 | C42: Northern | D42: - | E42: - | F42: - | G42: - | H42: - | I42: - | J42: - | K42: - | L42: - | N42: LV_NoMIC_2 | O42: 75.70428657 | P42: 75.71113451 | Q42: 0.006847937445
B43: 4 | C43: North West | D43: - | E43: - | F43: - | G43: - | H43: - | I43: - | J43: - | K43: - | L43: - | N43: LV_NoMIC_3 | O43: 177.3183246 | P43: 177.3343642 | Q43: 0.01603957781
B44: 5 | C44: Yorkshire | D44: - | E44: - | F44: - | G44: - | H44: - | I44: - | J44: - | K44: - | L44: - | N44: LV_NoMIC_4 | O44: 528.8625884 | P44: 528.9104274 | Q44: 0.04783900736
B45: 6 | C45: N Wales & Mersey | D45: - | E45: - | F45: - | G45: - | H45: - | I45: - | J45: - | K45: - | L45: - | N45: LV1 | O45: 1099.646163 | P45: 1099.745633 | Q45: 0.09947003632
B46: 7 | C46: East Midlands | D46: - | E46: - | F46: 1.06127 | G46: - | H46: - | I46: 1.047299 | J46: - | K46: - | L46: -0.013971 | N46: LV2 | O46: 1831.33965 | P46: 1831.505307 | Q46: 0.1656563972
B47: 8 | C47: Midlands | D47: 1.455122 | E47: 0.187725 | F47: 3.864966 | G47: 1.542582 | H47: 0.199008 | I47: 3.952426 | J47: 0.08746 | K47: 0.011283 | L47: 0.08746 | N47: LV3 | O47: 2844.481576 | P47: 2844.738878 | Q47: 0.2573015714
B48: 9 | C48: Eastern | D48: - | E48: - | F48: 1.331031 | G48: - | H48: - | I48: 1.232163 | J48: - | K48: - | L48: -0.098868 | N48: LV4 | O48: 6395.356406 | P48: 6395.934907 | Q48: 0.5785009355
B49: 10 | C49: South Wales | D49: 3.046687 | E49: 0.348258 | F49: 5.456531 | G49: 3.041558 | H49: 0.347672 | I49: 5.451402 | J49: -0.005129 | K49: -0.000586 | L49: -0.005129 | N49: HV1 | O49: 4580.602218 | P49: 4581.016563 | Q49: 0.4143447996
B50: 11 | C50: South East | D50: 1.388413 | E50: 0.19077 | F50: 3.798257 | G50: 1.3275 | H50: 0.182401 | I50: 3.737344 | J50: -0.060913 | K50: -0.008369 | L50: -0.060913 | N50: HV2 | O50: 15860.97561 | P50: 15862.41034 | Q50: 1.4347268
B51: 12 | C51: London | D51: 3.652186 | E51: 0.38452 | F51: 6.06203 | G51: 3.578877 | H51: 0.376802 | I51: 5.988721 | J51: -0.073309 | K51: -0.007718 | L51: -0.073309 | N51: HV3 | O51: 30855.76687 | P51: 30858.55797 | Q51: 2.791101679
B52: 13 | C52: Southern | D52: 4.523895 | E52: 0.584817 | F52: 6.933739 | G52: 4.486189 | H52: 0.579943 | I52: 6.896033 | J52: -0.037706 | K52: -0.004874 | L52: -0.037706 | N52: HV4 | O52: 76013.54151 | P52: 76020.41742 | Q52: 6.875911534
B53: 14 | C53: South Western | D53: 9.767688 | E53: 1.360501 | F53: 12.177532 | G53: 9.750382 | H53: 1.35809 | I53: 12.160226 | J53: -0.017306 | K53: -0.002411 | L53: -0.017306 | N53: EHV1 | O53: 26687.33385 | P53: 26689.74789 | Q53: 2.414040222
N54: EHV2 | O54: 159496.4231 | P54: 159510.8506 | Q54: 14.42747271
N55: EHV3 | O55: 340000.3506 | P55: 340031.1058 | Q55: 30.75520869
N56: EHV4 | O56: 914320.0576 | P56: 914402.7637 | Q56: 82.70610348
N57: T-Demand1 | O57: 138687.1232 | P57: 138699.6684 | Q57: 12.54513829
N58: T-Demand2 | O58: 492345.0573 | P58: 492389.5931 | Q58: 44.53576286
N59: T-Demand3 | O59: 968545.5188 | P59: 968633.1299 | Q59: 87.61114364
N60: T-Demand4 | O60: 2919464.189 | P60: 2919728.273 | Q60: 264.0842288
N61: Unmetered demand | P61: p/kWh per year
N62: Unmetered | O62: 0.9031834211 | P62: 0.9032651198 | Q62: 8.16987234e-05

Sheet S7
A1: Table S7 - Demand locational Tariffs (HH/NHH) - TDR Scenarios - floored/Unfloored tariffs | K1: Return to Index
D3: 2023/24 Locational Demand Tariffs
D4: HH | F4: NHH
D5: Floored | E5: Unfloored | F5: Floored | G5: Unfloored
B6: Zone | C6: Zone Name | D6: (£/kW) | E6: (£/kW) | F6: (p/kWh) | G6: (p/kWh)
B7: 1 | C7: Northern Scotland | D7: - | E7: -30.67527931 | F7: - | G7: -4.08416006
B8: 2 | C8: Southern Scotland | D8: - | E8: -21.91279488 | F8: - | G8: -2.788139272
B9: 3 | C9: Northern | D9: - | E9: -11.94323577 | F9: - | G9: -1.469239293
B10: 4 | C10: North West | D10: - | E10: -5.710426126 | F10: - | G10: -0.7264130531
B11: 5 | C11: Yorkshire | D11: - | E11: -4.882720834 | F11: - | G11: -0.5980985304
B12: 6 | C12: N Wales & Mersey | D12: - | E12: -4.029323303 | F12: - | G12: -0.4934682256
B13: 7 | C13: East Midlands | D13: - | E13: -1.233411015 | F13: - | G13: -0.155794542
B14: 8 | C14: Midlands | D14: 1.183251 | E14: 1.183251024 | F14: 0.1522743303 | G14: 0.1522743303
B15: 9 | C15: Eastern | D15: - | E15: -0.2386564622 | F15: - | G15: -0.03232226014
B16: 10 | C16: South Wales | D16: 4.227343 | E16: 4.227342607 | F16: 0.4809091111 | G16: 0.4809091111
B17: 11 | C17: South East | D17: 2.362135 | E17: 2.362134701 | F17: 0.3221477629 | G17: 0.3221477629
B18: 12 | C18: London | D18: 4.711316 | E18: 4.711316391 | F18: 0.4904262973 | G18: 0.4904262973
B19: 13 | C19: Southern | D19: 4.945049 | E19: 4.945048642 | F19: 0.6342565907 | G19: 0.6342565907
B20: 14 | C20: South Western | D20: 9.71902 | E20: 9.719019516 | F20: 1.335607589 | G20: 1.335607589
B22: Revenue Recovery (£m) | D22: 35.6279662 | E22: -39.38895995 | F22: 55.73580703 | G22: -72.48856646

Sheet S8
A1: Table S8 - Demand Residual Banded Charges - TDR Scenarios | K1: Return to Index
F4: Floored | G4: Unfloored
E5: Band | F5: £/site | G5: £/site
E6: Domestic | F6: 31.01887583 | G6: 33.64558892
E7: LV_NoMIC_1 | F7: 15.0392912 | G7: 16.31283519
E8: LV_NoMIC_2 | F8: 76.7933837 | G8: 83.29633331
E9: LV_NoMIC_3 | F9: 179.8692618 | G9: 195.100792
E10: LV_NoMIC_4 | F10: 536.4709122 | G10: 581.899869
E11: LV1 | F11: 1115.465894 | G11: 1209.924794
E12: LV2 | F12: 1857.685671 | G12: 2014.996572
E13: LV3 | F13: 2885.402861 | G13: 3129.742002
E14: LV4 | F14: 6487.361292 | G14: 7036.718301
E15: HV1 | F15: 4646.499685 | G15: 5039.970475
E16: HV2 | F16: 16089.1548 | G16: 17451.60242
E17: HV3 | F17: 31299.66415 | G17: 33950.15471
E18: HV4 | F18: 77107.08764 | G18: 83636.60205
E19: EHV1 | F19: 27071.26321 | G19: 29363.68805
E20: EHV2 | F20: 161790.9708 | G20: 175491.6112
E21: EHV3 | F21: 344891.6642 | G21: 374097.476
E22: EHV4 | F22: 927473.6502 | G22: 1006013.156
F24: Floored | G24: Unfloored | H24: Thresholds (MWh)
E25: Band (Percentiles/Volatge) | F25: £/site | G25: £/site | H25: Lower | I25: Upper
B26: Transmission Connected | D26: 1 Band | E26: T-Demand1 (No Split) | F26: 782285.1744 | G26: 848529.9578
D28: 2 Bands (MWh) | E28: T-Demand1 ( <=85% ) | F28: 412235.9077 | G28: 447144.5054 | H28: - | I28: 139930.88
E29: T-Demand2 ( >85% ) | F29: 2961464.189 | G29: 3212244.289 | H29: 139931.88 | I29: ∞
D31: 4 Bands (MWh) | E31: T-Demand1 ( <=40% ) | F31: 140682.3041 | G31: 152595.439 | H31: - | I31: 31177.31
E32: T-Demand2 ( >40% <=70% ) | F32: 499428.0326 | G32: 541720.1569 | H32: 31178.31 | I32: 83800.51
E33: T-Demand3 ( >70% <=85% ) | F33: 982479.2098 | G33: 1065676.648 | H33: 83801.51 | I33: 139930.88
E34: T-Demand4 ( >85% ) | F34: 2961464.189 | G34: 3212244.289 | H34: 139931.88 | I34: ∞
D36: 2 bands (Voltage) | E36: T-Demand1 ( <=132kV ) | F36: 423931.644 | G36: 459830.6497
E37: T-Demand2 ( >132kV ) | F37: 940627.4321 | G37: 1020280.815
E39: Demand Residual (£m) | F39: 2400.078125 | G39: 2603.319425
E40: Locational Rev. Recovery (£m) | F40: 91.36377322 | G40: -111.8775264
E42: Embedded Export (£m) | F42: 13.70342978
E43: Total Demand Revenue (£m) | F43: 2477.738468

Sheet T27
A1: Table 27 - Summary of in flight CUSC modification proposals | E1: Return to Index
B4: Name | C4: Title | D4: Effect of proposed change | E4: Possible implementation
B5: CMP280 | C5: Creation of a New Generator TNUoS Demand Tariff which Removes Liability for TNUoS Demand Residual Charges from Generation and Storage Users | D5: Remove demand residual charges from generation and storage | E5: April 2022, if approved
B6: CMP286/287 | C6: Improving TNUoS Predictability Through Increased Notice | D6: Increase notice period of tariff setting input data | E6: to be confirmed
B7: CMP315 | C7: TNUoS: Review of the expansion constant and the elements of the transmission system charge | D7: changes to TNUoS tariff calculation parameters | E7: to be confirmed
B8: CMP316 | C8: TNUoS Arrangements for Co-located Generation Sites | D8: Develop a cost-reflective TNUoS arrangement for generation sites with multiple technology types | E8: to be confirmed
B9: CMP330 | C9: Allowing new Transmission Connected parties to build Connection Assets greater than 2km in length | D9: Change CUSC section 14 to enable connection assets greater than 2km in length | E9: to be confirmed
B10: CMP331 | C10: Option to replace generic Annual Load Factors (ALFs) with site specific ALFs | D10: Introduce an option for site specific ALFs | E10: to be confirmed
B11: CMP335/336 | C11: Transmission Demand Residual - Billing and consequential changes | D11: Part of the Transmission Demand Residual changes (TDR) | E11: April 2023, if approved
B12: CMP340/343 | C12: Transmission Demand Residual bandings and allocation for 1 April 2022 implementation (TCR) | D12: Part of the Transmission Demand Residual changes (TDR) | E12: April 2023, if approved
B13: CMP344 | C13: Clarification of Transmission Licensee revenue recovery and the treatment of revenue adjustments in the Charging Methodology | D13: Fixing the TNUoS revenue at each onshore price control period for onshore TOs, and at the point of asset transfer for OFTOs. | E13: to be confirmed
B14: CMP363/364 | C14: TNUoS Demand Residual charges for transmission connected sites with a mix of Final and non-Final Demand & Definition changes for CMP363 | D14: Part of the Transmission Demand Residual changes (TDR) | E14: April 2023, if approved
B15: CMP368/369 | C15: Charges for the Physical Assets Required for Connection | D15: Part of the Transmission Generation Residual (TGR) | E15: April 2022, if approved
B17: * We are aware of some CUSC mods that will affect TNUoS. As their impacts are in a small or localised way, they may not be included in our forecast or in the list.

Sheet T28
A1: ="Table 28 – Elements of the demand location tariff for "&'T14'!C4 -> Table 28 – Elements of the demand location tariff for 2022/23 | H1: Return to Index
B4: Zone | C4: Zone Name | D4: Gross Half-Hourly Demand Tariff
D5: Peak Security Transport | E5: Year Round Transport | F5: Residual
D6: (£/kW) | E6: (£/kW) | F6: (£/kW)
B7: 1 | C7: Northern Scotland | D7: -3.116461576 | E7: -27.42873947 | F7: 53.28545628
B8: 2 | C8: Southern Scotland | D8: -3.215416143 | E8: -18.59921986 | F8: 53.28545628
B9: 3 | C9: Northern | D9: -4.063048214 | E9: -7.542139862 | F9: 53.28545628
B10: 4 | C10: North West | D10: -1.585722444 | E10: -4.140700592 | F10: 53.28545628
B11: 5 | C11: Yorkshire | D11: -3.215571748 | E11: -1.813831938 | F11: 53.28545628
B12: 6 | C12: N Wales & Mersey | D12: -2.412291705 | E12: -1.98832358 | F12: 53.28545628
B13: 7 | C13: East Midlands | D13: -2.487281562 | E13: 1.150504123 | F13: 53.28545628
B14: 8 | C14: Midlands | D14: -1.419253008 | E14: 1.634158211 | F14: 53.28545628
B15: 9 | C15: Eastern | D15: 1.249970307 | E15: -0.06956549307 | F15: 53.28545628
B16: 10 | C16: South Wales | D16: -3.583402062 | E16: 5.305981522 | F16: 53.28545628
B17: 11 | C17: South East | D17: 3.790321726 | E17: -0.2655534988 | F17: 53.28545628
B18: 12 | C18: London | D18: 5.603959795 | E18: 1.059458099 | F18: 53.28545628
B19: 13 | C19: Southern | D19: 1.809885312 | E19: 3.419940539 | F19: 53.28545628
B20: 14 | C20: South Western | D20: 0.7801330987 | E20: 6.380386321 | F20: 53.28545628

Sheet T29
A1: ="Table 29 – Elements of the demand location tariff for "&'T14'!D4 -> Table 29 – Elements of the demand location tariff for 2023/24 | G1: Return to Index
B4: Zone | C4: Zone Name | D4: Gross Half-Hourly Demand Tariff
D5: Peak Security Transport | E5: Year Round Transport
D6: (£/kW) | E6: (£/kW)
B7: 1 | C7: Northern Scotland | D7: -2.762224837 | E7: -27.91305447
B8: 2 | C8: Southern Scotland | D8: -2.855786059 | E8: -19.05700882
B9: 3 | C9: Northern | D9: -3.486530275 | E9: -8.45670549
B10: 4 | C10: North West | D10: -2.03309578 | E10: -3.677330346
B11: 5 | C11: Yorkshire | D11: -2.49534266 | E11: -2.387378174
B12: 6 | C12: N Wales & Mersey | D12: -2.790589733 | E12: -1.23873357
B13: 7 | C13: East Midlands | D13: -2.149374137 | E13: 0.9159631221
B14: 8 | C14: Midlands | D14: -1.780912045 | E14: 2.964163069
B15: 9 | C15: Eastern | D15: 0.9279701051 | E15: -1.166626567
B16: 10 | C16: South Wales | D16: -2.943250456 | E16: 7.170593063
B17: 11 | C17: South East | D17: 3.449089577 | E17: -1.086954876
B18: 12 | C18: London | D18: 4.951066393 | E18: -0.2397500021
B19: 13 | C19: Southern | D19: 1.700021494 | E19: 3.245027148
B20: 14 | C20: South Western | D20: 1.970193497 | E20: 7.748826019

Sheet T30
A1: ="Table 30 – Elements of the demand location tariff for "&'T14'!E4 -> Table 30 – Elements of the demand location tariff for 2024/25 | G1: Return to Index
B4: Zone | C4: Zone Name | D4: Gross Half-Hourly Demand Tariff
D5: Peak Security Transport | E5: Year Round Transport
D6: (£/kW) | E6: (£/kW)
B7: 1 | C7: Northern Scotland | D7: -2.354273162 | E7: -27.75343844
B8: 2 | C8: Southern Scotland | D8: -1.982042896 | E8: -18.92701749
B9: 3 | C9: Northern | D9: -2.99383559 | E9: -8.376123428
B10: 4 | C10: North West | D10: -1.252075569 | E10: -3.180245648
B11: 5 | C11: Yorkshire | D11: -1.888739841 | E11: -2.297016533
B12: 6 | C12: N Wales & Mersey | D12: -2.253320331 | E12: -0.5174628942
B13: 7 | C13: East Midlands | D13: -2.102818504 | E13: 0.7402737722
B14: 8 | C14: Midlands | D14: -1.833445813 | E14: 3.376028115
B15: 9 | C15: Eastern | D15: 0.5860327492 | E15: -1.763713253
B16: 10 | C16: South Wales | D16: -3.858152081 | E16: 6.89970986
B17: 11 | C17: South East | D17: 3.070337595 | E17: -1.742837738
B18: 12 | C18: London | D18: 4.54413494 | E18: -0.9652581038
B19: 13 | C19: Southern | D19: 1.550537225 | E19: 2.935651431
B20: 14 | C20: South Western | D20: 1.475608328 | E20: 8.274773544

Sheet T31
A1: ="Table 31 – Elements of the demand location tariff for "&'T14'!F4 -> Table 31 – Elements of the demand location tariff for 2025/26 | G1: Return to Index
B4: Zone | C4: Zone Name | D4: Gross Half-Hourly Demand Tariff
D5: Peak Security Transport | E5: Year Round Transport
D6: (£/kW) | E6: (£/kW)
B7: 1 | C7: Northern Scotland | D7: -2.376861852 | E7: -30.25141681
B8: 2 | C8: Southern Scotland | D8: -2.009002092 | E8: -20.48967321
B9: 3 | C9: Northern | D9: -2.313090483 | E9: -9.560276342
B10: 4 | C10: North West | D10: -1.158257239 | E10: -3.856442606
B11: 5 | C11: Yorkshire | D11: -1.334297232 | E11: -3.261440689
B12: 6 | C12: N Wales & Mersey | D12: -2.072121346 | E12: -1.492766027
B13: 7 | C13: East Midlands | D13: -1.998421603 | E13: 0.5982840187
B14: 8 | C14: Midlands | D14: -1.573708947 | E14: 2.881067146
B15: 9 | C15: Eastern | D15: 0.2991182226 | E15: -1.431282095
B16: 10 | C16: South Wales | D16: -4.061219756 | E16: 7.126992657
B17: 11 | C17: South East | D17: 2.826528227 | E17: -1.426368502
B18: 12 | C18: London | D18: 4.28939056 | E18: -0.5979317348
B19: 13 | C19: Southern | D19: 1.319453796 | E19: 3.257946408
B20: 14 | C20: South Western | D20: 1.316370131 | E20: 8.43187605

Sheet T32
A1: ="Table 32 – Elements of the demand location tariff for "&'T14'!G4 -> Table 32 – Elements of the demand location tariff for 2026/27 | G1: Return to Index
B4: Zone | C4: Zone Name | D4: Gross Half-Hourly Demand Tariff
D5: Peak Security Transport | E5: Year Round Transport
D6: (£/kW) | E6: (£/kW)
B7: 1 | C7: Northern Scotland | D7: -1.747709698 | E7: -32.39000402
B8: 2 | C8: Southern Scotland | D8: -2.058182059 | E8: -21.79896306
B9: 3 | C9: Northern | D9: -2.56964585 | E9: -10.23304841
B10: 4 | C10: North West | D10: -1.130947703 | E10: -4.795082184
B11: 5 | C11: Yorkshire | D11: -1.586568014 | E11: -4.05172269
B12: 6 | C12: N Wales & Mersey | D12: -1.942690976 | E12: -2.628673417
B13: 7 | C13: East Midlands | D13: -2.086944232 | E13: 0.3255082712
B14: 8 | C14: Midlands | D14: -1.510327317 | E14: 2.271114012
B15: 9 | C15: Eastern | D15: -0.06498458013 | E15: -1.430328547
B16: 10 | C16: South Wales | D16: -1.57723739 | E16: 9.76439084
B17: 11 | C17: South East | D17: 2.468647957 | E17: -1.323389685
B18: 12 | C18: London | D18: 3.963635034 | E18: -0.3906156114
B19: 13 | C19: Southern | D19: 1.211414371 | E19: 3.523293583
B20: 14 | C20: South Western | D20: 1.696723511 | E20: 9.703630844

Sheet T33
A1: Table 33 - Generic Annual Load Factors | H1: Return to Index
B4: Technology | C4: Generic ALF
B5: Gas_Oil | C5: 0.004602
B6: Pumped_Storage | C6: 0.097926
B7: Tidal | C7: 0.231
B8: Biomass | C8: 0.495396
B9: Wave | C9: 0.029
B10: Onshore_Wind | C10: 0.360719
B11: CCGT_CHP | C11: 0.510635
B12: Hydro | C12: 0.418887
B13: Offshore_Wind | C13: 0.494981
B14: Coal | C14: 0.203859
B15: Nuclear | C15: 0.758434
B16: Solar | C16: 0.108

Sheet T34
A1: Table 34 - Contracted TEC by generation zone | H1: Return to Index
B4: Zone | C4: Zone Name | D4: ='T14'!C4 -> 2022/23 | E4: ='T14'!D4 -> 2023/24 | F4: ='T14'!E4 -> 2024/25 | G4: ='T14'!F4 -> 2025/26 | H4: ='T14'!G4 -> 2026/27
D5: (MW) | E5: (MW) | F5: (MW) | G5: (MW) | H5: (MW)
B6: 1 | C6: North Scotland | D6: =SUMIF(TA!$E:$E,$B6,TA!F:F) -> 2222.5 | E6: =SUMIF(TA!$E:$E,$B6,TA!G:G) -> 2260 | F6: =SUMIF(TA!$E:$E,$B6,TA!H:H) -> 4087.9 | G6: =SUMIF(TA!$E:$E,$B6,TA!I:I) -> 5276.5 | H6: =SUMIF(TA!$E:$E,$B6,TA!J:J) -> 6903.5
B7: 2 | C7: East Aberdeenshire | D7: =SUMIF(TA!$E:$E,$B7,TA!F:F) -> 2080 | E7: =SUMIF(TA!$E:$E,$B7,TA!G:G) -> 2080 | F7: =SUMIF(TA!$E:$E,$B7,TA!H:H) -> 2080 | G7: =SUMIF(TA!$E:$E,$B7,TA!I:I) -> 2080 | H7: =SUMIF(TA!$E:$E,$B7,TA!J:J) -> 3480
B8: 3 | C8: Western Highlands | D8: =SUMIF(TA!$E:$E,$B8,TA!F:F) -> 512.9 | E8: =SUMIF(TA!$E:$E,$B8,TA!G:G) -> 512.9 | F8: =SUMIF(TA!$E:$E,$B8,TA!H:H) -> 613.7 | G8: =SUMIF(TA!$E:$E,$B8,TA!I:I) -> 613.7 | H8: =SUMIF(TA!$E:$E,$B8,TA!J:J) -> 613.7
B9: 4 | C9: Skye and Lochalsh | D9: =SUMIF(TA!$E:$E,$B9,TA!F:F) -> 41.4 | E9: =SUMIF(TA!$E:$E,$B9,TA!G:G) -> 41.4 | F9: =SUMIF(TA!$E:$E,$B9,TA!H:H) -> 41.4 | G9: =SUMIF(TA!$E:$E,$B9,TA!I:I) -> 91.3 | H9: =SUMIF(TA!$E:$E,$B9,TA!J:J) -> 331.3
B10: 5 | C10: Eastern Grampian and Tayside | D10: =SUMIF(TA!$E:$E,$B10,TA!F:F) -> 1627.6 | E10: =SUMIF(TA!$E:$E,$B10,TA!G:G) -> 1627.6 | F10: =SUMIF(TA!$E:$E,$B10,TA!H:H) -> 1795.6 | G10: =SUMIF(TA!$E:$E,$B10,TA!I:I) -> 1995.6 | H10: =SUMIF(TA!$E:$E,$B10,TA!J:J) -> 2135.4
B11: 6 | C11: Central Grampian | D11: =SUMIF(TA!$E:$E,$B11,TA!F:F) -> 63.5 | E11: =SUMIF(TA!$E:$E,$B11,TA!G:G) -> 63.5 | F11: =SUMIF(TA!$E:$E,$B11,TA!H:H) -> 63.5 | G11: =SUMIF(TA!$E:$E,$B11,TA!I:I) -> 63.5 | H11: =SUMIF(TA!$E:$E,$B11,TA!J:J) -> 63.5
B12: 7 | C12: Argyll | D12: =SUMIF(TA!$E:$E,$B12,TA!F:F) -> 166 | E12: =SUMIF(TA!$E:$E,$B12,TA!G:G) -> 166 | F12: =SUMIF(TA!$E:$E,$B12,TA!H:H) -> 166 | G12: =SUMIF(TA!$E:$E,$B12,TA!I:I) -> 373.1 | H12: =SUMIF(TA!$E:$E,$B12,TA!J:J) -> 574.1
B13: 8 | C13: The Trossachs | D13: =SUMIF(TA!$E:$E,$B13,TA!F:F) -> 520 | E13: =SUMIF(TA!$E:$E,$B13,TA!G:G) -> 520 | F13: =SUMIF(TA!$E:$E,$B13,TA!H:H) -> 520 | G13: =SUMIF(TA!$E:$E,$B13,TA!I:I) -> 520 | H13: =SUMIF(TA!$E:$E,$B13,TA!J:J) -> 520
B14: 9 | C14: Stirlingshire and Fife | D14: =SUMIF(TA!$E:$E,$B14,TA!F:F) -> 120 | E14: =SUMIF(TA!$E:$E,$B14,TA!G:G) -> 120 | F14: =SUMIF(TA!$E:$E,$B14,TA!H:H) -> 320 | G14: =SUMIF(TA!$E:$E,$B14,TA!I:I) -> 320 | H14: =SUMIF(TA!$E:$E,$B14,TA!J:J) -> 320
B15: 10 | C15: South West Scotland | D15: =SUMIF(TA!$E:$E,$B15,TA!F:F) -> 3516.8 | E15: =SUMIF(TA!$E:$E,$B15,TA!G:G) -> 3843.6 | F15: =SUMIF(TA!$E:$E,$B15,TA!H:H) -> 5236.9 | G15: =SUMIF(TA!$E:$E,$B15,TA!I:I) -> 5604 | H15: =SUMIF(TA!$E:$E,$B15,TA!J:J) -> 5856
B16: 11 | C16: Lothian and Borders | D16: =SUMIF(TA!$E:$E,$B16,TA!F:F) -> 3524.95 | E16: =SUMIF(TA!$E:$E,$B16,TA!G:G) -> 4786.35 | F16: =SUMIF(TA!$E:$E,$B16,TA!H:H) -> 7061.35 | G16: =SUMIF(TA!$E:$E,$B16,TA!I:I) -> 7561.35 | H16: =SUMIF(TA!$E:$E,$B16,TA!J:J) -> 7645.35
B17: 12 | C17: Solway and Cheviot | D17: =SUMIF(TA!$E:$E,$B17,TA!F:F) -> 451.3 | E17: =SUMIF(TA!$E:$E,$B17,TA!G:G) -> 451.3 | F17: =SUMIF(TA!$E:$E,$B17,TA!H:H) -> 501.2 | G17: =SUMIF(TA!$E:$E,$B17,TA!I:I) -> 1251.2 | H17: =SUMIF(TA!$E:$E,$B17,TA!J:J) -> 1375.2
B18: 13 | C18: North East England | D18: =SUMIF(TA!$E:$E,$B18,TA!F:F) -> 3466.5 | E18: =SUMIF(TA!$E:$E,$B18,TA!G:G) -> 4836.4 | F18: =SUMIF(TA!$E:$E,$B18,TA!H:H) -> 5176.4 | G18: =SUMIF(TA!$E:$E,$B18,TA!I:I) -> 5176.4 | H18: =SUMIF(TA!$E:$E,$B18,TA!J:J) -> 6026.4
B19: 14 | C19: North Lancashire and The Lakes | D19: =SUMIF(TA!$E:$E,$B19,TA!F:F) -> 4189 | E19: =SUMIF(TA!$E:$E,$B19,TA!G:G) -> 4238.9 | F19: =SUMIF(TA!$E:$E,$B19,TA!H:H) -> 4238.9 | G19: =SUMIF(TA!$E:$E,$B19,TA!I:I) -> 4238.9 | H19: =SUMIF(TA!$E:$E,$B19,TA!J:J) -> 4238.9
B20: 15 | C20: South Lancashire, Yorkshire and Humber | D20: =SUMIF(TA!$E:$E,$B20,TA!F:F) -> 11534.4 | E20: =SUMIF(TA!$E:$E,$B20,TA!G:G) -> 13457.3 | F20: =SUMIF(TA!$E:$E,$B20,TA!H:H) -> 18925.3 | G20: =SUMIF(TA!$E:$E,$B20,TA!I:I) -> 18975.2 | H20: =SUMIF(TA!$E:$E,$B20,TA!J:J) -> 20865.3
B21: 16 | C21: North Midlands and North Wales | D21: =SUMIF(TA!$E:$E,$B21,TA!F:F) -> 12163.2 | E21: =SUMIF(TA!$E:$E,$B21,TA!G:G) -> 12262.6 | F21: =SUMIF(TA!$E:$E,$B21,TA!H:H) -> 12572.4 | G21: =SUMIF(TA!$E:$E,$B21,TA!I:I) -> 13422.2 | H21: =SUMIF(TA!$E:$E,$B21,TA!J:J) -> 13759.4
B22: 17 | C22: South Lincolnshire and North Norfolk | D22: =SUMIF(TA!$E:$E,$B22,TA!F:F) -> 5460.9 | E22: =SUMIF(TA!$E:$E,$B22,TA!G:G) -> 7174.88 | F22: =SUMIF(TA!$E:$E,$B22,TA!H:H) -> 8874.88 | G22: =SUMIF(TA!$E:$E,$B22,TA!I:I) -> 11274.88 | H22: =SUMIF(TA!$E:$E,$B22,TA!J:J) -> 11274.88
B23: 18 | C23: Mid Wales and The Midlands | D23: =SUMIF(TA!$E:$E,$B23,TA!F:F) -> 8066.98 | E23: =SUMIF(TA!$E:$E,$B23,TA!G:G) -> 9652.775 | F23: =SUMIF(TA!$E:$E,$B23,TA!H:H) -> 12440.665 | G23: =SUMIF(TA!$E:$E,$B23,TA!I:I) -> 16508.965 | H23: =SUMIF(TA!$E:$E,$B23,TA!J:J) -> 16628.965
B24: 19 | C24: Anglesey and Snowdon | D24: =SUMIF(TA!$E:$E,$B24,TA!F:F) -> 1794 | E24: =SUMIF(TA!$E:$E,$B24,TA!G:G) -> 1794 | F24: =SUMIF(TA!$E:$E,$B24,TA!H:H) -> 2914 | G24: =SUMIF(TA!$E:$E,$B24,TA!I:I) -> 2914 | H24: =SUMIF(TA!$E:$E,$B24,TA!J:J) -> 2914
B25: 20 | C25: Pembrokeshire | D25: =SUMIF(TA!$E:$E,$B25,TA!F:F) -> 3053 | E25: =SUMIF(TA!$E:$E,$B25,TA!G:G) -> 3053 | F25: =SUMIF(TA!$E:$E,$B25,TA!H:H) -> 3053 | G25: =SUMIF(TA!$E:$E,$B25,TA!I:I) -> 3053 | H25: =SUMIF(TA!$E:$E,$B25,TA!J:J) -> 3144
B26: 21 | C26: South Wales & Gloucester | D26: =SUMIF(TA!$E:$E,$B26,TA!F:F) -> 2005.9 | E26: =SUMIF(TA!$E:$E,$B26,TA!G:G) -> 2347.9 | F26: =SUMIF(TA!$E:$E,$B26,TA!H:H) -> 2504.88 | G26: =SUMIF(TA!$E:$E,$B26,TA!I:I) -> 2504.88 | H26: =SUMIF(TA!$E:$E,$B26,TA!J:J) -> 2724.68
B27: 22 | C27: Cotswold | D27: =SUMIF(TA!$E:$E,$B27,TA!F:F) -> 1403.9 | E27: =SUMIF(TA!$E:$E,$B27,TA!G:G) -> 1453.8 | F27: =SUMIF(TA!$E:$E,$B27,TA!H:H) -> 1453.8 | G27: =SUMIF(TA!$E:$E,$B27,TA!I:I) -> 1453.8 | H27: =SUMIF(TA!$E:$E,$B27,TA!J:J) -> 1453.8
B28: 23 | C28: Central London | D28: =SUMIF(TA!$E:$E,$B28,TA!F:F) -> 144 | E28: =SUMIF(TA!$E:$E,$B28,TA!G:G) -> 193.9 | F28: =SUMIF(TA!$E:$E,$B28,TA!H:H) -> 193.9 | G28: =SUMIF(TA!$E:$E,$B28,TA!I:I) -> 250.9 | H28: =SUMIF(TA!$E:$E,$B28,TA!J:J) -> 250.9
B29: 24 | C29: Essex and Kent | D29: =SUMIF(TA!$E:$E,$B29,TA!F:F) -> 14640.8 | E29: =SUMIF(TA!$E:$E,$B29,TA!G:G) -> 16960.79 | F29: =SUMIF(TA!$E:$E,$B29,TA!H:H) -> 19340.7 | G29: =SUMIF(TA!$E:$E,$B29,TA!I:I) -> 20890.4 | H29: =SUMIF(TA!$E:$E,$B29,TA!J:J) -> 20967.6
B30: 25 | C30: Oxfordshire, Surrey and Sussex | D30: =SUMIF(TA!$E:$E,$B30,TA!F:F) -> 2569.6 | E30: =SUMIF(TA!$E:$E,$B30,TA!G:G) -> 2946.995 | F30: =SUMIF(TA!$E:$E,$B30,TA!H:H) -> 5103.395 | G30: =SUMIF(TA!$E:$E,$B30,TA!I:I) -> 5253.095 | H30: =SUMIF(TA!$E:$E,$B30,TA!J:J) -> 6460.195
B31: 26 | C31: Somerset and Wessex | D31: =SUMIF(TA!$E:$E,$B31,TA!F:F) -> 3478.8 | E31: =SUMIF(TA!$E:$E,$B31,TA!G:G) -> 3528.7 | F31: =SUMIF(TA!$E:$E,$B31,TA!H:H) -> 5466.5 | G31: =SUMIF(TA!$E:$E,$B31,TA!I:I) -> 8636.3 | H31: =SUMIF(TA!$E:$E,$B31,TA!J:J) -> 8706.4
B32: 27 | C32: West Devon and Cornwall | D32: =SUMIF(TA!$E:$E,$B32,TA!F:F) -> 1094.9 | E32: =SUMIF(TA!$E:$E,$B32,TA!G:G) -> 1194.7 | F32: =SUMIF(TA!$E:$E,$B32,TA!H:H) -> 1244.6 | G32: =SUMIF(TA!$E:$E,$B32,TA!I:I) -> 1294.5 | H32: =SUMIF(TA!$E:$E,$B32,TA!J:J) -> 1294.5

Sheet T35-T38
A1: Tables 35 - 38 - Revenue breakdown | H1: Return to Index
A4: Description | B4: Total Allowed Revenue [ARt=ADJRt+Kt+LARt] | H4: Notes
A5: Regulatory Year | B5: 2022/23 | C5: 2023/24 | D5: 2024/25 | E5: 2025/26 | F5: 2026/27 | H5: All monies are nominal 'money of the day' prices unless stated otherwise
A6: RPIFt | H6: Licensee forecasts and budgets are subject to change especially where they are influenced by external stakeholders
A7: National Grid Electricity Transmission | B7: 1764.463435 | C7: 1704.385401 | D7: 1674.590069 | E7: 1645.018331 | F7: 1645.018331 | H7: Greyed out cells are either calculated or not applicable in the year concerned due to the way the licence formula are constructed
A8: Scottish Power Transmission | B8: 348.7116767 | C8: 370.9337303 | D8: 361.6272528 | E8: 337.5638107 | F8: 337.5638107 | H8: NIC payments are not included as they do not form part of TOs Maximum Revenue
A9: SHE Transmission | B9: 632.6502611 | C9: 582.9445252 | D9: 586.6751876 | E9: 563.365203 | F9: 563.365203
A10: Total | B10: =SUM(B7:B9) -> 2745.825373 | C10: =SUM(C7:C9) -> 2658.263657 | D10: 2622.89251 | E10: 2545.947345 | F10: 2545.947345 | H10: Commentary
H11: All reasonable care has been taken in the preparation of these illustrative tables and the data therein.
H12: TOs offer this data without prejudice and cannot be held responsible for any loss that might be attributed to the use of this data.
A13: ESO | B13: NGESO TNUoS Other Pass-Through | H13: TOs do not accept or assume responsibility for the use of this information by any person or any person to whom this information is shown or any person to whom this information otherwise becomes available.
A14: Term | B14: 2022/23 | C14: 2023/24 | D14: 2024/25 | E14: 2025/26 | F14: 2026/27 | H14: Within the bounds of commercial confidentiality, this forecast provides as much information as possible.
A15: Embedded Offshore Pass-Through (OFETt) | B15: 0.5775435267 | C15: 0.5775435267 | D15: 0.5775435267 | E15: 0.5775435267 | F15: 0.5775435267
A16: Network Innovation Competition (NICFt) | B16: 30.89050409 | C16: 30.89050409 | D16: 30.89050409 | E16: 30.89050409 | F16: 30.89050409 | H16: This forecast contains as much information as can be currently made available.
A17: Offshore Transmission Revenue (OFTOt) and Interconnectors Cap&Floor Revenue Adjustment (TICFt) | B17: 552.8453759 | C17: 656.452808 | D17: 757.0635159 | E17: 876.367552 | F17: 936.7316512
A18: NGET revenue pas-through (NGETTOt)* | B18: =B7 -> 1764.463435 | C18: 1704.385401 | D18: 1674.590069 | E18: 1645.018331 | F18: 1645.018331 | H18: This respects commercial confidentiality and disclosure considerations.
A19: SPT revenue pass-through (TSPt) | B19: 348.7116767 | C19: 370.9337303 | D19: 361.6272528 | E19: 337.5638107 | F19: 337.5638107
A20: SHETL revenue pass-through (TSHt) | B20: 632.6502611 | C20: 582.9445252 | D20: 586.6751876 | E20: 563.365203 | F20: 563.365203 | H20: All £ figures are in money of the day
A21: ESO Bad debt (BDt) | B21: 3.3 | C21: 3.315892511 | D21: 3.380509162 | E21: 3.422463589 | F21: 3.482251329
A22: ESO other pass-through items (LFt + ITCt + Termt + TSt +DISt etc) | B22: 32.56397802 | C22: 32.56397802 | D22: 32.56397802 | E22: 32.56397802 | F22: 32.56397802 | H22: Information provided in £m to one decimal place
A23: ESO legacy adjustment (LARt) | B23: 0 | C23: 0 | D23: 0 | E23: 0 | F23: 0
A24: Total | B24: =SUM(B15:B23) -> 3366.002775 | C24: =SUM(C15:C23) -> 3382.064383 | D24: 3447.36856 | E24: 3489.769386 | F24: 3550.193273

Sheet T39
A1: Table 39 - Offshore Transmission Revenues | E1: Return to Index
B4: Offshore Transmission Revenue Forecast
B5: Regulatory Year | C5: 2021/22 | D5: ='T14'!C4 -> 2022/23 | E5: ='T14'!D4 -> 2023/24 | F5: ='T14'!E4 -> 2024/25 | G5: ='T14'!F4 -> 2025/26 | H5: ='T14'!G4 -> 2026/27 | I5: Notes
B6: Barrow | C6: 6.715533444 | D6: 6.838814384 | E6: 7.061259178 | F6: 7.265395741 | G6: 7.474027059 | H6: 7.971361045 | I6: Current revenues plus indexation
B7: Gunfleet | C7: 8.396171708 | D7: 8.546149232 | E7: 8.810126594 | F7: 9.082945529 | G7: 9.348740807 | H7: 9.690993622 | I7: Current revenues plus indexation
B8: Walney 1 | C8: 15.34191664 | D8: 15.52359424 | E8: 16.09006584 | F8: 16.62558792 | G8: 17.10113556 | H8: 17.80084673 | I8: Current revenues plus indexation
B9: Robin Rigg | C9: 9.43708742 | D9: 9.587437285 | E9: 9.904169013 | F9: 10.18920789 | G9: 10.46224396 | H9: 10.74325065 | I9: Current revenues plus indexation
B10: Walney 2 | C10: 15.14214967 | D10: 15.87099589 | E10: 16.69357874 | F10: 17.08812996 | G10: 17.58019385 | H10: 18.28882266 | I10: Current revenues plus indexation
B11: Sheringham Shoal | C11: 23.36593419 | D11: 23.75555766 | E11: 24.43416885 | F11: 25.1984298 | G11: 25.92306269 | H11: 26.63099273 | I11: Current revenues plus indexation
B12: Ormonde | C12: 14.14572926 | D12: 14.36823236 | E12: 14.84211045 | F12: 15.2694056 | G12: 15.70968615 | H12: 16.5157686 | I12: Current revenues plus indexation
B13: Greater Gabbard | C13: 32.13315867 | D13: 32.56011786 | E13: 33.77463536 | F13: 34.44689929 | G13: 35.65159059 | H13: 36.66387839 | I13: Current revenues plus indexation
B14: London Array | C14: 44.72890149 | D14: 45.64660735 | E14: 46.91826311 | F14: 48.325301 | G14: 49.72202003 | H14: 51.2377252 | I14: Current revenues plus indexation
B15: Thanet | C15: 20.75180955 | D15: 21.13263244 | E15: 21.92684692 | F15: 22.52165643 | G15: 23.26193901 | H15: 24.13778357 | I15: Current revenues plus indexation
B16: Lincs | C16: 29.97276023 | D16: 31.09203361 | E16: 31.69082338 | F16: 32.59989951 | G16: 33.53624791 | H16: 34.84258845 | I16: Current revenues plus indexation
B17: Gwynt y mor | C17: 32.92382386 | D17: 31.39217526 | E17: 32.26732084 | F17: 33.23534046 | G17: 34.23240068 | H17: 35.00938499 | I17: Current revenues plus indexation
B18: West of Duddon Sands | C18: 25.30383557 | D18: 24.88572279 | E18: 25.57910398 | F18: 26.3466771 | G18: 27.10740741 | H18: 28.01604257 | I18: Current revenues plus indexation
B19: Humber Gateway | C19: 14.39513587 | D19: 13.28325235 | E19: 13.65352537 | F19: 14.06313113 | G19: 14.48502506 | H19: 14.82294198 | I19: Current revenues plus indexation
B20: Westermost Rough | C20: 14.11196231 | D20: 14.48368474 | E20: 14.86324727 | F20: 15.29012407 | G20: 15.72980716 | H20: 16.80194636 | I20: Current revenues plus indexation
B21: Burbo Bank | C21: 14.06591394 | D21: 14.4595355 | E21: 14.86462761 | F21: 15.31266298 | G21: 15.77420903 | H21: 15.7614865 | I21: Current revenues plus indexation
B22: Dudgeon | C22: 19.59847917 | D22: 20.45222482 | E22: 20.98852772 | F22: 21.59159846 | G22: 22.21276133 | H22: 23.18237214 | I22: Current revenues plus indexation
B23: Race Bank | C23: 27.38315634 | D23: 28.42413377 | E23: 29.21848794 | F23: 30.09711317 | G23: 31.00216258 | H23: 31.59374852 | I23: Current revenues plus indexation
B24: Galloper | C24: 17.06394505 | D24: 17.52797973 | E24: 18.01812986 | F24: 18.56022514 | G24: 19.11863276 | H24: 20.39532466 | I24: Current revenues plus indexation
B25: Walney 3 | C25: 13.46561135 | D25: 13.93271895 | E25: 14.3219557 | F25: 14.75253584 | G25: 15.19606241 | H25: 14.88216608 | I25: Current revenues plus indexation
B26: Walney 4 | C26: 13.46561135 | D26: 13.93271895 | E26: 14.3219557 | F26: 14.75253584 | G26: 15.19606241 | H26: 14.46447418 | I26: Current revenues plus indexation
B27: Hornsea 1A | C27: 95.56461578 | D27: 16.35059584 | E27: 16.80477906 | F27: 17.30892243 | G27: 17.82819011 | H27: 19.37185526 | I27: Asset transferred in 2021/22
B28: Hornsea 1B | D28: 16.35059584 | E28: 16.80477906 | F28: 17.30892243 | G28: 17.82819011 | H28: 18.36303581 | I28: Asset transferred in 2021/22
B29: Hornsea 1C | D29: 16.35059584 | E29: 16.80477906 | F29: 17.30892243 | G29: 17.82819011 | H29: 19.07469384 | I29: Asset transferred in 2021/22
B30: Forecast to asset transfer to OFTO in 2021/22 | D30: 138.2581958 | E30: 142.0987013 | F30: 146.3616623 | G30: 150.7525122 | H30: 156.9931876 | I30: National Grid ESO Forecast
B31: Forecast to asset transfer to OFTO in 2022/23 | D31: 13.29086087 | E31: 27.79113934 | F31: 28.62487352 | G31: 29.48361972 | H31: 31.03229093 | I31: National Grid ESO Forecast
B32: Forecast to asset transfer to OFTO in 2023/24 | E32: 70.92003802 | F32: 78.62967896 | G32: 80.98856933 | H32: 82.41001559 | I32: National Grid ESO Forecast
B33: Forecast to asset transfer to OFTO in 2024/25 | F33: 87.03249825 | G33: 135.4219782 | H33: 138.7189075 | I33: National Grid ESO Forecast
B34: Forecast to asset transfer to OFTO in 2025/26 | G34: 63.09545411 | H34: 64.13146333 | I34: National Grid ESO Forecast
B35: Forecast to asset transfer to OFTO in 2026/27 | H35: 32.79188651 | I35: National Grid ESO Forecast
B36: Offshore Transmission Pass-Through (B7) | C36: =SUM(C6:C35) -> 507.4732429 | D36: 618.2971634 | E36: 721.4671452 | F36: 835.1902832 | G36: 969.0521224 | H36: 1032.341236
B38: Notes:
B39: All monies are nominal 'money of the day' prices unless stated otherwise
B40: Licensee forecasts and budgets are subject to change especially where they are influenced by external stakeholders
B41: Greyed out cells are either calculated or not applicable in the year concerned due to the way the licence formula are constructed
B42: NIC payments are not included as they do not form part of OFTO Maximum Revenue

Sheet T40
A1: Table 40 - Pre-Existing Asset Charges
B3: Asset | C3: 2021/22 | D3: 2022/23 | E3: 2023/24 | F3: 2024/25 | G3: 2025/26 | H3: 2026/27
B4: Local Circuit | C4: 1.54 | D4: 1.54 | E4: 1.697019819 | F4: 3.289424988 | G4: 18.02048048 | H4: 18.86726707
B5: Local Substation | C5: 0.4 | D5: 0.4 | E5: 0.4 | F5: 0.4 | G5: 0.4 | H5: 0.4
A7: Assumptions
A8: 1. If an additional user connects to an existing non-MITS node with an existing generation user, it's local circuit charge is part of the Pre-Existing Asset charge.
A9: 2. If multiple users connects to a non-MITS node that does not have an existing generation user, all their local cct charges except the one for the highest TEC project, are part of the Pre Existing Asset charge.
A10: 3. For offshore generators, no interlink charges for different users are included in this forecast.
A11: 4. Local substation tariffs reflects the additional investment at an existing substation to accommodate the new generator. It is very rare that a generator connects to a pre-existing generator bay that is also being used by another generator.

Sheet Not in report ----->

Sheet TA
A1: Table A - Contracted generation TEC | H1: Return to Index
B4: Generator | C4: Technology | D4: Nodes | E4: Zone | F4: ='T14'!C4 -> 2022/23 | G4: ='T14'!D4 -> 2023/24 | H4: ='T14'!E4 -> 2024/25 | I4: ='T14'!F4 -> 2025/26 | J4: ='T14'!G4 -> 2026/27
F5: (MW) | G5: (MW) | H5: (MW) | I5: (MW) | J5: (MW)
B6: Aberarder Wind Farm | C6: Wind Onshore | D6: ABED10 | E6: 1 | F6: 0 | G6: 0 | H6: 51.6 | I6: 51.6 | J6: 51.6
B7: Aberdeen Offshore Wind Farm | C7: Wind Offshore | D7: ABBA10 | E7: 1 | F7: 95.5 | G7: 95.5 | H7: 95.5 | I7: 95.5 | J7: 95.5
B8: Abergelli Power Limited | C8: OCGT | D8: SWAN20_SPM | E8: 21 | F8: 299 | G8: 299 | H8: 299 | I8: 299 | J8: 299
B9: Aberthaw | C9: Coal | D9: ABTH20 | E9: 21 | F9: 50 | G9: 50 | H9: 50 | I9: 50 | J9: 50
B10: Aberthaw (Tertiary) | C10: Solar | D10: ABTH20 | E10: 21 | F10: 0 | G10: 0 | H10: 57 | I10: 57 | J10: 57
B11: A'Chruach Wind Farm | C11: Wind Onshore | D11: ACHR1R | E11: 7 | F11: 43 | G11: 43 | H11: 43 | I11: 43 | J11: 43
B12: Afton Wind Farm | C12: Wind Onshore | D12: BLAH10 | E12: 10 | F12: 50 | G12: 50 | H12: 50 | I12: 50 | J12: 50
B13: Aigas (part of the Beauly Cascade) | C13: Hydro | D13: AIGA1Q | E13: 1 | F13: 20 | G13: 20 | H13: 20 | I13: 20 | J13: 20
B14: Aikengall II Windfarm | C14: Wind Onshore | D14: WDOD10 | E14: 11 | F14: 63.8 | G14: 63.8 | H14: 63.8 | I14: 63.8 | J14: 63.8
B15: Aikengall IIa Wind Farm | C15: Wind Onshore | D15: WDOD10 | E15: 11 | F15: 81.2 | G15: 81.2 | H15: 81.2 | I15: 81.2 | J15: 81.2
B16: Alcemi Coalburn Battery Energy Storage Facility | C16: Pump Storage | D16: COAL40 | E16: 11 | F16: 0 | G16: 0 | H16: 0 | I16: 500 | J16: 500
B17: Alverdiscott PP | C17: Pump Storage | D17: ALVE4A | E17: 27 | F17: 0 | G17: 49.9 | H17: 49.9 | I17: 49.9 | J17: 49.9
B18: An Suidhe Wind Farm - Argyll (SRO) | C18: Wind Onshore | D18: ANSU10 | E18: 7 | F18: 19.3 | G18: 19.3 | H18: 19.3 | I18: 19.3 | J18: 19.3
B19: Aquind Interconnector | C19: Interconnectors | D19: LOVE40 | E19: 25 | F19: 0 | G19: 0 | H19: 2000 | I19: 2000 | J19: 2000
B20: Arecleoch | C20: Wind Onshore | D20: AREC10 | E20: 10 | F20: 114 | G20: 114 | H20: 114 | I20: 114 | J20: 114
B21: Arecleoch Windfarm Extension | C21: Wind Onshore | D21: AREC10 | E21: 10 | F21: 0 | G21: 72.8 | H21: 72.8 | I21: 72.8 | J21: 72.8
B22: Armadale Wind Farm | C22: Wind Onshore | D22: CONN1C | E22: 1 | F22: 0 | G22: 0 | H22: 0 | I22: 99 | J22: 99
B23: Auchencrosh (interconnector CCT) | C23: Interconnectors | D23: AUCH20 | E23: 10 | F23: 660 | G23: 660 | H23: 660 | I23: 660 | J23: 660
B24: Axminster | C24: Pump Storage | D24: AXMI40_SEP | E24: 26 | F24: 49.9 | G24: 49.9 | H24: 49.9 | I24: 49.9 | J24: 49.9
B25: Axminster - New Connection | C25: Solar | D25: AXMI40_SEP | E25: 26 | F25: 0 | G25: 0 | H25: 0 | I25: 49.9 | J25: 120
B26: Axminster Tertiary | C26: Pump Storage | D26: AXMI40_SEP | E26: 26 | F26: 49.9 | G26: 49.9 | H26: 49.9 | I26: 49.9 | J26: 49.9
B27: Bad a Cheo Wind Farm | C27: Wind Onshore | D27: MYBS11 | E27: 1 | F27: 26.65 | G27: 26.65 | H27: 26.65 | I27: 26.65 | J27: 26.65
B28: Barrow Offshore Wind Farm | C28: Wind Offshore | D28: HEYS40 | E28: 14 | F28: 90 | G28: 90 | H28: 90 | I28: 90 | J28: 90
B29: Beatrice Wind Farm | C29: Wind Offshore | D29: BLHI40 | E29: 1 | F29: 588 | G29: 588 | H29: 588 | I29: 588 | J29: 588
B30: Beaw Field Wind Farm | C30: Wind Onshore | D30: BEWF10 | E30: 1 | F30: 0 | G30: 0 | H30: 0 | I30: 72 | J30: 72
B31: Beinn Tharsuinn Extension | C31: Wind Onshore | D31: FYRI2J | E31: 1 | F31: 0 | G31: 0 | H31: 0 | I31: 44.8 | J31: 44.8
B32: Beinneun Wind Farm | C32: Wind Onshore | D32: BEIN10 | E32: 3 | F32: 109 | G32: 109 | H32: 109 | I32: 109 | J32: 109
B33: Benbrack Wind Farm | C33: Wind Onshore | D33: KEOO10 | E33: 10 | F33: 0 | G33: 0 | H33: 72 | I33: 72 | J33: 72
B34: Berkswell (Tertiary) | C34: Solar | D34: BESW20 | E34: 18 | F34: 0 | G34: 0 | H34: 0 | I34: 49.9 | J34: 49.9
B35: Bhlaraidh Extension Wind Farm | C35: Wind Onshore | D35: BHLA10 | E35: 3 | F35: 0 | G35: 0 | H35: 100.8 | I35: 100.8 | J35: 100.8
B36: Bhlaraidh Wind Farm | C36: Wind Onshore | D36: BHLA10 | E36: 3 | F36: 108 | G36: 108 | H36: 108 | I36: 108 | J36: 108
B37: Bicker Fen 1 Solar | C37: Solar | D37: BICF4A | E37: 17 | F37: 0 | G37: 49.99 | H37: 49.99 | I37: 49.99 | J37: 49.99
B38: Bicker Fen 2 Solar | C38: Solar | D38: BICF4A | E38: 17 | F38: 0 | G38: 49.99 | H38: 49.99 | I38: 49.99 | J38: 49.99
B39: Blackcraig Wind Farm | C39: Wind Onshore | D39: BLCW10 | E39: 10 | F39: 52.9 | G39: 52.9 | H39: 52.9 | I39: 52.9 | J39: 52.9
B40: Blacklaw | C40: Wind Onshore | D40: BLKL10 | E40: 11 | F40: 118 | G40: 118 | H40: 118 | I40: 118 | J40: 118
B41: Blacklaw Extension | C41: Wind Onshore | D41: BLKX10 | E41: 11 | F41: 60 | G41: 60 | H41: 60 | I41: 60 | J41: 60
B42: Blarghour Wind | C42: Wind Onshore | D42: BLGH10 | E42: 7 | F42: 0 | G42: 0 | H42: 0 | I42: 73.1 | J42: 73.1
B43: Bolney | C43: Pump Storage | D43: BOLN40 | E43: 25 | F43: 49.9 | G43: 49.9 | H43: 49.9 | I43: 49.9 | J43: 49.9
B44: Bolney (tertiary) | C44: Solar | D44: BOLN40 | E44: 25 | F44: 0 | G44: 57 | H44: 57 | I44: 57 | J44: 57
B45: Braintree | C45: Pump Storage | D45: BRAI4A | E45: 18 | F45: 0 | G45: 0 | H45: 49.9 | I45: 49.9 | J45: 49.9
B46: Braintree (Tertiary) | C46: Pump Storage | D46: BRAI4A | E46: 18 | F46: 0 | G46: 0 | H46: 0 | I46: 49.9 | J46: 49.9
B47: Bramford (Tertiary) | C47: Pump Storage | D47: BRFO40 | E47: 18 | F47: 0 | G47: 49.9 | H47: 49.9 | I47: 49.9 | J47: 49.9
B48: Bramford Tertiary | C48: Solar | D48: BRFO40 | E48: 18 | F48: 0 | G48: 49.9 | H48: 57 | I48: 57 | J48: 57
B49: Bramley (tertiary) | C49: Solar | D49: BRLE40 | E49: 25 | F49: 0 | G49: 57 | H49: 57 | I49: 57 | J49: 57
B50: Bramley Solar Farm | C50: Solar | D50: BRLE40 | E50: 25 | F50: 0 | G50: 49.995 | H50: 49.995 | I50: 49.995 | J50: 49.995
B51: Bredbury | C51: Pump Storage | D51: BRED20 | E51: 16 | F51: 49.9 | G51: 49.9 | H51: 49.9 | I51: 49.9 | J51: 49.9
B52: Bridgwater (tertiary) | C52: Solar | D52: BRWA4A | E52: 26 | F52: 0 | G52: 0 | H52: 57 | I52: 57 | J52: 57
B53: Bridgwater 2 (tertiary) - New Conn | C53: Pump Storage | D53: BRWA4A | E53: 26 | F53: 0 | G53: 0 | H53: 54 | I53: 54 | J53: 54
B54: Britned | C54: Interconnectors | D54: GRAI40 | E54: 24 | F54: 1200 | G54: 1200 | H54: 1200 | I54: 1200 | J54: 1200
B55: Broken Cross Windfarm | C55: Wind Onshore | D55: COAL10 | E55: 11 | F55: 0 | G55: 48 | H55: 48 | I55: 48 | J55: 48
B56: Burbo Bank Extension Offshore Wind Farm | C56: Wind Offshore | D56: BODE40 | E56: 16 | F56: 258 | G56: 258 | H56: 258 | I56: 258 | J56: 258
B57: Burwell (Tertiary) | C57: Pump Storage | D57: BURW40 | E57: 18 | F57: 49.9 | G57: 49.9 | H57: 49.9 | I57: 49.9 | J57: 49.9
B58: Bustleholme | C58: Pump Storage | D58: BUST20 | E58: 18 | F58: 49.9 | G58: 49.9 | H58: 49.9 | I58: 49.9 | J58: 49.9
B59: Cairn Duhie Wind Farm | C59: Wind Onshore | D59: KNOC20 | E59: 1 | F59: 0 | G59: 0 | H59: 0 | I59: 0 | J59: 84
B60: Canterbury Tertiary | C60: Solar | D60: CANT40 | E60: 24 | F60: 0 | G60: 0 | H60: 0 | I60: 49.9 | J60: 57
B61: Capenhurst (Tertiary) | C61: Solar | D61: CAPE20 | E61: 16 | F61: 0 | G61: 0 | H61: 0 | I61: 49.9 | J61: 49.9
B62: Capenhurst 275KV Substation | C62: Pump Storage | D62: CAPE20 | E62: 16 | F62: 49.9 | G62: 49.9 | H62: 49.9 | I62: 49.9 | J62: 49.9
B63: Capenhurst Gas | C63: CCGT | D63: CAPE20 | E63: 16 | F63: 49.5 | G63: 49.5 | H63: 49.5 | I63: 49.5 | J63: 49.5
B64: Carnedd Wen Wind Farm | C64: Wind Onshore | D64: TRAW40 | E64: 16 | F64: 0 | G64: 0 | H64: 0 | I64: 0 | J64: 150
B65: Carraig Gheal Wind Farm | C65: Wind Onshore | D65: FERO10 | E65: 7 | F65: 46 | G65: 46 | H65: 46 | I65: 46 | J65: 46
B66: Carrick Wind Farm | C66: Wind Onshore | D66: NECU20 | E66: 10 | F66: 0 | G66: 0 | H66: 84 | I66: 84 | J66: 84
B67: Carrington | C67: Pump Storage | D67: CARR20 | E67: 16 | F67: 49.9 | G67: 49.9 | H67: 49.9 | I67: 49.9 | J67: 49.9
B68: Carrington Power Station | C68: CCGT | D68: CARR40 | E68: 16 | F68: 910 | G68: 910 | H68: 910 | I68: 910 | J68: 910
B69: CDCL | C69: CCGT | D69: COTT40 | E69: 16 | F69: 445 | G69: 445 | H69: 445 | I69: 445 | J69: 445
B70: Cellarhead | C70: Solar | D70: CELL40_SPM | E70: 18 | F70: 0 | G70: 0 | H70: 57 | I70: 57 | J70: 57
B71: Chirmorie Wind Farm | C71: Wind Onshore | D71: CHMO10 | E71: 10 | F71: 0 | G71: 0 | H71: 80 | I71: 80 | J71: 80
B72: Clash Gour | C72: Wind Onshore | D72: CLGO20 | E72: 1 | F72: 0 | G72: 0 | H72: 210 | I72: 210 | J72: 210
B73: Clashindarroch Extension | C73: Wind Onshore | D73: CAIN20 | E73: 1 | F73: 0 | G73: 37.5 | H73: 37.5 | I73: 37.5 | J73: 37.5
B74: Clauchrie Windfarm | C74: Wind Onshore | D74: CLAU10 | E74: 10 | F74: 0 | G74: 0 | H74: 0 | I74: 84 | J74: 84
B75: Cleve Hill Solar Park | C75: Solar | D75: CLEH40 | E75: 24 | F75: 350 | G75: 350 | H75: 350 | I75: 350 | J75: 350
B76: Cloiche Wind Farm | C76: Wind Onshore | D76: CLOI10 | E76: 5 | F76: 0 | G76: 0 | H76: 0 | I76: 200 | J76: 200
B77: Clunie (part of the Clunie Cascade) | C77: Hydro | D77: CLUN1S | E77: 5 | F77: 61.2 | G77: 61.2 | H77: 61.2 | I77: 61.2 | J77: 61.2
B78: Clyde North | C78: Wind Onshore | D78: CLYN2Q | E78: 11 | F78: 374.5 | G78: 374.5 | H78: 374.5 | I78: 374.5 | J78: 374.5
B79: Clyde South | C79: Wind Onshore | D79: CLYS2R | E79: 11 | F79: 128.8 | G79: 128.8 | H79: 128.8 | I79: 128.8 | J79: 128.8
B80: Codling Park Wind Farm | C80: Wind Offshore | D80: PENT40 | E80: 19 | F80: 0 | G80: 0 | H80: 1000 | I80: 1000 | J80: 1000
B81: Connahs Quay | C81: CCGT | D81: CONQ40 | E81: 16 | F81: 1380 | G81: 1380 | H81: 1380 | I81: 1380 | J81: 1380
B82: Coopers Lane Kirkby | C82: CCGT | D82: KIBY20 | E82: 15 | F82: 49.5 | G82: 49.5 | H82: 49.5 | I82: 49.5 | J82: 49.5
B83: Corby | C83: CCGT | D83: GREN40_EME | E83: 18 | F83: 401 | G83: 401 | H83: 401 | I83: 401 | J83: 401
B84: Corriegarth | C84: Wind Onshore | D84: COGA10 | E84: 1 | F84: 69 | G84: 69 | H84: 69 | I84: 69 | J84: 69
B85: Corriegarth 2 Wind Farm | C85: Wind Onshore | D85: COGA10 | E85: 1 | F85: 0 | G85: 0 | H85: 96 | I85: 96 | J85: 96
B86: Corriemoillie Wind Farm | C86: Wind Onshore | D86: CORI10 | E86: 1 | F86: 47.5 | G86: 47.5 | H86: 47.5 | I86: 47.5 | J86: 47.5
B87: Coryton | C87: CCGT | D87: COSO40 | E87: 24 | F87: 800 | G87: 800 | H87: 800 | I87: 800 | J87: 800
B88: Costa Head Wind Farm | C88: Wind Onshore | D88: COST10 | E88: 1 | F88: 0 | G88: 0 | H88: 0 | I88: 20.4 | J88: 20.4
B89: Cour Wind Farm | C89: Wind Onshore | D89: CRSS10 | E89: 7 | F89: 20.5 | G89: 20.5 | H89: 20.5 | I89: 20.5 | J89: 20.5
B90: Coventry | C90: Pump Storage | D90: COVE20 | E90: 18 | F90: 49.9 | G90: 49.9 | H90: 49.9 | I90: 49.9 | J90: 49.9
B91: Cowes | C91: OCGT | D91: FAWL40 | E91: 26 | F91: 140 | G91: 140 | H91: 140 | I91: 140 | J91: 140
B92: Cowley | C92: Pump Storage | D92: COWL40 | E92: 25 | F92: 49.9 | G92: 49.9 | H92: 49.9 | I92: 49.9 | J92: 49.9
B93: Cowley (Tertiary) | C93: Solar | D93: COWL40 | E93: 25 | F93: 49.9 | G93: 57 | H93: 57 | I93: 57 | J93: 57
B94: CPG Power | C94: CCGT | D94: CARR40 | E94: 16 | F94: 0 | G94: 0 | H94: 0 | I94: 0 | J94: 49.9
B95: Creag Riabhach Wind Farm | C95: Wind Onshore | D95: CREA10 | E95: 1 | F95: 92.4 | G95: 92.4 | H95: 92.4 | I95: 92.4 | J95: 92.4
B96: Cronos | C96: Interconnectors | D96: KEMS40 | E96: 24 | F96: 0 | G96: 0 | H96: 0 | I96: 1400 | J96: 1400
B97: Crookedstane Windfarm | C97: Wind Onshore | D97: CLYS2R | E97: 11 | F97: 25.4 | G97: 25.4 | H97: 25.4 | I97: 25.4 | J97: 25.4
B98: Crossdykes | C98: Wind Onshore | D98: EWEH1Q | E98: 12 | F98: 46 | G98: 46 | H98: 46 | I98: 46 | J98: 46
B99: Cruachan | C99: Pump Storage | D99: CRUA20 | E99: 8 | F99: 440 | G99: 440 | H99: 440 | I99: 440 | J99: 440
B100: Cryogenic Battery System (Synchronous) | C100: Pump Storage | D100: CARR40 | E100: 16 | F100: 0 | G100: 49.9 | H100: 49.9 | I100: 49.9 | J100: 49.9
B101: Crystal Rig II Wind Farm | C101: Wind Onshore | D101: CRYR40 | E101: 11 | F101: 138 | G101: 138 | H101: 138 | I101: 138 | J101: 138
B102: Crystal Rig III Wind Farm | C102: Wind Onshore | D102: CRYR40 | E102: 11 | F102: 13.8 | G102: 13.8 | H102: 13.8 | I102: 13.8 | J102: 13.8
B103: Crystal Rig IV Wind Farm | C103: Wind Onshore | D103: CRYR40 | E103: 11 | F103: 48.2 | G103: 48.2 | H103: 48.2 | I103: 48.2 | J103: 48.2
B104: Culligran (part of the Beauly Cascade) | C104: Hydro | D104: CULL1Q | E104: 1 | F104: 19.1 | G104: 19.1 | H104: 19.1 | I104: 19.1 | J104: 19.1
B105: Cumberhead | C105: Wind Onshore | D105: COAL10 | E105: 11 | F105: 50 | G105: 50 | H105: 50 | I105: 50 | J105: 50
B106: Cumberhead West Wind Farm | C106: Wind Onshore | D106: COAL10 | E106: 11 | F106: 0 | G106: 0 | H106: 100 | I106: 100 | J106: 100
B107: Dalquhandy Wind Farm | C107: Wind Onshore | D107: COAL10 | E107: 11 | F107: 45 | G107: 45 | H107: 45 | I107: 45 | J107: 45
B108: Damhead Creek | C108: CCGT | D108: KINO40 | E108: 24 | F108: 812 | G108: 812 | H108: 812 | I108: 812 | J108: 812
B109: Damhead Creek 2 | C109: CCGT | D109: KINO40 | E109: 24 | F109: 1800 | G109: 1800 | H109: 1800 | I109: 1800 | J109: 1800
B110: Deanie (part of the Beauly Cascade) | C110: Hydro | D110: DEAN1Q | E110: 1 | F110: 38 | G110: 38 | H110: 38 | I110: 38 | J110: 38
B111: Deeside Power Station | C111: CCGT | D111: CONQ40 | E111: 16 | F111: 1 | G111: 1 | H111: 1 | I111: 1 | J111: 1
B112: Dell Wind Farm | C112: Wind Onshore | D112: MELG10 | E112: 5 | F112: 0 | G112: 0 | H112: 0 | I112: 0 | J112: 49.8
B113: Dersalloch Wind Farm | C113: Wind Onshore | D113: DERS1Q | E113: 10 | F113: 69 | G113: 69 | H113: 69 | I113: 69 | J113: 69
B114: Didcot A GTs | C114: OCGT | D114: DIDC40 | E114: 25 | F114: 100 | G114: 100 | H114: 100 | I114: 100 | J114: 100
B115: Didcot B | C115: CCGT | D115: DIDC40 | E115: 25 | F115: 1450 | G115: 1450 | H115: 1450 | I115: 1450 | J115: 1450
B116: Dinorwig | C116: Pump Storage | D116: DINO40 | E116: 19 | F116: 1644 | G116: 1644 | H116: 1644 | I116: 1644 | J116: 1644
B117: Dogger Bank Project 1 | C117: Wind Offshore | D117: CREB40 | E117: 15 | F117: 0 | G117: 1200 | H117: 1200 | I117: 1200 | J117: 1200
B118: Dogger Bank Project 2 | C118: Wind Offshore | D118: CREB40 | E118: 15 | F118: 0 | G118: 0 | H118: 1500 | I118: 1500 | J118: 1500
B119: Dogger Bank Project 4 | C119: Wind Offshore | D119: CREB40 | E119: 15 | F119: 0 | G119: 0 | H119: 1200 | I119: 1200 | J119: 1200
B120: Dorenell Windfarm | C120: Wind Onshore | D120: DORE11 | E120: 1 | F120: 177 | G120: 177 | H120: 177 | I120: 177 | J120: 177
B121: Douglas West | C121: Wind Onshore | D121: COAL10 | E121: 11 | F121: 45 | G121: 45 | H121: 45 | I121: 45 | J121: 45
B122: Douglas West Extension | C122: Wind Onshore | D122: COAL10 | E122: 11 | F122: 0 | G122: 0 | H122: 60 | I122: 60 | J122: 60
B123: Drakelow | C123: Solar | D123: DRAK40 | E123: 18 | F123: 0 | G123: 0 | H123: 57 | I123: 57 | J123: 57
B124: Drax - New Connection | C124: Pump Storage | D124: DRAX40 | E124: 15 | F124: 0 | G124: 0 | H124: 0 | I124: 49.9 | J124: 120
B125: Drax (Biomass) | C125: Biomass | D125: DRAX40 | E125: 15 | F125: 1905 | G125: 1905 | H125: 1905 | I125: 1905 | J125: 1905
B126: Drax (Coal) | C126: Coal | D126: DRAX40 | E126: 15 | F126: 2001 | G126: 2001 | H126: 2001 | I126: 2001 | J126: 2001
B127: Dudgeon Offshore Wind Farm | C127: Wind Offshore | D127: NECT40 | E127: 17 | F127: 400 | G127: 400 | H127: 400 | I127: 400 | J127: 400
B128: Dungeness B | C128: Nuclear | D128: DUNG40 | E128: 24 | F128: 1120 | G128: 1120 | H128: 1120 | I128: 1120 | J128: 1120
B129: Dunlaw Extension | C129: Wind Onshore | D129: DUNE10 | E129: 11 | F129: 29.75 | G129: 29.75 | H129: 29.75 | I129: 29.75 | J129: 29.75
B130: Dunmaglass Wind Farm | C130: Wind Onshore | D130: DUNM10 | E130: 1 | F130: 94 | G130: 94 | H130: 94 | I130: 94 | J130: 94
B131: East Anglia 2 | C131: Wind Offshore | D131: BRFO40 | E131: 18 | F131: 0 | G131: 0 | H131: 860 | I131: 860 | J131: 860
B132: East Anglia 3 | C132: Wind Offshore | D132: BRFO40 | E132: 18 | F132: 0 | G132: 1200 | H132: 1200 | I132: 1200 | J132: 1200
B133: East Anglia One | C133: Wind Offshore | D133: BRFO40 | E133: 18 | F133: 680 | G133: 680 | H133: 680 | I133: 680 | J133: 680
B134: East Claydon | C134: Solar | D134: ECLA40_EME | E134: 18 | F134: 0 | G134: 0 | H134: 0 | I134: 500 | J134: 500
B135: East West Interconnector | C135: Interconnectors | D135: CONQ40 | E135: 16 | F135: 505 | G135: 505 | H135: 505 | I135: 505 | J135: 505
B136: Edinbane Wind - Skye | C136: Wind Onshore | D136: EDIN10 | E136: 4 | F136: 41.4 | G136: 41.4 | H136: 41.4 | I136: 41.4 | J136: 41.4
B137: Eggborough | C137: CCGT | D137: EGGB40 | E137: 15 | F137: 0 | G137: 0 | H137: 2450 | I137: 2450 | J137: 2450
B138: Elchies Wind Farm | C138: Wind Onshore | D138: ELCH10 | E138: 1 | F138: 0 | G138: 0 | H138: 0 | I138: 99 | J138: 99
B139: ElecLink | C139: Interconnectors | D139: SELL40 | E139: 24 | F139: 1000 | G139: 1000 | H139: 1000 | I139: 1000 | J139: 1000
B140: Elstree (tertiary) | C140: Solar | D140: ELST40 | E140: 25 | F140: 0 | G140: 0 | H140: 0 | I140: 49.9 | J140: 49.9
B141: Elstree 2 (Tertiary) | C141: CCGT | D141: ELST40 | E141: 25 | F141: 0 | G141: 0 | H141: 49.5 | I141: 49.5 | J141: 49.5
B142: Enderby | C142: Pump Storage | D142: ENDE40 | E142: 18 | F142: 0 | G142: 49.9 | H142: 49.9 | I142: 49.9 | J142: 49.9
B143: Enderby Tertiary | C143: CCGT | D143: ENDE40 | E143: 18 | F143: 0 | G143: 0 | H143: 57 | I143: 57 | J143: 57
B144: Energy Isles | C144: Wind Onshore | D144: ENEI10 | E144: 1 | F144: 0 | G144: 0 | H144: 120.3 | I144: 120.3 | J144: 120.3
B145: Enfield | C145: CCGT | D145: BRIM2A_EPN | E145: 24 | F145: 442 | G145: 442 | H145: 442 | I145: 442 | J145: 442
B146: Enoch Hill | C146: Wind Onshore | D146: ENHI10 | E146: 10 | F146: 0 | G146: 69 | H146: 69 | I146: 69 | J146: 69
B147: Equinor | C147: Wind Offshore | D147: NORM40 | E147: 18 | F147: 0 | G147: 0 | H147: 0 | I147: 719 | J147: 719
B148: Erebus | C148: Wind Offshore | D148: PEMB40 | E148: 20 | F148: 0 | G148: 0 | H148: 0 | I148: 0 | J148: 91
B149: Errochty | C149: Hydro | D149: ERRO10 | E149: 5 | F149: 75 | G149: 75 | H149: 75 | I149: 75 | J149: 75
B150: Euchanhead Wind Farm | C150: Wind Onshore | D150: NECU10 | E150: 10 | F150: 0 | G150: 0 | H150: 0 | I150: 0 | J150: 112
B151: EuroLink | C151: Interconnectors | D151: LEIS4A | E151: 18 | F151: 0 | G151: 0 | H151: 1600 | I151: 1600 | J151: 1600
B152: Ewe Hill | C152: Wind Onshore | D152: EWEH1Q | E152: 12 | F152: 39 | G152: 39 | H152: 39 | I152: 39 | J152: 39
B153: Exeter (Tertiary) | C153: Pump Storage | D153: EXET40 | E153: 26 | F153: 0 | G153: 0 | H153: 0 | I153: 49.9 | J153: 49.9
B154: Exeter Main Tertiary | C154: CCGT | D154: EXET40 | E154: 26 | F154: 0 | G154: 0 | H154: 57 | I154: 57 | J154: 57
B155: FAB Link Interconnector | C155: Interconnectors | D155: EXET40 | E155: 26 | F155: 0 | G155: 0 | H155: 0 | I155: 1400 | J155: 1400
B156: Fallago Rig 2 | C156: Wind Onshore | D156: FALL40 | E156: 11 | F156: 0 | G156: 41.4 | H156: 41.4 | I156: 41.4 | J156: 41.4
B157: Fallago Rig Wind Farm | C157: Wind Onshore | D157: FALL40 | E157: 11 | F157: 144 | G157: 144 | H157: 144 | I157: 144 | J157: 144
B158: Farr Wind Farm - Tomatin | C158: Wind Onshore | D158: FAAR1Q | E158: 1 | F158: 92 | G158: 92 | H158: 92 | I158: 92 | J158: 92
B159: Fasnakyle G1 & G2 | C159: Hydro | D159: FASN20 | E159: 3 | F159: 46 | G159: 46 | H159: 46 | I159: 46 | J159: 46
B160: Fasque Windfarm | C160: Wind Onshore | D160: FASQ10 | E160: 5 | F160: 0 | G160: 0 | H160: 0 | I160: 0 | J160: 90
B161: Faw Side Community Wind Farm | C161: Wind Onshore | D161: FASI10 | E161: 12 | F161: 0 | G161: 0 | H161: 0 | I161: 250 | J161: 250
B162: Fawley CHP | C162: CHP | D162: FAWL40 | E162: 26 | F162: 158 | G162: 158 | H162: 158 | I162: 158 | J162: 158
B163: Feckenham | C163: Pump Storage | D163: FECK40 | E163: 18 | F163: 12 | G163: 12 | H163: 12 | I163: 12 | J163: 12
B164: Ferrybridge D | C164: CCGT | D164: FERR20_NED | E164: 15 | F164: 0 | G164: 0 | H164: 0 | I164: 0 | J164: 1820
B165: Ffestiniog | C165: Pump Storage | D165: FFES20 | E165: 16 | F165: 360 | G165: 360 | H165: 360 | I165: 360 | J165: 360
B166: Finlarig | C166: Hydro | D166: FINL1Q | E166: 6 | F166: 16.5 | G166: 16.5 | H166: 16.5 | I166: 16.5 | J166: 16.5
B167: Firth of Forth Offshore Wind Farm 2A | C167: Wind Offshore | D167: BRNX40 | E167: 11 | F167: 0 | G167: 700 | H167: 700 | I167: 700 | J167: 700
B168: Firth of Forth Offshore Wind Farm 2B | C168: Wind Offshore | D168: BRNX40 | E168: 11 | F168: 0 | G168: 0 | H168: 700 | I168: 700 | J168: 700
B169: Firth of Forth Phase 1 | C169: Wind Offshore | D169: TEAL20 | E169: 5 | F169: 1075 | G169: 1075 | H169: 1075 | I169: 1075 | J169: 1075
B170: Fleet (Tertiary) | C170: Solar | D170: FLEE40 | E170: 25 | F170: 0 | G170: 0 | H170: 0 | I170: 49.9 | J170: 57
B171: Fleet (Tertiary) CSE23 | C171: Solar | D171: FLEE40 | E171: 25 | F171: 0 | G171: 0 | H171: 49.9 | I171: 49.9 | J171: 49.9
B172: Fleet Tertiary SOLAR | C172: CCGT | D172: FLEE40 | E172: 25 | F172: 0 | G172: 0 | H172: 57 | I172: 57 | J172: 57
B173: Foyers | C173: Pump Storage | D173: FOYE20 | E173: 1 | F173: 300 | G173: 300 | H173: 300 | I173: 300 | J173: 300
B174: Freasdail | C174: Wind Onshore | D174: CRSS10 | E174: 7 | F174: 22.2 | G174: 22.2 | H174: 22.2 | I174: 22.2 | J174: 22.2
B175: Galawhistle Wind Farm | C175: Wind Onshore | D175: GAWH10 | E175: 11 | F175: 55.2 | G175: 55.2 | H175: 55.2 | I175: 55.2 | J175: 55.2
B176: Galloper Wind Farm | C176: Wind Offshore | D176: LEIS10 | E176: 18 | F176: 348 | G176: 348 | H176: 348 | I176: 348 | J176: 348
B177: Gateway Energy Centre Power Station | C177: OCGT | D177: COSO40 | E177: 24 | F177: 0 | G177: 619.99 | H177: 1000 | I177: 1000 | J177: 1000
B178: Glen App Windfarm | C178: Wind Onshore | D178: AREC10 | E178: 10 | F178: 32.2 | G178: 32.2 | H178: 32.2 | I178: 32.2 | J178: 32.2
B179: Glen Kyllachy Wind Farm | C179: Wind Onshore | D179: GLKO10 | E179: 1 | F179: 48.5 | G179: 48.5 | H179: 48.5 | I179: 48.5 | J179: 48.5
B180: Glen Ullinish Extension | C180: Wind Onshore | D180: GLNU10 | E180: 4 | F180: 0 | G180: 0 | H180: 0 | I180: 0 | J180: 240
B181: Glen Ullinish Wind Farm | C181: Wind Onshore | D181: GLNU10 | E181: 4 | F181: 0 | G181: 0 | H181: 0 | I181: 49.9 | J181: 49.9
B182: Glendoe | C182: Hydro | D182: GLDO1G | E182: 3 | F182: 99.9 | G182: 99.9 | H182: 99.9 | I182: 99.9 | J182: 99.9
B183: Glenmoriston (part of the Moriston Cascade) | C183: Hydro | D183: GLEN1Q | E183: 3 | F183: 40 | G183: 40 | H183: 40 | I183: 40 | J183: 40
B184: Glenmuckloch Pumped Storage | C184: Pump Storage | D184: GLMU10 | E184: 10 | F184: 0 | G184: 0 | H184: 210 | I184: 210 | J184: 210
B185: Glenmuckloch Wind Farm | C185: Wind Onshore | D185: GLGL1Q | E185: 10 | F185: 0 | G185: 0 | H185: 0 | I185: 33.6 | J185: 33.6
B186: Glenshero | C186: Wind Onshore | D186: GLSH10 | E186: 5 | F186: 0 | G186: 0 | H186: 168 | I186: 168 | J186: 168
B187: Glenshimmeroch Windfarm | C187: Wind Onshore | D187: NECU10 | E187: 10 | F187: 0 | G187: 48 | H187: 48 | I187: 48 | J187: 48
B188: Gordonbush Wind Farm | C188: Wind Onshore | D188: GORW20 | E188: 1 | F188: 108 | G188: 108 | H188: 108 | I188: 108 | J188: 108
B189: Grain | C189: CCGT | D189: GRAI40 | E189: 24 | F189: 1517 | G189: 1517 | H189: 1517 | I189: 1517 | J189: 1517
B190: Grangemouth CHP | C190: CHP | D190: GRMO20 | E190: 9 | F190: 120 | G190: 120 | H190: 120 | I190: 120 | J190: 120
B191: Great Yarmouth | C191: CCGT | D191: NORM40 | E191: 18 | F191: 420 | G191: 420 | H191: 420 | I191: 420 | J191: 420
B192: Greater Gabbard Offshore Wind Farm | C192: Wind Offshore | D192: LEIS10 | E192: 18 | F192: 500 | G192: 500 | H192: 500 | I192: 500 | J192: 500
B193: Greenlink | C193: Interconnectors | D193: PEMB40 | E193: 20 | F193: 504 | G193: 504 | H193: 504 | I193: 504 | J193: 504
B194: Gridlink Interconnector | C194: Interconnectors | D194: KINO40 | E194: 24 | F194: 0 | G194: 0 | H194: 1500 | I194: 1500 | J194: 1500
B195: Griffin Wind Farm | C195: Wind Onshore | D195: GRIF1S | E195: 5 | F195: 188.6 | G195: 188.6 | H195: 188.6 | I195: 188.6 | J195: 188.6
B196: Gunfleet Sands II Offshore Wind Farm | C196: Wind Offshore | D196: BRFO40 | E196: 18 | F196: 64 | G196: 64 | H196: 64 | I196: 64 | J196: 64
B197: Gunfleet Sands Offshore Wind Farm | C197: Wind Offshore | D197: BRFO40 | E197: 18 | F197: 99.9 | G197: 99.9 | H197: 99.9 | I197: 99.9 | J197: 99.9
B198: Gwynt Y Mor Offshore Wind Farm | C198: Wind Offshore | D198: BODE40 | E198: 16 | F198: 574 | G198: 574 | H198: 574 | I198: 574 | J198: 574
B199: Hadyard Hill | C199: Wind Onshore | D199: HADH10 | E199: 10 | F199: 99.9 | G199: 99.9 | H199: 99.9 | I199: 99.9 | J199: 99.9
B200: Hagshaw Hill Phase 1 | C200: Wind Onshore | D200: COAL10 | E200: 11 | F200: 0 | G200: 0 | H200: 30 | I200: 30 | J200: 30
B201: Hagshaw Hill Phase 2 | C201: Wind Onshore | D201: COAL10 | E201: 11 | F201: 0 | G201: 0 | H201: 54 | I201: 54 | J201: 54
B202: Halsary Wind Farm | C202: Wind Onshore | D202: MYBS11 | E202: 1 | F202: 28.5 | G202: 28.5 | H202: 28.5 | I202: 28.5 | J202: 28.5
... 250 more rows

Sheet TB
A1: Table B - HH, NHH and EET Summary (2022/23 Forecast variation) | H1: Return to Index
B3: HH Tariffs | C3: 2021/22 Final | D3: 2022/23 April | E3: Change
B4: Average Tariff (£/kW) | C4: 51.360891 | D4: 51.392313 | E4: =IFERROR(D4-C4,"n/a") -> 0.031422
B5: Residual (£/kW) | C5: 53.231669 | D5: 53.285456 | E5: =IFERROR(D5-C5,"n/a") -> 0.053787
B6: EET | C6: =C3 -> 2021/22 Final | D6: =D3 -> 2022/23 April | E6: Change
B7: Average Tariff (£/kW) | C7: 2.144791 | D7: 2.138861 | E7: =IFERROR(D7-C7,"n/a") -> -0.00593
B8: Phased residual (£/kW) | C8: - | D8: - | E8: =IFERROR(D8-C8,"n/a") -> n/a
B9: AGIC (£/kW) | C9: 2.282036 | D9: 2.316267 | E9: =IFERROR(D9-C9,"n/a") -> 0.034231
B10: Embedded Export Volume (GW) | C10: 6.949440241 | D10: 6.536476 | E10: -0.4129642405
B11: Total Credit (£m) | C11: 14.90509923 | D11: 13.980615 | E11: =IFERROR(D11-C11,"n/a") -> -0.9244842252
B12: NHH Tariffs | C12: =C3 -> 2021/22 Final | D12: =D3 -> 2022/23 April | E12: Change
B13: Average (p/kWh) | C13: 6.500873 | D13: 6.495929 | E13: =IFERROR(D13-C13,"n/a") -> -0.004944

Sheet TC
A1: Table C - Half-Hourly demand tariffs (2022/23 Forecast variation) | G1: Return to Index | I1: Figure XX - Changes to gross half-hourly demand tariffs (2022/23 Forecast variation)
B3: Zone | C3: Zone Name | D3: 2021/22 Final Tariffs (£/kW) | E3: 2022/23 Initial Tariffs (£/kW) | F3: Change (£/kW) | G3: Change in Residual (£/kW)
B4: 1 | C4: Northern Scotland | D4: 20.376396 | E4: 22.740255 | F4: =E4-D4 -> 2.363859 | G4: 0.05378743809
B5: 2 | C5: Southern Scotland | D5: 29.300172 | E5: 31.47082 | F5: 2.170648 | G5: =+G4 -> 0.05378743809
B6: 3 | C6: Northern | D6: 41.444048 | E6: 41.680268 | F6: 0.23622 | G6: =+G5 -> 0.05378743809
B7: 4 | C7: North West | D7: 48.036551 | E7: 47.559033 | F7: -0.477518 | G7: 0.05378743809
B8: 5 | C8: Yorkshire | D8: 48.696198 | E8: 48.256053 | F8: -0.440145 | G8: 0.05378743809
B9: 6 | C9: N Wales & Mersey | D9: 49.452722 | E9: 48.884841 | F9: -0.567881 | G9: 0.05378743809
B10: 7 | C10: East Midlands | D10: 52.428151 | E10: 51.948679 | F10: -0.479472 | G10: 0.05378743809
B11: 8 | C11: Midlands | D11: 53.959972 | E11: 53.500361 | F11: -0.459611 | G11: 0.05378743809
B12: 9 | C12: Eastern | D12: 54.283935 | E12: 54.465861 | F12: 0.181926 | G12: 0.05378743809
B13: 10 | C13: South Wales | D13: 56.236808 | E13: 55.008036 | F13: -1.228772 | G13: 0.05378743809
B14: 11 | C14: South East | D14: 56.772103 | E14: 56.810225 | F14: 0.038122 | G14: 0.05378743809
B15: 12 | C15: London | D15: 59.18635 | E15: 59.948874 | F15: 0.762524 | G15: 0.05378743809
B16: 13 | C16: Southern | D16: 58.865203 | E16: 58.515282 | F16: -0.349921 | G16: 0.05378743809 | I16: Table 14
B17: 14 | C17: South Western | D17: 61.676796 | E17: 60.445976 | F17: -1.23082 | G17: 0.05378743809
B20: Zone | C20: Peak (£/kW) | D20: Year Round (£/kW) | E20: Residual £/kW | F20: 2022/23 Initial (£/kW)
B21: 1 | C21: -3.116461576 | D21: -27.42873947 | E21: 53.28545628 | F21: =ROUND(SUM(C21,D21,E21),6) -> 22.740255
B22: 2 | C22: -3.215416143 | D22: -18.59921986 | E22: 53.28545628 | F22: =ROUND(SUM(C22,D22,E22),6) -> 31.47082
B23: 3 | C23: -4.063048214 | D23: -7.542139862 | E23: 53.28545628 | F23: 41.680268
B24: 4 | C24: -1.585722444 | D24: -4.140700592 | E24: 53.28545628 | F24: 47.559033
B25: 5 | C25: -3.215571748 | D25: -1.813831938 | E25: 53.28545628 | F25: 48.256053
B26: 6 | C26: -2.412291705 | D26: -1.98832358 | E26: 53.28545628 | F26: 48.884841
B27: 7 | C27: -2.487281562 | D27: 1.150504123 | E27: 53.28545628 | F27: 51.948679
B28: 8 | C28: -1.419253008 | D28: 1.634158211 | E28: 53.28545628 | F28: 53.500361
B29: 9 | C29: 1.249970307 | D29: -0.06956549307 | E29: 53.28545628 | F29: 54.465861
B30: 10 | C30: -3.583402062 | D30: 5.305981522 | E30: 53.28545628 | F30: 55.008036
B31: 11 | C31: 3.790321726 | D31: -0.2655534988 | E31: 53.28545628 | F31: 56.810225
B32: 12 | C32: 5.603959795 | D32: 1.059458099 | E32: 53.28545628 | F32: 59.948874
B33: 13 | C33: 1.809885312 | D33: 3.419940539 | E33: 53.28545628 | F33: 58.515282
B34: 14 | C34: 0.7801330987 | D34: 6.380386321 | E34: 53.28545628 | F34: 60.445976

Sheet TD
A1: Table D - Embedded Export Tariff (2022/23 Forecast variation) | G1: Return to Index | I1: Figure xx - Changes to Embedded Export Tariff (2022/23 Forecast variation)
B4: Zone | C4: Zone Name | D4: 2021/22 Final (£/kW) | E4: 2022/23 Initial (£/kW) | F4: Change (£/kW)
B5: 1 | C5: Northern Scotland | D5: 0 | E5: 0 | F5: =E5-D5 -> 0
B6: 2 | C6: Southern Scotland | D6: 0 | E6: 0 | F6: =E6-D6 -> 0
B7: 3 | C7: Northern | D7: 0 | E7: 0 | F7: 0
B8: 4 | C8: North West | D8: 0 | E8: 0 | F8: 0
B9: 5 | C9: Yorkshire | D9: 0 | E9: 0 | F9: 0
B10: 6 | C10: N Wales & Mersey | D10: 0 | E10: 0 | F10: 0
B11: 7 | C11: East Midlands | D11: 1.478519 | E11: 0.97949 | F11: -0.499029
B12: 8 | C12: Midlands | D12: 3.01034 | E12: 2.531172 | F12: -0.479168
B13: 9 | C13: Eastern | D13: 3.334302 | E13: 3.496672 | F13: 0.16237
B14: 10 | C14: South Wales | D14: 5.287175 | E14: 4.038846 | F14: -1.248329
B15: 11 | C15: South East | D15: 5.822471 | E15: 5.841035 | F15: 0.018564
B16: 12 | C16: London | D16: 8.236717 | E16: 8.979685 | F16: 0.742968
B17: 13 | C17: Southern | D17: 7.91557 | E17: 7.546093 | F17: -0.369477
B18: 14 | C18: South Western | D18: 10.727163 | E18: 9.476786 | F18: -1.250377
B20: Zone | C20: EET Locational £/kW | D20: AGIC £/kW | E20: Phased Residual £/kW | F20: Initial Tariff £/kW | G20: EET Revenue £m
B21: 1 | C21: -30.54520104 | D21: 2.316267 | E21: - | F21: 0 | G21: 0
B22: 2 | C22: -21.81463601 | D22: 2.316267 | E22: - | F22: 0 | G22: 0
B23: 3 | C23: -11.60518808 | D23: 2.316267 | E23: - | F23: 0 | G23: 0
B24: 4 | C24: -5.726423036 | D24: 2.316267 | E24: - | F24: 0 | G24: 0
B25: 5 | C25: -5.029403686 | D25: 2.316267 | E25: - | F25: 0 | G25: 0
B26: 6 | C26: -4.400615285 | D26: 2.316267 | E26: - | F26: 0 | G26: 0
B27: 7 | C27: -1.336777438 | D27: 2.316267 | E27: - | F27: 0.97949 | G27: 0.5002019697
B28: 8 | C28: 0.2149052026 | D28: 2.316267 | E28: - | F28: 2.531172 | G28: 0.6794743848
B29: 9 | C29: 1.180404814 | D29: 2.316267 | E29: - | F29: 3.496672 | G29: 2.395505889
B30: 10 | C30: 1.72257946 | D30: 2.316267 | E30: - | F30: 4.038846 | G30: 1.49557942
B31: 11 | C31: 3.524768227 | D31: 2.316267 | E31: - | F31: 5.841035 | G31: 1.910471041
B32: 12 | C32: 6.663417894 | D32: 2.316267 | E32: - | F32: 8.979685 | G32: 1.193340008
B33: 13 | C33: 5.229825851 | D33: 2.316267 | E33: - | F33: 7.546093 | G33: 3.100783453
B34: 14 | C34: 7.16051942 | D34: 2.316267 | E34: - | F34: 9.476786 | G34: 2.705258603

Sheet TE
A1: Table E - Non-half hourly demand tariffs (2022/23 Forecast variation) | G1: Return to Index | H1: Figure XX - Changes to Non-half hourly demand tariffs (2022/23 Forecast variation)
B4: Zone | C4: Zone Name | D4: 2021/22 Final (p/kWh) | E4: 2022/23 Initial (p/kWh) | F4: Change (p/kWh)
B5: 1 | C5: Northern Scotland | D5: 2.723726 | E5: 3.022811 | F5: 0.299085 | H5: 0
B6: 2 | C6: Southern Scotland | D6: 3.712996 | E6: 4.012326 | F6: 0.29933
B7: 3 | C7: Northern | D7: 5.139134 | E7: 5.135737 | F7: -0.003397
B8: 4 | C8: North West | D8: 6.039881 | E8: 6.042024 | F8: 0.002143
B9: 5 | C9: Yorkshire | D9: 5.963751 | E9: 5.902938 | F9: -0.060813
B10: 6 | C10: N Wales & Mersey | D10: 6.060647 | E10: 5.982738 | F10: -0.077909
B11: 7 | C11: East Midlands | D11: 6.641922 | E11: 6.57082 | F11: -0.071102
B12: 8 | C12: Midlands | D12: 6.937534 | E12: 6.896029 | F12: -0.041505
B13: 9 | C13: Eastern | D13: 7.355652 | E13: 7.406702 | F13: 0.05105
B14: 10 | C14: South Wales | D14: 6.514291 | E14: 6.264584 | F14: -0.249707
B15: 11 | C15: South East | D15: 7.73898 | E15: 7.766608 | F15: 0.027628
B16: 12 | C16: London | D16: 6.378699 | E16: 6.256171 | F16: -0.122528
B17: 13 | C17: Southern | D17: 7.574864 | E17: 7.523025 | F17: -0.051839
B18: 14 | C18: South Western | D18: 8.488355 | E18: 8.44426 | F18: -0.044095

Sheet TF
A1: Table F - Demand HH locational tariffs (2022/23 Forecast variation) | I1: Return to Index
B4: Demand Zone | D4: 2021/22 Final Tariffs | F4: 2022/23 Initial Tariffs | H4: Changes
D5: Peak (£/kW) | E5: Year Round (£/kW) | F5: Peak (£/kW) | G5: Year Round (£/kW) | H5: Peak (£/kW) | I5: Year Round (£/kW)
B6: 1 | C6: Northern Scotland | D6: -2.013342253 | E6: -30.84193021 | F6: -3.116461576 | G6: -27.42873947 | H6: =D6-F6 -> 1.103119323 | I6: =E6-G6 -> -3.413190748
B7: 2 | C7: Southern Scotland | D7: -2.612608086 | E7: -21.31888909 | F7: -3.215416143 | G7: -18.59921986 | H7: =D7-F7 -> 0.6028080564 | I7: =E7-G7 -> -2.719669224
B8: 3 | C8: Northern | D8: -3.209289631 | E8: -8.578331279 | F8: -4.063048214 | G8: -7.542139862 | H8: 0.8537585825 | I8: -1.036191417
B9: 4 | C9: North West | D9: -2.249279298 | E9: -2.945838513 | F9: -1.585722444 | G9: -4.140700592 | H9: -0.6635568544 | I9: 1.194862079
B10: 5 | C10: Yorkshire | D10: -2.446645531 | E10: -2.08882537 | F10: -3.215571748 | G10: -1.813831938 | H10: 0.7689262173 | I10: -0.2749934323
B11: 6 | C11: N Wales & Mersey | D11: -2.335045238 | E11: -1.443901754 | F11: -2.412291705 | G11: -1.98832358 | H11: 0.07724646682 | I11: 0.5444218259
B12: 7 | C12: East Midlands | D12: -2.314463938 | E12: 1.510946567 | F12: -2.487281562 | G12: 1.150504123 | H12: 0.1728176243 | I12: 0.3604424439
B13: 8 | C13: Midlands | D13: -1.877485775 | E13: 2.605789293 | F13: -1.419253008 | G13: 1.634158211 | H13: -0.4582327673 | I13: 0.9716310823
B14: 9 | C14: Eastern | D14: 1.279155586 | E14: -0.2268891102 | F14: 1.249970307 | G14: -0.06956549307 | H14: 0.02918527879 | I14: -0.1573236171
B15: 10 | C15: South Wales | D15: -3.84368983 | E15: 6.848829194 | F15: -3.583402062 | G15: 5.305981522 | H15: -0.2602877683 | I15: 1.542847672
B16: 11 | C16: South East | D16: 3.613715167 | E16: -0.07328053715 | F16: 3.790321726 | G16: -0.2655534988 | H16: -0.1766065589 | I16: 0.1922729617
B17: 12 | C17: London | D17: 5.001321542 | E17: 0.9533591236 | F17: 5.603959795 | G17: 1.059458099 | H17: -0.6026382534 | I17: -0.1060989753
B18: 13 | C18: Southern | D18: 1.935330708 | E18: 3.698203653 | F18: 1.809885312 | G18: 3.419940539 | H18: 0.1254453953 | I18: 0.2782631147
B19: 14 | C19: South Western | D19: 1.448736181 | E19: 6.996390557 | F19: 0.7801330987 | G19: 6.380386321 | H19: 0.668603082 | I19: 0.6160042361

Sheet TG
A1: Table G - Breakdown of EET (2022/23 Forecast Variation) | H1: Return to Index
B4: Demand Zone | D4: 2021/22 Final Tariffs | F4: 2022/23 Initial Tariffs | H4: Changes
D5: Locational (£/kW) | E5: AGIC (£/kW) | F5: Locational (£/kW) | G5: AGIC (£/kW) | H5: Locational (£/kW) | I5: AGIC (£/kW)
B6: 1 | C6: Northern Scotland | D6: -32.85527247 | E6: 2.282036 | F6: -30.54520104 | G6: 2.316267 | H6: =D6-F6 -> -2.310071425 | I6: =E6-G6 -> -0.034231
B7: 2 | C7: Southern Scotland | D7: -23.93149717 | E7: 2.282036 | F7: -21.81463601 | G7: 2.316267 | H7: -2.116861168 | I7: -0.034231
B8: 3 | C8: Northern | D8: -11.78762091 | E8: 2.282036 | F8: -11.60518808 | G8: 2.316267 | H8: -0.1824328347 | I8: -0.034231
B9: 4 | C9: North West | D9: -5.195117811 | E9: 2.282036 | F9: -5.726423036 | G9: 2.316267 | H9: 0.5313052246 | I9: -0.034231
B10: 5 | C10: Yorkshire | D10: -4.535470901 | E10: 2.282036 | F10: -5.029403686 | G10: 2.316267 | H10: 0.493932785 | I10: -0.034231
B11: 6 | C11: N Wales & Mersey | D11: -3.778946993 | E11: 2.282036 | F11: -4.400615285 | G11: 2.316267 | H11: 0.6216682927 | I11: -0.034231
B12: 7 | C12: East Midlands | D12: -0.8035173702 | E12: 2.282036 | F12: -1.336777438 | G12: 2.316267 | H12: 0.5332600683 | I12: -0.034231
B13: 8 | C13: Midlands | D13: 0.7283035177 | E13: 2.282036 | F13: 0.2149052026 | G13: 2.316267 | H13: 0.513398315 | I13: -0.034231
B14: 9 | C14: Eastern | D14: 1.052266476 | E14: 2.282036 | F14: 1.180404814 | G14: 2.316267 | H14: -0.1281383383 | I14: -0.034231
B15: 10 | C15: South Wales | D15: 3.005139364 | E15: 2.282036 | F15: 1.72257946 | G15: 2.316267 | H15: 1.282559904 | I15: -0.034231
B16: 11 | C16: South East | D16: 3.540434629 | E16: 2.282036 | F16: 3.524768227 | G16: 2.316267 | H16: 0.01566640276 | I16: -0.034231
B17: 12 | C17: London | D17: 5.954680665 | E17: 2.282036 | F17: 6.663417894 | G17: 2.316267 | H17: -0.7087372287 | I17: -0.034231
B18: 13 | C18: Southern | D18: 5.633534361 | E18: 2.282036 | F18: 5.229825851 | G18: 2.316267 | H18: 0.4037085101 | I18: -0.034231
B19: 14 | C19: South Western | D19: 8.445126738 | E19: 2.282036 | F19: 7.16051942 | G19: 2.316267 | H19: 1.284607318 | I19: -0.034231

Sheet TH
A1: Table H - Demand Profiles (2022/23 Forecast Variation) | L1: Return to Index
B3: Zone | C3: Zone Name | D3: 2021/22 Final Tariffs | I3: 2022/23 Initial Tariffs | J3: 2021/22 August | K3: 2021/22 August | L3: 2021/22 August | M3: 2021/22 August
D4: Locational Model Demand (MW) | E4: GROSS Tariff model Peak Demand (MW) | F4: GROSS Tariff Model HH Demand (MW) | G4: Tariff model NHH Demand (TWh) | H4: Tariff model Embedded Export (MW) | I4: Locational Model Demand (MW) | J4: GROSS Tariff model Peak Demand (MW) | K4: GROSS Tariff Model HH Demand (MW) | L4: Tariff model NHH Demand (TWh) | M4: Tariff model Embedded Export (MW)
B5: 1 | C5: Northern Scotland | D5: 121.939003 | E5: 1445.533542 | F5: 425.0017043 | G5: 0.763467384 | H5: 1237.928254 | I5: 12.87236915 | J5: 1426.171172 | K5: 440.8879095 | L5: 0.7412171075 | M5: 968.9891558
B6: 2 | C6: Southern Scotland | D6: 1976.995441 | E6: 3306.155713 | F6: 1177.140949 | G6: 1.6800583 | H6: 743.123832 | I6: 1898.947895 | J6: 3292.640906 | K6: 1214.650851 | L6: 1.629878909 | M6: 607.4962509
B7: 3 | C7: Northern | D7: 2037 | E7: 2488.815804 | F7: 996.3520928 | G7: 1.203582848 | H7: 416.1917037 | I7: 2049 | J7: 2473.787833 | K7: 1035.310602 | L7: 1.167429631 | M7: 402.2245407
B8: 4 | C8: North West | D8: 2183 | E8: 3905.515521 | F8: 1405.548575 | G8: 1.988280658 | H8: 377.9267111 | I8: 2430 | J8: 3895.719009 | K8: 1441.269587 | L8: 1.931989153 | M8: 384.2629305
B9: 5 | C9: Yorkshire | D9: 4062 | E9: 3738.552421 | F9: 1502.885995 | G9: 1.825503106 | H9: 693.9071662 | I9: 4059 | J9: 3721.612916 | K9: 1552.229313 | L9: 1.773453881 | M9: 655.1908524
B10: 6 | C10: N Wales & Mersey | D10: 2568 | E10: 2542.500494 | F10: 985.1110257 | G10: 1.270774301 | H10: 541.2581338 | I10: 2618 | J10: 2532.974464 | K10: 1022.452172 | L10: 1.234245019 | M10: 527.4683782
B11: 7 | C11: East Midlands | D11: 5059 | E11: 4575.770986 | F11: 1701.756666 | G11: 2.268609172 | H11: 513.1652461 | I11: 5244 | J11: 4553.69108 | K11: 1764.408 | L11: 2.205197767 | M11: 510.6761617
B12: 8 | C12: Midlands | D12: 4198 | E12: 4144.26377 | F12: 1510.261102 | G12: 2.04872103 | H12: 265.7355179 | I12: 4247 | J12: 4122.650567 | K12: 1557.521463 | L12: 1.990063312 | M12: 268.4425754
B13: 9 | C13: Eastern | D13: 5301 | E13: 6285.110727 | F13: 1988.737703 | G13: 3.170677923 | H13: 628.435009 | I13: 5358 | J13: 6300.809516 | K13: 2101.230574 | L13: 3.088198863 | M13: 685.0817051
B14: 10 | C14: South Wales | D14: 1821 | E14: 1761.611703 | F14: 765.252808 | G14: 0.8601403369 | H14: 374.2388821 | I14: 1821 | J14: 1765.702826 | K14: 812.9242934 | L14: 0.8366154431 | M14: 370.298657
B15: 11 | C15: South East | D15: 3400 | E15: 3806.393462 | F15: 1113.116201 | G15: 1.975751652 | H15: 330.1681136 | I15: 3417 | J15: 3791.875813 | K15: 1169.14932 | L15: 1.918439628 | M15: 327.0774728
B16: 12 | C16: London | D16: 4657 | E16: 4084.286478 | F16: 2089.974432 | G16: 1.850472109 | H16: 133.8016514 | I16: 4944 | J16: 4049.766315 | K16: 2185.721872 | L16: 1.786194143 | M16: 132.8933055
B17: 13 | C17: Southern | D17: 6553 | E17: 5369.718711 | F17: 1946.595059 | G17: 2.660151492 | H17: 423.9767937 | I17: 7473 | J17: 5355.385331 | K17: 2032.197899 | L17: 2.584827962 | M17: 410.9124435
B18: 14 | C18: South Western | D18: 2412 | E18: 2542.63807 | F18: 707.8935428 | G18: 1.333134142 | H18: 269.5832259 | I18: 2444 | J18: 2548.627916 | K18: 736.4219884 | L18: 1.29721915 | M18: 285.4615988
B19: Total | D19: 46349.93444 | E19: =SUM(E5:E18) -> 49996.8674 | F19: 18315.62786 | G19: =SUM(G5:G18) -> 24.89932445 | H19: 6949.440241 | I19: 48015.82026 | J19: 49831.41566 | K19: 19066.37584 | L19: 24.18496997 | M19: 6536.476028

Sheet TI
A1: Table I - Week 24 DNO zonal demand forecast | H1: Return to Index
B4: Demand Zone | C4: 2022/23 | D4: 2023/24 | E4: 2024/25 | F4: 2025/26 | G4: 2026/27
C5: MW | D5: MW | E5: MW | F5: MW | G5: MW
B6: 1 | C6: 12.87236915 | D6: -117.8883902 | E6: -187.4839583 | F6: -330.4157505 | G6: -408.0165425
B7: 2 | C7: 1898.947895 | D7: 1847.322852 | E7: 1816.33709 | F7: 1788.096773 | G7: 1788.096773
B8: 3 | C8: 2049 | D8: 2058 | E8: 2068 | F8: 2075 | G8: 2087
B9: 4 | C9: 2430 | D9: 2768 | E9: 2786 | F9: 2676 | G9: 2495
B10: 5 | C10: 4059 | D10: 4127 | E10: 4143 | F10: 4151 | G10: 4161
B11: 6 | C11: 2618 | D11: 2743 | E11: 2805 | F11: 2872 | G11: 2937
B12: 7 | C12: 5244 | D12: 5530 | E12: 5667 | F12: 5805 | G12: 5970
B13: 8 | C13: 4247 | D13: 4295 | E13: 4340 | F13: 4391 | G13: 4471
B14: 9 | C14: 5358 | D14: 5371 | E14: 5415 | F14: 5470 | G14: 5535
B15: 10 | C15: 1821 | D15: 1830 | E15: 1844 | F15: 1857 | G15: 1866
B16: 11 | C16: 3417 | D16: 3410 | E16: 3459 | F16: 3471 | G16: 3512
B17: 12 | C17: 4944 | D17: 5037 | E17: 5083 | F17: 5144 | G17: 5463
B18: 13 | C18: 7473 | D18: 8007 | E18: 8157 | F18: 8229 | G18: 8245
B19: 14 | C19: 2444 | D19: 2491 | E19: 2550 | F19: 2648 | G19: 2719
B20: Total | C20: =SUM(C6:C19) -> 48015.82026 | D20: =SUM(D6:D19) -> 49396.43446 | E20: 49945.85313 | F20: 50246.68102 | G20: 50841.08023
